Workbook

Sheet VENTE
A1: TABLEAU DES VENTES
C2: ANNEE DE DECLARATION | F2: 2016-01-01
A3: Date | B3: N°Fact | C3: Raison Social | D3: Montant Ht | E3: Tx % | F3: Tva | G3: Montant TTC | H3: Mode Reg | I3: Date Reg | J3: Mois Decl | K3: Mode paiement
A4: 2015-05-27 | B4: 150219 | C4: CLIENT 031 | D4: 1515.83 | E4: 0.2 | F4: 303.17 | G4: 1819 | H4: CHQ 2748357 | I4: 2016-01-20 | J4: 2016-01-01 | K4: =IF(COUNTIF(H4,"*EF*"),5,IF(COUNTIF(H4,"*ES*"),1,IF(COUNTIF(H4,"*CH*"),2,IF(COUNTIF(H4,"*PR*"),3,IF(COUNTIF(H4,"*CO*"),6,IF(COUNTIF(H4,"*VI*"),4,7)))))) -> 2
A5: 2015-05-30 | B5: 150188 | C5: CLIENT 031 | D5: 8658.5 | E5: 0.2 | F5: 1731.7 | G5: 10390.2 | H5: CHQ 2748357 | I5: 2016-01-20 | J5: 2016-01-01 | K5: 2
A6: 2015-07-06 | B6: 150227 | C6: CLIENT 031 | D6: 3587.5 | E6: 0.2 | F6: 717.5 | G6: 4305 | H6: CHQ 2748357 | I6: 2016-01-20 | J6: 2016-01-01 | K6: 2
A7: 2015-08-30 | B7: 150269 | C7: CLIENT 031 | D7: 625 | E7: 0.2 | F7: 125 | G7: 750 | H7: CHQ 2748357 | I7: 2016-01-20 | J7: 2016-01-01 | K7: 2
A8: 2015-09-30 | B8: 150295 | C8: CLIENT 031 | D8: 2322.5 | E8: 0.2 | F8: 464.5 | G8: 2787 | H8: CHQ 2748357 | I8: 2016-01-20 | J8: 2016-01-01 | K8: 2
A9: 2015-09-30 | B9: 150296 | C9: CLIENT 011 | D9: 7466.67 | E9: 0.2 | F9: 1493.33 | G9: 8960 | H9: EFFET | I9: 2016-01-04 | J9: 2016-01-01 | K9: 5
A10: 2015-09-30 | B10: 150297 | C10: CLIENT 011 | D10: 6520.42 | E10: 0.2 | F10: 1304.08 | G10: 7824.5 | H10: EFFET | I10: 2016-01-04 | J10: 2016-01-01 | K10: 5
A11: 2015-11-30 | B11: 150324 | C11: CLIENT 014 | D11: 2150.83 | E11: 0.2 | F11: 430.17 | G11: 2581 | H11: CHQ | I11: 2016-01-08 | J11: 2016-01-01 | K11: 2
A12: 2015-11-30 | B12: 150347 | C12: CLIENT 031 | D12: 8311.67 | E12: 0.2 | F12: 1662.33 | G12: 9974 | H12: CHQ 2748357 | I12: 2016-01-20 | J12: 2016-01-01 | K12: 2
A13: 2016-01-05 | B13: 160001 | C13: CLIENT 002 | D13: 291.67 | E13: 20% | F13: 58.33 | G13: 350 | H13: ESPECES | I13: 2016-01-05 | J13: 2016-01-01 | K13: 1
A14: 2016-01-06 | B14: 160002 | C14: CLIENT 002 | D14: 291.67 | E14: 20% | F14: 58.33 | G14: 350 | H14: ESPECES | I14: 2016-01-06 | J14: 2016-01-01 | K14: 1
A15: 2016-01-06 | B15: 160003 | C15: CLIENT 002 | D15: 855 | E15: 20% | F15: 171 | G15: 1026 | H15: ESPECES | I15: 2016-01-06 | J15: 2016-01-01 | K15: 1
A16: 2016-01-06 | B16: 160004 | C16: CLIENT 002 | D16: 2497.83 | E16: 20% | F16: 499.57 | G16: 2997.4 | H16: ESPECES | I16: 2016-01-06 | J16: 2016-01-01 | K16: 1
A17: 2016-01-08 | B17: 160005 | C17: CLIENT 002 | D17: 4020 | E17: 20% | F17: 804 | G17: 4824 | H17: ESPECES | I17: 2016-01-08 | J17: 2016-01-01 | K17: 1
A18: 2016-01-09 | B18: 160006 | C18: CLIENT 002 | D18: 1826.67 | E18: 20% | F18: 365.33 | G18: 2192 | H18: ESPECES | I18: 2016-01-09 | J18: 2016-01-01 | K18: 1
A19: 2016-01-10 | B19: 160007 | C19: CLIENT 002 | D19: 1094.17 | E19: 20% | F19: 218.83 | G19: 1313 | H19: ESPECES | I19: 2016-01-10 | J19: 2016-01-01 | K19: 1
A20: 2016-01-11 | B20: 160008 | C20: CLIENT 002 | D20: 833.33 | E20: 20% | F20: 166.67 | G20: 1000 | H20: ESPECES | I20: 2016-01-11 | J20: 2016-01-01 | K20: 1
A21: 2016-01-12 | B21: 160009 | C21: CLIENT 071 | D21: 1898.33 | E21: 20% | F21: 379.67 | G21: 2278 | H21: ESPECES | I21: 2016-01-12 | J21: 2016-01-01 | K21: 1
A22: 2016-01-12 | B22: 160010 | C22: CLIENT 002 | D22: 116.67 | E22: 20% | F22: 23.33 | G22: 140 | H22: ESPECES | I22: 2016-01-12 | J22: 2016-01-01 | K22: 1
A23: 2016-01-12 | B23: 160011 | C23: CLIENT 002 | D23: 241.67 | E23: 20% | F23: 48.33 | G23: 290 | H23: ESPECES | I23: 2016-01-12 | J23: 2016-01-01 | K23: 1
A24: 2016-01-12 | B24: 160012 | C24: CLIENT 036 | D24: 6118.33 | E24: 20% | F24: 1223.67 | G24: 7342 | H24: CHQ 5307210 | I24: 2016-01-12 | J24: 2016-01-01 | K24: 2
A25: 2016-01-13 | B25: 160013 | C25: CLIENT 002 | D25: 41.67 | E25: 20% | F25: 8.33 | G25: 50 | H25: ESPECES | I25: 2016-01-13 | J25: 2016-01-01 | K25: 1
A26: 2016-01-13 | B26: 160014 | C26: CLIENT 002 | D26: 375 | E26: 20% | F26: 75 | G26: 450 | H26: ESPECES | I26: 2016-01-13 | J26: 2016-01-01 | K26: 1
A27: 2016-01-14 | B27: 160015 | C27: CLIENT 004 | D27: 359.58 | E27: 20% | F27: 71.92 | G27: 431.5 | H27: ESPECES | I27: 2016-01-14 | J27: 2016-01-01 | K27: 1
A28: 2016-01-14 | B28: 160016 | C28: CLIENT 002 | D28: 213.33 | E28: 20% | F28: 42.67 | G28: 256 | H28: ESPECES | I28: 2016-01-14 | J28: 2016-01-01 | K28: 1
A29: 2016-01-25 | B29: 160017 | C29: CLIENT 009 | D29: 617.92 | E29: 20% | F29: 123.58 | G29: 741.5 | H29: ESPECES | I29: 2016-01-25 | J29: 2016-01-01 | K29: 1
A30: 2016-01-26 | B30: 160018 | C30: CLIENT 002 | D30: 266.67 | E30: 20% | F30: 53.33 | G30: 320 | H30: ESPECES | I30: 2016-01-26 | J30: 2016-01-01 | K30: 1
A31: 2016-01-29 | B31: 160019 | C31: CLIENT 007 | D31: 537.25 | E31: 20% | F31: 107.45 | G31: 644.7 | H31: ESPECES | I31: 2016-01-29 | J31: 2016-01-01 | K31: 1
A32: 2016-01-30 | B32: 160020 | C32: CLIENT 014 | D32: 166.67 | E32: 20% | F32: 33.33 | G32: 200 | H32: ESPECES | I32: 2016-01-30 | J32: 2016-01-01 | K32: 1
A33: 2016-01-30 | B33: 160026 | C33: CLIENT 007 | D33: 537.25 | E33: 20% | F33: 107.45 | G33: 644.7 | H33: ESPECES | I33: 2016-01-30 | J33: 2016-01-01 | K33: 1
A34: 2015-10-30 | B34: 150323 | C34: CLIENT 011 | D34: 4106.67 | E34: 0.2 | F34: 821.33 | G34: 4928 | H34: EFFET | I34: 2016-02-03 | J34: 2016-02-01 | K34: 5
A35: 2015-12-16 | B35: 150365 | C35: CLIENT 013 | D35: 2240 | E35: 0.2 | F35: 448 | G35: 2688 | H35: CHQ | I35: 2016-02-06 | J35: 2016-02-01 | K35: 2
A36: 2016-02-01 | B36: 160031 | C36: CLIENT 004 | D36: 200 | E36: 20% | F36: 40 | G36: 240 | H36: ESPECES | I36: 2016-02-01 | J36: 2016-02-01 | K36: 1
A37: 2016-02-01 | B37: 160032 | C37: CLIENT 005 | D37: 242.67 | E37: 20% | F37: 48.53 | G37: 291.2 | H37: ESPECES | I37: 2016-02-01 | J37: 2016-02-01 | K37: 1
A38: 2016-02-01 | B38: 160033 | C38: CLIENT 002 | D38: 531 | E38: 20% | F38: 106.2 | G38: 637.2 | H38: ESPECES | I38: 2016-02-01 | J38: 2016-02-01 | K38: 1
A39: 2016-02-01 | B39: 160034 | C39: CLIENT 002 | D39: 516.67 | E39: 20% | F39: 103.33 | G39: 620 | H39: ESPECES | I39: 2016-02-01 | J39: 2016-02-01 | K39: 1
A40: 2016-02-01 | B40: 160035 | C40: CLIENT 024 | D40: 175 | E40: 20% | F40: 35 | G40: 210 | H40: ESPECES | I40: 2016-02-01 | J40: 2016-02-01 | K40: 1
A41: 2016-02-01 | B41: 160036 | C41: CLIENT 002 | D41: 162.5 | E41: 20% | F41: 32.5 | G41: 195 | H41: ESPECES | I41: 2016-02-01 | J41: 2016-02-01 | K41: 1
A42: 2016-02-03 | B42: 160037 | C42: CLIENT 002 | D42: 102.92 | E42: 20% | F42: 20.58 | G42: 123.5 | H42: ESPECES | I42: 2016-02-03 | J42: 2016-02-01 | K42: 1
A43: 2016-02-03 | B43: 160038 | C43: CLIENT 037 | D43: 570.83 | E43: 20% | F43: 114.17 | G43: 685 | H43: ESPECES | I43: 2016-02-03 | J43: 2016-02-01 | K43: 1
A44: 2016-02-03 | B44: 160039 | C44: CLIENT 007 | D44: 145.83 | E44: 20% | F44: 29.17 | G44: 175 | H44: ESPECES | I44: 2016-02-03 | J44: 2016-02-01 | K44: 1
A45: 2016-02-03 | B45: 160040 | C45: CLIENT 002 | D45: 300 | E45: 20% | F45: 60 | G45: 360 | H45: ESPECES | I45: 2016-02-03 | J45: 2016-02-01 | K45: 1
A46: 2016-02-03 | B46: 160041 | C46: CLIENT 002 | D46: 112.5 | E46: 20% | F46: 22.5 | G46: 135 | H46: ESPECES | I46: 2016-02-03 | J46: 2016-02-01 | K46: 1
A47: 2016-02-03 | B47: 160042 | C47: CLIENT 002 | D47: 7237.5 | E47: 20% | F47: 1447.5 | G47: 8685 | H47: ESPECES | I47: 2016-02-03 | J47: 2016-02-01 | K47: 1
A48: 2016-02-03 | B48: 160043 | C48: CLIENT 002 | D48: 6562.5 | E48: 20% | F48: 1312.5 | G48: 7875 | H48: ESPECES | I48: 2016-02-03 | J48: 2016-02-01 | K48: 1
A49: 2016-02-03 | B49: 160044 | C49: CLIENT 002 | D49: 376.67 | E49: 20% | F49: 75.33 | G49: 452 | H49: ESPECES | I49: 2016-02-03 | J49: 2016-02-01 | K49: 1
A50: 2016-02-05 | B50: 160045 | C50: CLIENT 043 | D50: 316.67 | E50: 20% | F50: 63.33 | G50: 380 | H50: ESPECES | I50: 2016-02-05 | J50: 2016-02-01 | K50: 1
A51: 2016-02-05 | B51: 160046 | C51: CLIENT 002 | D51: 597.67 | E51: 20% | F51: 119.53 | G51: 717.2 | H51: ESPECES | I51: 2016-02-05 | J51: 2016-02-01 | K51: 1
A52: 2016-02-06 | B52: 160047 | C52: CLIENT 002 | D52: 883.83 | E52: 20% | F52: 176.77 | G52: 1060.6 | H52: ESPECES | I52: 2016-02-06 | J52: 2016-02-01 | K52: 1
A53: 2016-02-06 | B53: 160048 | C53: CLIENT 002 | D53: 1159.17 | E53: 20% | F53: 231.83 | G53: 1391 | H53: ESPECES | I53: 2016-02-06 | J53: 2016-02-01 | K53: 1
A54: 2016-02-08 | B54: 160049 | C54: CLIENT 002 | D54: 2005 | E54: 20% | F54: 401 | G54: 2406 | H54: ESPECES | I54: 2016-02-08 | J54: 2016-02-01 | K54: 1
A55: 2016-02-10 | B55: 160050 | C55: CLIENT 002 | D55: 180.83 | E55: 20% | F55: 36.17 | G55: 217 | H55: ESPECES | I55: 2016-02-10 | J55: 2016-02-01 | K55: 1
A56: 2016-02-11 | B56: 160051 | C56: CLIENT 045 | D56: 9250 | E56: 20% | F56: 1850 | G56: 11100 | H56: CHQ 8881358 BMCI | I56: 2016-02-11 | J56: 2016-02-01 | K56: 2
A57: 2016-02-15 | B57: 160052 | C57: CLIENT 002 | D57: 782.5 | E57: 20% | F57: 156.5 | G57: 939 | H57: ESPECES | I57: 2016-02-15 | J57: 2016-02-01 | K57: 1
A58: 2016-02-15 | B58: 160053 | C58: CLIENT 002 | D58: 47.92 | E58: 20% | F58: 9.58 | G58: 57.5 | H58: ESPECES | I58: 2016-02-15 | J58: 2016-02-01 | K58: 1
A59: 2016-02-16 | B59: 160054 | C59: CLIENT 002 | D59: 208.33 | E59: 20% | F59: 41.67 | G59: 250 | H59: ESPECES | I59: 2016-02-16 | J59: 2016-02-01 | K59: 1
A60: 2016-02-17 | B60: 160055 | C60: CLIENT 002 | D60: 104.17 | E60: 20% | F60: 20.83 | G60: 125 | H60: ESPECES | I60: 2016-02-17 | J60: 2016-02-01 | K60: 1
A61: 2016-02-19 | B61: 160056 | C61: CLIENT 002 | D61: 297.5 | E61: 20% | F61: 59.5 | G61: 357 | H61: ESPECES | I61: 2016-02-19 | J61: 2016-02-01 | K61: 1
A62: 2016-02-20 | B62: 160057 | C62: CLIENT 002 | D62: 248.33 | E62: 20% | F62: 49.67 | G62: 298 | H62: ESPECES | I62: 2016-02-20 | J62: 2016-02-01 | K62: 1
A63: 2016-02-24 | B63: 160058 | C63: CLIENT 002 | D63: 1276.25 | E63: 20% | F63: 255.25 | G63: 1531.5 | H63: ESPECES | I63: 2016-02-24 | J63: 2016-02-01 | K63: 1
A64: 2016-02-25 | B64: 160059 | C64: CLIENT 002 | D64: 418.92 | E64: 20% | F64: 83.78 | G64: 502.7 | H64: ESPECES | I64: 2016-02-25 | J64: 2016-02-01 | K64: 1
A65: 2016-02-27 | B65: 160060 | C65: CLIENT 065 | D65: 694.17 | E65: 20% | F65: 138.83 | G65: 833 | H65: ESPECES | I65: 2016-02-27 | J65: 2016-02-01 | K65: 1
A66: 2016-02-27 | B66: 160061 | C66: CLIENT 002 | D66: 373.33 | E66: 20% | F66: 74.67 | G66: 448 | H66: ESPECES | I66: 2016-02-27 | J66: 2016-02-01 | K66: 1
A67: 2016-02-29 | B67: 160062 | C67: CLIENT 013 | D67: 660 | E67: 20% | F67: 132 | G67: 792 | H67: ESPECES | I67: 2016-02-29 | J67: 2016-02-01 | K67: 1
A68: 2016-02-29 | B68: 160063 | C68: CLIENT 002 | D68: 295 | E68: 20% | F68: 59 | G68: 354 | H68: ESPECES | I68: 2016-02-29 | J68: 2016-02-01 | K68: =IF(COUNTIF(H68,"*EF*"),5,IF(COUNTIF(H68,"*ES*"),1,IF(COUNTIF(H68,"*CH*"),2,IF(COUNTIF(H68,"*PR*"),3,IF(COUNTIF(H68,"*CO*"),6,IF(COUNTIF(H68,"*VI*"),4,7)))))) -> 1
A69: 2016-02-29 | B69: 160065 | C69: CLIENT 014 | D69: 473.33 | E69: 20% | F69: 94.67 | G69: 568 | H69: ESPECES | I69: 2016-02-29 | J69: 2016-02-01 | K69: 1
A70: 2016-02-29 | B70: 160068 | C70: CLIENT 014 | D70: 145.83 | E70: 20% | F70: 29.17 | G70: 175 | H70: ESPECES | I70: 2016-02-29 | J70: 2016-02-01 | K70: 1
A71: 2016-02-29 | B71: 160071 | C71: CLIENT 033 | D71: 4333.33 | E71: 20% | F71: 866.67 | G71: 5200 | H71: ESPECES | I71: 2016-02-29 | J71: 2016-02-01 | K71: 1
A72: 2016-02-29 | B72: 160072 | C72: CLIENT 002 | D72: 3970.83 | E72: 20% | F72: 794.17 | G72: 4765 | H72: ESPECES | I72: 2016-02-29 | J72: 2016-02-01 | K72: 1
A73: 2016-02-29 | B73: 160073 | C73: CLIENT 002 | D73: 1916.67 | E73: 20% | F73: 383.33 | G73: 2300 | H73: ESPECES | I73: 2016-02-29 | J73: 2016-02-01 | K73: 1
A74: 2015-11-30 | B74: 150345 | C74: CLIENT 014 | D74: 958.33 | E74: 0.2 | F74: 191.67 | G74: 1150 | H74: CHQ 8266 | I74: 2016-03-10 | J74: 2016-03-01 | K74: 2
A75: 2015-11-30 | B75: 150352 | C75: CLIENT 011 | D75: 5368.33 | E75: 0.2 | F75: 1073.67 | G75: 6442 | H75: EFFET | I75: 2016-03-06 | J75: 2016-03-01 | K75: 5
A76: 2015-11-30 | B76: 150353 | C76: CLIENT 011 | D76: 462.5 | E76: 0.2 | F76: 92.5 | G76: 555 | H76: EFFET | I76: 2016-03-06 | J76: 2016-03-01 | K76: 5
A77: 2015-12-31 | B77: 150383 | C77: CLIENT 069 | D77: 5835 | E77: 0.2 | F77: 1167 | G77: 7002 | H77: CHQ 2615 | I77: 2016-03-04 | J77: 2016-03-01 | K77: 2
A78: 2015-12-31 | B78: 150384 | C78: CLIENT 069 | D78: 3183.33 | E78: 0.2 | F78: 636.67 | G78: 3820 | H78: CHQ 2615 | I78: 2016-03-04 | J78: 2016-03-01 | K78: 2
A79: 2015-12-31 | B79: 150385 | C79: CLIENT 069 | D79: 3766.67 | E79: 0.2 | F79: 753.33 | G79: 4520 | H79: CHQ 2615 | I79: 2016-03-04 | J79: 2016-03-01 | K79: 2
A80: 2016-01-30 | B80: 160022 | C80: CLIENT 012 | D80: 2162.33 | E80: 20% | F80: 432.47 | G80: 2594.8 | H80: CHQ 67925 | I80: 2016-03-10 | J80: 2016-03-01 | K80: 2
A81: 2016-01-30 | B81: 160027 | C81: CLIENT 012 | D81: 1212.08 | E81: 20% | F81: 242.42 | G81: 1454.5 | H81: CHQ 67925 | I81: 2016-03-10 | J81: 2016-03-01 | K81: 2
A82: 2016-02-29 | B82: 160064 | C82: CLIENT 012 | D82: 1897.5 | E82: 20% | F82: 379.5 | G82: 2277 | H82: CHQ 67925 | I82: 2016-03-10 | J82: 2016-03-01 | K82: 2
A83: 2016-03-01 | B83: 160074 | C83: CLIENT 002 | D83: 500 | E83: 20% | F83: 100 | G83: 600 | H83: ESPECES | I83: 2016-03-01 | J83: 2016-03-01 | K83: 1
A84: 2016-03-02 | B84: 160075 | C84: CLIENT 002 | D84: 616.67 | E84: 20% | F84: 123.33 | G84: 740 | H84: ESPECES | I84: 2016-03-02 | J84: 2016-03-01 | K84: 1
A85: 2016-03-02 | B85: 160076 | C85: CLIENT 002 | D85: 175 | E85: 20% | F85: 35 | G85: 210 | H85: ESPECES | I85: 2016-03-02 | J85: 2016-03-01 | K85: 1
A86: 2016-03-03 | B86: 160077 | C86: CLIENT 002 | D86: 103.33 | E86: 20% | F86: 20.67 | G86: 124 | H86: ESPECES | I86: 2016-03-03 | J86: 2016-03-01 | K86: 1
A87: 2016-03-03 | B87: 160078 | C87: CLIENT 022 | D87: 150 | E87: 20% | F87: 30 | G87: 180 | H87: ESPECES | I87: 2016-03-03 | J87: 2016-03-01 | K87: 1
A88: 2016-03-03 | B88: 160079 | C88: CLIENT 076 | D88: 24695 | E88: 20% | F88: 4939 | G88: 29634 | H88: CHQ 3686591 | I88: 2016-03-03 | J88: 2016-03-01 | K88: 2
A89: 2016-03-03 | B89: 160080 | C89: CLIENT 076 | D89: 8638.33 | E89: 20% | F89: 1727.67 | G89: 10366 | H89: CHQ 3686591 | I89: 2016-03-03 | J89: 2016-03-01 | K89: 2
A90: 2016-03-04 | B90: 160081 | C90: CLIENT 061 | D90: 291.67 | E90: 20% | F90: 58.33 | G90: 350 | H90: ESPECES | I90: 2016-03-04 | J90: 2016-03-01 | K90: 1
A91: 2016-03-04 | B91: 160082 | C91: CLIENT 001 | D91: 944.67 | E91: 20% | F91: 188.93 | G91: 1133.6 | H91: ESPECES | I91: 2016-03-04 | J91: 2016-03-01 | K91: 1
A92: 2016-03-04 | B92: 160083 | C92: CLIENT 002 | D92: 226.67 | E92: 20% | F92: 45.33 | G92: 272 | H92: ESPECES | I92: 2016-03-04 | J92: 2016-03-01 | K92: 1
A93: 2016-03-06 | B93: 160084 | C93: CLIENT 002 | D93: 330 | E93: 20% | F93: 66 | G93: 396 | H93: ESPECES | I93: 2016-03-06 | J93: 2016-03-01 | K93: 1
A94: 2016-03-07 | B94: 160085 | C94: CLIENT 003 | D94: 0 | E94: 20% | F94: 0 | G94: 0 | H94: ESPECES | I94: 2016-03-07 | J94: 2016-03-01 | K94: 1
A95: 2016-03-07 | B95: 160086 | C95: CLIENT 002 | D95: 364.17 | E95: 20% | F95: 72.83 | G95: 437 | H95: ESPECES | I95: 2016-03-07 | J95: 2016-03-01 | K95: 1
A96: 2016-03-08 | B96: 160087 | C96: CLIENT 002 | D96: 291.67 | E96: 20% | F96: 58.33 | G96: 350 | H96: ESPECES | I96: 2016-03-08 | J96: 2016-03-01 | K96: 1
A97: 2016-03-08 | B97: 160088 | C97: CLIENT 002 | D97: 425 | E97: 20% | F97: 85 | G97: 510 | H97: ESPECES | I97: 2016-03-08 | J97: 2016-03-01 | K97: 1
A98: 2016-03-10 | B98: 160089 | C98: CLIENT 002 | D98: 200 | E98: 20% | F98: 40 | G98: 240 | H98: ESPECES | I98: 2016-03-10 | J98: 2016-03-01 | K98: 1
A99: 2016-03-10 | B99: 160090 | C99: CLIENT 002 | D99: 141.67 | E99: 20% | F99: 28.33 | G99: 170 | H99: ESPECES | I99: 2016-03-10 | J99: 2016-03-01 | K99: 1
A100: 2016-03-11 | B100: 160091 | C100: CLIENT 004 | D100: 58.33 | E100: 20% | F100: 11.67 | G100: 70 | H100: ESPECES | I100: 2016-03-11 | J100: 2016-03-01 | K100: 1
A101: 2016-03-12 | B101: 160092 | C101: CLIENT 002 | D101: 257.5 | E101: 20% | F101: 51.5 | G101: 309 | H101: ESPECES | I101: 2016-03-12 | J101: 2016-03-01 | K101: 1
A102: 2016-03-12 | B102: 160093 | C102: CLIENT 005 | D102: 1236.17 | E102: 20% | F102: 247.23 | G102: 1483.4 | H102: ESPECES | I102: 2016-03-12 | J102: 2016-03-01 | K102: 1
A103: 2016-03-12 | B103: 160094 | C103: CLIENT 002 | D103: 216.67 | E103: 20% | F103: 43.33 | G103: 260 | H103: ESPECES | I103: 2016-03-12 | J103: 2016-03-01 | K103: 1
A104: 2016-03-15 | B104: 160095 | C104: CLIENT 002 | D104: 414.58 | E104: 20% | F104: 82.92 | G104: 497.5 | H104: ESPECES | I104: 2016-03-15 | J104: 2016-03-01 | K104: 1
A105: 2016-03-16 | B105: 160096 | C105: CLIENT 002 | D105: 281.67 | E105: 20% | F105: 56.33 | G105: 338 | H105: ESPECES | I105: 2016-03-16 | J105: 2016-03-01 | K105: 1
A106: 2016-03-17 | B106: 160097 | C106: CLIENT 002 | D106: 537.5 | E106: 20% | F106: 107.5 | G106: 645 | H106: ESPECES | I106: 2016-03-17 | J106: 2016-03-01 | K106: 1
A107: 2016-03-17 | B107: 160098 | C107: CLIENT 006 | D107: 442.5 | E107: 20% | F107: 88.5 | G107: 531 | H107: ESPECES | I107: 2016-03-17 | J107: 2016-03-01 | K107: 1
A108: 2016-03-18 | B108: 160099 | C108: CLIENT 007 | D108: 166.67 | E108: 20% | F108: 33.33 | G108: 200 | H108: ESPECES | I108: 2016-03-18 | J108: 2016-03-01 | K108: 1
A109: 2016-03-19 | B109: 160100 | C109: CLIENT 002 | D109: 835.42 | E109: 20% | F109: 167.08 | G109: 1002.5 | H109: ESPECES | I109: 2016-03-19 | J109: 2016-03-01 | K109: 1
A110: 2016-03-21 | B110: 160101 | C110: CLIENT 005 | D110: 533.33 | E110: 20% | F110: 106.67 | G110: 640 | H110: ESPECES | I110: 2016-03-21 | J110: 2016-03-01 | K110: 1
A111: 2016-03-22 | B111: 160102 | C111: CLIENT 002 | D111: 358.33 | E111: 20% | F111: 71.67 | G111: 430 | H111: ESPECES | I111: 2016-03-22 | J111: 2016-03-01 | K111: 1
A112: 2016-03-24 | B112: 160103 | C112: CLIENT 002 | D112: 297.92 | E112: 20% | F112: 59.58 | G112: 357.5 | H112: ESPECES | I112: 2016-03-24 | J112: 2016-03-01 | K112: 1
A113: 2016-03-25 | B113: 160104 | C113: CLIENT 002 | D113: 1833.33 | E113: 20% | F113: 366.67 | G113: 2200 | H113: ESPECES | I113: 2016-03-25 | J113: 2016-03-01 | K113: 1
A114: 2016-03-26 | B114: 160105 | C114: CLIENT 008 | D114: 1716.67 | E114: 20% | F114: 343.33 | G114: 2060 | H114: ESPECES | I114: 2016-03-26 | J114: 2016-03-01 | K114: 1
A115: 2016-03-26 | B115: 160106 | C115: CLIENT 002 | D115: 262.5 | E115: 20% | F115: 52.5 | G115: 315 | H115: ESPECES | I115: 2016-03-26 | J115: 2016-03-01 | K115: 1
A116: 2016-03-28 | B116: 160107 | C116: CLIENT 002 | D116: 565 | E116: 20% | F116: 113 | G116: 678 | H116: ESPECES | I116: 2016-03-28 | J116: 2016-03-01 | K116: 1
A117: 2016-03-28 | B117: 160108 | C117: CLIENT 002 | D117: 173.83 | E117: 20% | F117: 34.77 | G117: 208.6 | H117: ESPECES | I117: 2016-03-28 | J117: 2016-03-01 | K117: 1
A118: 2016-03-28 | B118: 160109 | C118: CLIENT 002 | D118: 518.67 | E118: 20% | F118: 103.73 | G118: 622.4 | H118: ESPECES | I118: 2016-03-28 | J118: 2016-03-01 | K118: 1
A119: 2016-03-29 | B119: 160110 | C119: CLIENT 002 | D119: 456.67 | E119: 20% | F119: 91.33 | G119: 548 | H119: ESPECES | I119: 2016-03-29 | J119: 2016-03-01 | K119: 1
A120: 2016-03-30 | B120: 160111 | C120: CLIENT 009 | D120: 402.5 | E120: 20% | F120: 80.5 | G120: 483 | H120: ESPECES | I120: 2016-03-30 | J120: 2016-03-01 | K120: 1
A121: 2016-03-31 | B121: 160112 | C121: CLIENT 002 | D121: 687.5 | E121: 20% | F121: 137.5 | G121: 825 | H121: ESPECES | I121: 2016-03-31 | J121: 2016-03-01 | K121: 1
A122: 2015-11-30 | B122: 150346 | C122: CLIENT 010 | D122: 954.17 | E122: 0.2 | F122: 190.83 | G122: 1145 | H122: CHQ 9915261 | I122: 2016-04-22 | J122: 2016-04-01 | K122: 2
A123: 2015-11-30 | B123: 150348 | C123: CLIENT 010 | D123: 2975 | E123: 0.2 | F123: 595 | G123: 3570 | H123: CHQ 9915261 | I123: 2016-04-22 | J123: 2016-04-01 | K123: 2
A124: 2015-11-30 | B124: 150354 | C124: CLIENT 010 | D124: 187.5 | E124: 0.2 | F124: 37.5 | G124: 225 | H124: CHQ 9915261 | I124: 2016-04-22 | J124: 2016-04-01 | K124: 2
A125: 2015-12-31 | B125: 150382 | C125: CLIENT 011 | D125: 3252.5 | E125: 0.2 | F125: 650.5 | G125: 3903 | H125: CHQ 9701508 | I125: 2016-04-01 | J125: 2016-04-01 | K125: 2
A126: 2015-12-31 | B126: 150387 | C126: CLIENT 010 | D126: 1583.33 | E126: 0.2 | F126: 316.67 | G126: 1900 | H126: CHQ 9915261 | I126: 2016-04-22 | J126: 2016-04-01 | K126: 2
A127: 2016-01-30 | B127: 160021 | C127: CLIENT 006 | D127: 775 | E127: 20% | F127: 155 | G127: 930 | H127: CHQ 333252 | I127: 2016-04-20 | J127: 2016-04-01 | K127: 2
A128: 2016-01-30 | B128: 160023 | C128: CLIENT 012 | D128: 7873.42 | E128: 20% | F128: 1574.68 | G128: 9448.1 | H128: CHQ | I128: 2016-04-05 | J128: 2016-04-01 | K128: 2
A129: 2016-01-30 | B129: 160024 | C129: CLIENT 010 | D129: 650.83 | E129: 20% | F129: 130.17 | G129: 781 | H129: CHQ 9915261 | I129: 2016-04-22 | J129: 2016-04-01 | K129: 2
A130: 2016-01-30 | B130: 160025 | C130: CLIENT 006 | D130: 220.83 | E130: 20% | F130: 44.17 | G130: 265 | H130: CHQ 333252 | I130: 2016-04-20 | J130: 2016-04-01 | K130: 2
A131: 2016-02-29 | B131: 160067 | C131: CLIENT 013 | D131: 840.83 | E131: 20% | F131: 168.17 | G131: 1009 | H131: CHQ 780197 | I131: 2016-04-01 | J131: 2016-04-01 | K131: 2
A132: 2016-03-04 | B132: 160128 | C132: CLIENT 002 | D132: 585 | E132: 20% | F132: 117 | G132: 702 | H132: ESPECES | I132: 2016-03-04 | J132: 2016-04-01 | K132: =IF(COUNTIF(H132,"*EF*"),5,IF(COUNTIF(H132,"*ES*"),1,IF(COUNTIF(H132,"*CH*"),2,IF(COUNTIF(H132,"*PR*"),3,IF(COUNTIF(H132,"*CO*"),6,IF(COUNTIF(H132,"*VI*"),4,7)))))) -> 1
A133: 2016-03-31 | B133: 160114 | C133: CLIENT 006 | D133: 1066.67 | E133: 20% | F133: 213.33 | G133: 1280 | H133: CHQ 333252 | I133: 2016-04-20 | J133: 2016-04-01 | K133: 2
A134: 2016-03-31 | B134: 160115 | C134: CLIENT 014 | D134: 1978.33 | E134: 20% | F134: 395.67 | G134: 2374 | H134: CHQ 5703745 | I134: 2016-04-20 | J134: 2016-04-01 | K134: 2
A135: 2016-03-31 | B135: 160116 | C135: CLIENT 015 | D135: 3625 | E135: 20% | F135: 725 | G135: 4350 | H135: CHQ 962155 | I135: 2016-04-22 | J135: 2016-04-01 | K135: 2
A136: 2016-03-31 | B136: 160117 | C136: CLIENT 013 | D136: 3390 | E136: 20% | F136: 678 | G136: 4068 | H136: CHQ 408561 | I136: 2016-04-22 | J136: 2016-04-01 | K136: 2
A137: 2016-03-31 | B137: 160121 | C137: CLIENT 013 | D137: 555.83 | E137: 20% | F137: 111.17 | G137: 667 | H137: CHQ 780197 | I137: 2016-04-01 | J137: 2016-04-01 | K137: 2
A138: 2016-04-01 | B138: 160124 | C138: CLIENT 016 | D138: 1416.67 | E138: 20% | F138: 283.33 | G138: 1700 | H138: ESPECES | I138: 2016-04-01 | J138: 2016-04-01 | K138: 1
A139: 2016-04-01 | B139: 160125 | C139: CLIENT 002 | D139: 788.75 | E139: 20% | F139: 157.75 | G139: 946.5 | H139: ESPECES | I139: 2016-04-01 | J139: 2016-04-01 | K139: 1
A140: 2016-04-01 | B140: 160127 | C140: CLIENT 017 | D140: 12500 | E140: 20% | F140: 2500 | G140: 15000 | H140: CHQ | I140: 2016-04-02 | J140: 2016-04-01 | K140: 2
A141: 2016-04-05 | B141: 160129 | C141: CLIENT 002 | D141: 524.17 | E141: 20% | F141: 104.83 | G141: 629 | H141: ESPECES | I141: 2016-04-05 | J141: 2016-04-01 | K141: 1
A142: 2016-04-12 | B142: 160130 | C142: CLIENT 002 | D142: 180 | E142: 20% | F142: 36 | G142: 216 | H142: ESPECES | I142: 2016-04-12 | J142: 2016-04-01 | K142: 1
A143: 2016-04-14 | B143: 160131 | C143: CLIENT 018 | D143: 1758.33 | E143: 20% | F143: 351.67 | G143: 2110 | H143: ESPECES | I143: 2016-04-14 | J143: 2016-04-01 | K143: 1
A144: 2016-04-14 | B144: 160132 | C144: CLIENT 002 | D144: 994.17 | E144: 20% | F144: 198.83 | G144: 1193 | H144: ESPECES | I144: 2016-04-14 | J144: 2016-04-01 | K144: 1
A145: 2016-04-14 | B145: 160133 | C145: CLIENT 019 | D145: 20833.33 | E145: 20% | F145: 4166.67 | G145: 25000 | H145: CHQ | I145: 2016-04-14 | J145: 2016-04-01 | K145: 2
A146: 2016-04-14 | B146: 160134 | C146: CLIENT 020 | D146: 366.67 | E146: 20% | F146: 73.33 | G146: 440 | H146: ESPECES | I146: 2016-04-04 | J146: 2016-04-01 | K146: 1
A147: 2016-04-18 | B147: 160135 | C147: CLIENT 002 | D147: 300 | E147: 20% | F147: 60 | G147: 360 | H147: ESPECES | I147: 2016-04-18 | J147: 2016-04-01 | K147: 1
A148: 2016-04-19 | B148: 160136 | C148: CLIENT 002 | D148: 475.83 | E148: 20% | F148: 95.17 | G148: 571 | H148: ESPECES | I148: 2016-04-19 | J148: 2016-04-01 | K148: 1
A149: 2016-04-20 | B149: 160137 | C149: CLIENT 002 | D149: 291.67 | E149: 20% | F149: 58.33 | G149: 350 | H149: ESPECES | I149: 2016-04-20 | J149: 2016-04-01 | K149: 1
A150: 2016-04-22 | B150: 160138 | C150: CLIENT 021 | D150: 200 | E150: 20% | F150: 40 | G150: 240 | H150: ESPECES | I150: 2016-04-22 | J150: 2016-04-01 | K150: 1
A151: 2016-04-26 | B151: 160139 | C151: CLIENT 002 | D151: 533.33 | E151: 20% | F151: 106.67 | G151: 640 | H151: ESPECES | I151: 2016-04-26 | J151: 2016-04-01 | K151: 1
A152: 2016-04-26 | B152: 160140 | C152: CLIENT 002 | D152: 229.17 | E152: 20% | F152: 45.83 | G152: 275 | H152: ESPECES | I152: 2016-04-26 | J152: 2016-04-01 | K152: 1
A153: 2016-04-26 | B153: 160141 | C153: CLIENT 007 | D153: 225 | E153: 20% | F153: 45 | G153: 270 | H153: ESPECES | I153: 2016-04-26 | J153: 2016-04-01 | K153: 1
A154: 2016-04-28 | B154: 160142 | C154: CLIENT 022 | D154: 400 | E154: 20% | F154: 80 | G154: 480 | H154: ESPECES | I154: 2016-04-28 | J154: 2016-04-01 | K154: 1
A155: 2016-04-29 | B155: 160143 | C155: CLIENT 002 | D155: 308.33 | E155: 20% | F155: 61.67 | G155: 370 | H155: ESPECES | I155: 2016-04-29 | J155: 2016-04-01 | K155: 1
A156: 2016-04-29 | B156: 160149 | C156: CLIENT 003 | D156: 0 | E156: 20% | F156: 0 | G156: 0 | I156: 2016-04-29 | J156: 2016-04-01 | K156: 7
A157: 2016-04-29 | B157: 160150 | C157: CLIENT 014 | D157: 75 | E157: 20% | F157: 15 | G157: 90 | H157: ESPECES | I157: 2016-04-29 | J157: 2016-04-01 | K157: 1
A158: 2016-03-31 | B158: 160113 | C158: CLIENT 012 | D158: 2263.5 | E158: 20% | F158: 452.7 | G158: 2716.2 | H158: CHQ | I158: 2016-05-01 | J158: 2016-05-01 | K158: 2
A159: 2016-03-31 | B159: 160118 | C159: CLIENT 015 | D159: 3390 | E159: 20% | F159: 678 | G159: 4068 | H159: CHQ | I159: 2016-05-01 | J159: 2016-05-01 | K159: 2
A160: 2016-03-31 | B160: 160122 | C160: CLIENT 015 | D160: 3912.5 | E160: 20% | F160: 782.5 | G160: 4695 | H160: CHQ | I160: 2016-05-01 | J160: 2016-05-01 | K160: 2
A161: 2016-03-31 | B161: 160122 | C161: CLIENT 015 | D161: 4845.83 | E161: 20% | F161: 969.17 | G161: 5815 | H161: ESPECES | I161: 2016-03-31 | J161: 2016-05-01 | K161: 1
A162: 2016-04-01 | B162: 160126 | C162: CLIENT 023 | D162: 1267.08 | E162: 20% | F162: 253.42 | G162: 1520.5 | H162: CHQ 7237 BP | I162: 2016-05-01 | J162: 2016-05-01 | K162: 2
A163: 2016-05-02 | B163: 160153 | C163: CLIENT 002 | D163: 537.5 | E163: 20% | F163: 107.5 | G163: 645 | H163: ESPECES | I163: 2016-05-02 | J163: 2016-05-01 | K163: 1
A164: 2016-05-03 | B164: 160154 | C164: CLIENT 024 | D164: 438.33 | E164: 20% | F164: 87.67 | G164: 526 | H164: CHQ | I164: 2016-05-01 | J164: 2016-05-01 | K164: 2
A165: 2016-05-07 | B165: 160155 | C165: CLIENT 023 | D165: 112.5 | E165: 20% | F165: 22.5 | G165: 135 | H165: ESPECES | I165: 2016-05-07 | J165: 2016-05-01 | K165: 1
A166: 2016-05-09 | B166: 160156 | C166: CLIENT 018 | D166: 66.67 | E166: 20% | F166: 13.33 | G166: 80 | H166: ESPECES | I166: 2016-05-09 | J166: 2016-05-01 | K166: 1
A167: 2016-05-09 | B167: 160157 | C167: CLIENT 002 | D167: 645.83 | E167: 20% | F167: 129.17 | G167: 775 | H167: ESPECES | I167: 2016-05-09 | J167: 2016-05-01 | K167: 1
A168: 2016-05-11 | B168: 160158 | C168: CLIENT 002 | D168: 291.67 | E168: 20% | F168: 58.33 | G168: 350 | H168: ESPECES | I168: 2016-05-11 | J168: 2016-05-01 | K168: 1
A169: 2016-05-12 | B169: 160159 | C169: CLIENT 025 | D169: 32.5 | E169: 20% | F169: 6.5 | G169: 39 | H169: ESPECES | I169: 2016-05-12 | J169: 2016-05-01 | K169: 1
A170: 2016-05-12 | B170: 160160 | C170: CLIENT 002 | D170: 250 | E170: 20% | F170: 50 | G170: 300 | H170: ESPECES | I170: 2016-05-12 | J170: 2016-05-01 | K170: 1
A171: 2016-05-13 | B171: 160161 | C171: CLIENT 026 | D171: 600 | E171: 20% | F171: 120 | G171: 720 | H171: ESPECES | I171: 2016-05-13 | J171: 2016-05-01 | K171: 1
A172: 2016-05-16 | B172: 160162 | C172: CLIENT 002 | D172: 333.33 | E172: 20% | F172: 66.67 | G172: 400 | H172: ESPECES | I172: 2016-05-16 | J172: 2016-05-01 | K172: 1
A173: 2016-05-16 | B173: 160164 | C173: CLIENT 027 | D173: 54.17 | E173: 20% | F173: 10.83 | G173: 65 | H173: ESPECES | I173: 2016-05-16 | J173: 2016-05-01 | K173: 1
A174: 2016-05-16 | B174: 160165 | C174: CLIENT 028 | D174: 1416.67 | E174: 20% | F174: 283.33 | G174: 1700 | H174: ESPECES | I174: 2016-05-16 | J174: 2016-05-01 | K174: 1
A175: 2016-05-17 | B175: 160163 | C175: CLIENT 002 | D175: 333.33 | E175: 20% | F175: 66.67 | G175: 400 | H175: ESPECES | I175: 2016-05-17 | J175: 2016-05-01 | K175: 1
A176: 2016-05-18 | B176: 160166 | C176: CLIENT 002 | D176: 541.67 | E176: 20% | F176: 108.33 | G176: 650 | H176: ESPECES | I176: 2016-05-18 | J176: 2016-05-01 | K176: 1
A177: 2016-05-18 | B177: 160167 | C177: CLIENT 028 | D177: 107.5 | E177: 20% | F177: 21.5 | G177: 129 | H177: ESPECES | I177: 2016-05-18 | J177: 2016-05-01 | K177: 1
A178: 2016-05-18 | B178: 160168 | C178: CLIENT 002 | D178: 200 | E178: 20% | F178: 40 | G178: 240 | H178: ESPECES | I178: 2016-05-18 | J178: 2016-05-01 | K178: 1
A179: 2016-05-19 | B179: 160169 | C179: CLIENT 023 | D179: 116.67 | E179: 20% | F179: 23.33 | G179: 140 | H179: ESPECES | I179: 2016-05-19 | J179: 2016-05-01 | K179: 1
A180: 2016-05-19 | B180: 160170 | C180: CLIENT 002 | D180: 233.33 | E180: 20% | F180: 46.67 | G180: 280 | H180: ESPECES | I180: 2016-05-19 | J180: 2016-05-01 | K180: 1
A181: 2016-05-19 | B181: 160171 | C181: CLIENT 002 | D181: 153.67 | E181: 20% | F181: 30.73 | G181: 184.4 | H181: ESPECES | I181: 2016-05-19 | J181: 2016-05-01 | K181: 1
A182: 2016-05-19 | B182: 160173 | C182: CLIENT 027 | D182: 50 | E182: 20% | F182: 10 | G182: 60 | H182: ESPECES | I182: 2016-05-19 | J182: 2016-05-01 | K182: 1
A183: 2016-05-19 | B183: 160174 | C183: CLIENT 002 | D183: 100 | E183: 20% | F183: 20 | G183: 120 | H183: ESPECES | I183: 2016-05-19 | J183: 2016-05-01 | K183: 1
A184: 2016-05-20 | B184: 160175 | C184: CLIENT 018 | D184: 100 | E184: 20% | F184: 20 | G184: 120 | H184: ESPECES | I184: 2016-05-20 | J184: 2016-05-01 | K184: 1
A185: 2016-05-21 | B185: 160176 | C185: CLIENT 029 | D185: 116.67 | E185: 20% | F185: 23.33 | G185: 140 | H185: ESPECES | I185: 2016-05-21 | J185: 2016-05-01 | K185: 1
A186: 2016-05-23 | B186: 160177 | C186: CLIENT 002 | D186: 146.67 | E186: 20% | F186: 29.33 | G186: 176 | H186: ESPECES | I186: 2016-05-23 | J186: 2016-05-01 | K186: 1
A187: 2016-05-24 | B187: 160178 | C187: CLIENT 002 | D187: 379.17 | E187: 20% | F187: 75.83 | G187: 455 | H187: ESPECES | I187: 2016-05-24 | J187: 2016-05-01 | K187: 1
A188: 2016-05-26 | B188: 160179 | C188: CLIENT 002 | D188: 528.33 | E188: 20% | F188: 105.67 | G188: 634 | H188: ESPECES | I188: 2016-05-26 | J188: 2016-05-01 | K188: 1
A189: 2016-05-28 | B189: 160180 | C189: CLIENT 007 | D189: 293.33 | E189: 20% | F189: 58.67 | G189: 352 | H189: ESPECES | I189: 2016-05-28 | J189: 2016-05-01 | K189: 1
A190: 2016-05-31 | B190: 160187 | C190: CLIENT 030 | D190: 4312.08 | E190: 20% | F190: 862.42 | G190: 5174.5 | H190: CHQ | I190: 2016-05-01 | J190: 2016-05-01 | K190: 2
A191: 2016-05-31 | B191: 160188 | C191: CLIENT 030 | D191: 1939.17 | E191: 20% | F191: 387.83 | G191: 2327 | H191: CHQ | I191: 2016-05-01 | J191: 2016-05-01 | K191: 2
A192: 2016-05-31 | B192: 160189 | C192: CLIENT 002 | D192: 160.83 | E192: 20% | F192: 32.17 | G192: 193 | H192: ESPECES | I192: 2016-05-31 | J192: 2016-05-01 | K192: 1
A193: 2016-03-31 | B193: 160122 | C193: CLIENT 015 | D193: 7500 | E193: 20% | F193: 1500 | G193: 9000 | H193: CHQ | I193: 2016-06-01 | J193: 2016-06-01 | K193: 2
A194: 2016-03-31 | B194: 160123 | C194: CLIENT 031 | D194: 1190.83 | E194: 20% | F194: 238.17 | G194: 1429 | H194: CHQ | I194: 2016-06-01 | J194: 2016-06-01 | K194: 2
A195: 2016-04-29 | B195: 160145 | C195: CLIENT 012 | D195: 5072.5 | E195: 20% | F195: 1014.5 | G195: 6087 | H195: CHQ | I195: 2016-07-01 | J195: 2016-06-01 | K195: 2
A196: 2016-04-29 | B196: 160148 | C196: CLIENT 031 | D196: 166.67 | E196: 20% | F196: 33.33 | G196: 200 | H196: ESPECES | I196: 2016-04-29 | J196: 2016-06-01 | K196: =IF(COUNTIF(H196,"*EF*"),5,IF(COUNTIF(H196,"*ES*"),1,IF(COUNTIF(H196,"*CH*"),2,IF(COUNTIF(H196,"*PR*"),3,IF(COUNTIF(H196,"*CO*"),6,IF(COUNTIF(H196,"*VI*"),4,7)))))) -> 1
A197: 2016-05-31 | B197: 160181 | C197: CLIENT 006 | D197: 3475 | E197: 20% | F197: 695 | G197: 4170 | H197: CHQ | I197: 2016-07-01 | J197: 2016-06-01 | K197: 2
A198: 2016-06-01 | B198: 160190 | C198: CLIENT 032 | D198: 533.33 | E198: 20% | F198: 106.67 | G198: 640 | H198: ESPECES | I198: 2016-06-01 | J198: 2016-06-01 | K198: 1
A199: 2016-06-01 | B199: 160191 | C199: CLIENT 018 | D199: 50 | E199: 20% | F199: 10 | G199: 60 | H199: ESPECES | I199: 2016-06-01 | J199: 2016-06-01 | K199: 1
A200: 2016-06-01 | B200: 160192 | C200: CLIENT 008 | D200: 383.33 | E200: 20% | F200: 76.67 | G200: 460 | H200: ESPECES | I200: 2016-06-01 | J200: 2016-06-01 | K200: 1
... 700 more rows

Sheet ACHAT
A1: =XML!XY1 -> 2016-04-01
A2: TABLEAU DES DEDUCTIONS
B4: FACTURE N° | C4: DESIGNATION | D4: MONTANT HT | E4: TVA | F4: MONTANT TTC | G4: IF | H4: RAISON SOCIAL | I4: ICE | J4: TX % | K4: MODE REG | L4: DATE PAIEMENT | M4: DATE FACTURE | N4: Mois Décl | O4: Mode paiement
B5: 201403278 | C5: MARCHANDISES | D5: 2250 | E5: 450 | F5: 2700 | G5: 1008985 | H5: =INDEX(X!$H$2:$J$1000,MATCH($G5,X!$H$2:$H$1000,0),2) -> FOURNISSEUR 0020 | I5: =INDEX(X!$H$2:$J$1000,MATCH($G5,X!$H$2:$H$1000,0),3) -> 00191111004000074 | J5: 0.2 | K5: EFFET T 04670220 | L5: 2014-11-10 | M5: 2014-11-30 | N5: 2015-01-01 | O5: =IF(COUNTIF(K5,"*EF*"),5,IF(COUNTIF(K5,"*ES*"),1,IF(COUNTIF(K5,"*CH*"),2,IF(COUNTIF(K5,"*PR*"),3,IF(COUNTIF(K5,"*CO*"),6,IF(COUNTIF(K5,"*VI*"),4,7)))))) -> 5
B6: 15/1/0005 | C6: MARCHANDISES | D6: 2089.68 | E6: 417.94 | F6: 2507.62 | G6: 1009741 | H6: =INDEX(X!$H$2:$J$1000,MATCH($G6,X!$H$2:$H$1000,0),2) -> FOURNISSEUR 0032 | I6: =INDEX(X!$H$2:$J$1000,MATCH($G6,X!$H$2:$H$1000,0),3) -> 00311111004000086 | J6: 0.2 | K6: EFFET 04670240 | L6: 2015-01-07 | M6: 2015-01-31 | N6: 2015-01-01 | O6: 5
B7: 14102845 | C7: MARCHANDISES | D7: 8250.83 | E7: 1650.17 | F7: 9901 | G7: 1008922 | H7: =INDEX(X!$H$2:$J$1000,MATCH($G7,X!$H$2:$H$1000,0),2) -> FOURNISSEUR 0019 | I7: =INDEX(X!$H$2:$J$1000,MATCH($G7,X!$H$2:$H$1000,0),3) -> 00181111004000073 | J7: 0.2 | K7: EFFET T 04670242 | L7: 2015-01-30 | M7: 2014-10-31 | N7: 2015-01-01 | O7: 5
B8: 14102846 | C8: MARCHANDISES | D8: 11114.17 | E8: 2222.83 | F8: 13337 | G8: 1008922 | H8: =INDEX(X!$H$2:$J$1000,MATCH($G8,X!$H$2:$H$1000,0),2) -> FOURNISSEUR 0019 | I8: =INDEX(X!$H$2:$J$1000,MATCH($G8,X!$H$2:$H$1000,0),3) -> 00181111004000073 | J8: 0.2 | K8: EFFET T 04670242 | L8: 2015-01-30 | M8: 2014-10-31 | N8: 2015-01-01 | O8: 5
B9: 15f0105 | C9: MARCHANDISES | D9: 2791.67 | E9: 558.33 | F9: 3350 | G9: 1008922 | H9: =INDEX(X!$H$2:$J$1000,MATCH($G9,X!$H$2:$H$1000,0),2) -> FOURNISSEUR 0019 | I9: =INDEX(X!$H$2:$J$1000,MATCH($G9,X!$H$2:$H$1000,0),3) -> 00181111004000073 | J9: 0.2 | K9: EFFET T 04670228 | L9: 2015-01-30 | M9: 2015-01-07 | N9: 2015-01-01 | O9: 5
B10: 50154 | C10: MARCHANDISES | D10: 18513.33 | E10: 3702.67 | F10: 22216 | G10: 1008733 | H10: =INDEX(X!$H$2:$J$1000,MATCH($G10,X!$H$2:$H$1000,0),2) -> FOURNISSEUR 0016 | I10: =INDEX(X!$H$2:$J$1000,MATCH($G10,X!$H$2:$H$1000,0),3) -> 00151111004000070 | J10: 0.2 | K10: EFFET T 4670226 | L10: 2015-01-30 | M10: 2015-01-21 | N10: 2015-02-01 | O10: 5
B11: 2015115 | C11: MARCHANDISES | D11: 6450 | E11: 1290 | F11: 7740 | G11: 1008796 | H11: =INDEX(X!$H$2:$J$1000,MATCH($G11,X!$H$2:$H$1000,0),2) -> FOURNISSEUR 0017 | I11: =INDEX(X!$H$2:$J$1000,MATCH($G11,X!$H$2:$H$1000,0),3) -> 00161111004000071 | J11: 0.2 | K11: EFFET T 4670229 | L11: 2015-02-10 | M11: 2015-02-13 | N11: 2015-02-01 | O11: 5
B12: 14113132 | C12: MARCHANDISES | D12: 3220 | E12: 644 | F12: 3864 | G12: 1008922 | H12: =INDEX(X!$H$2:$J$1000,MATCH($G12,X!$H$2:$H$1000,0),2) -> FOURNISSEUR 0019 | I12: =INDEX(X!$H$2:$J$1000,MATCH($G12,X!$H$2:$H$1000,0),3) -> 00181111004000073 | J12: 0.2 | K12: EFFET R4670232 | L12: 2015-02-18 | M12: 2014-11-30 | N12: 2015-02-01 | O12: 5
B13: 15f0207 | C13: MARCHANDISES | D13: 3700 | E13: 740 | F13: 4440 | G13: 1009552 | H13: =INDEX(X!$H$2:$J$1000,MATCH($G13,X!$H$2:$H$1000,0),2) -> FOURNISSEUR 0029 | I13: =INDEX(X!$H$2:$J$1000,MATCH($G13,X!$H$2:$H$1000,0),3) -> 00281111004000083 | J13: 0.2 | K13: EFFET T 04670234 | L13: 2015-03-02 | M13: 2015-02-19 | N13: 2015-03-01 | O13: 5
B14: 15/2/0011 | C14: MARCHANDISES | D14: 1208 | E14: 241.6 | F14: 1449.6 | G14: 1009741 | H14: =INDEX(X!$H$2:$J$1000,MATCH($G14,X!$H$2:$H$1000,0),2) -> FOURNISSEUR 0032 | I14: =INDEX(X!$H$2:$J$1000,MATCH($G14,X!$H$2:$H$1000,0),3) -> 00311111004000086 | J14: 0.2 | K14: EFFET T 04955008 | L14: 2015-03-04 | M14: 2015-02-28 | N14: 2015-03-01 | O14: 5
B15: 5202014 | C15: MARCHANDISES | D15: 1385 | E15: 277 | F15: 1662 | G15: 1009426 | H15: =INDEX(X!$H$2:$J$1000,MATCH($G15,X!$H$2:$H$1000,0),2) -> FOURNISSEUR 0027 | I15: =INDEX(X!$H$2:$J$1000,MATCH($G15,X!$H$2:$H$1000,0),3) -> 00261111004000081 | J15: 0.2 | K15: EFFET T 04955002 | L15: 2015-03-05 | M15: 2014-10-31 | N15: 2015-03-01 | O15: 5
B16: 410113 | C16: MARCHANDISES | D16: 8969.17 | E16: 1793.83 | F16: 10763 | G16: 1009678 | H16: =INDEX(X!$H$2:$J$1000,MATCH($G16,X!$H$2:$H$1000,0),2) -> FOURNISSEUR 0031 | I16: =INDEX(X!$H$2:$J$1000,MATCH($G16,X!$H$2:$H$1000,0),3) -> 00301111004000085 | J16: 0.2 | K16: EFFET T 04670236 | L16: 2015-03-05 | M16: 2014-10-31 | N16: 2015-03-01 | O16: 5
B17: 411153 | C17: MARCHANDISES | D17: 5731.67 | E17: 1146.33 | F17: 6878 | G17: 1009678 | H17: =INDEX(X!$H$2:$J$1000,MATCH($G17,X!$H$2:$H$1000,0),2) -> FOURNISSEUR 0031 | I17: =INDEX(X!$H$2:$J$1000,MATCH($G17,X!$H$2:$H$1000,0),3) -> 00301111004000085 | J17: 0.2 | K17: EFFET T 04670236 | L17: 2015-03-05 | M17: 2014-11-29 | N17: 2015-03-01 | O17: 5
B18: 5672014 | C18: MARCHANDISES | D18: 1334 | E18: 266.8 | F18: 1600.8 | G18: 1009426 | H18: =INDEX(X!$H$2:$J$1000,MATCH($G18,X!$H$2:$H$1000,0),2) -> FOURNISSEUR 0027 | I18: =INDEX(X!$H$2:$J$1000,MATCH($G18,X!$H$2:$H$1000,0),3) -> 00261111004000081 | J18: 0.2 | K18: EFFET T 04955002 | L18: 2015-03-05 | M18: 2014-11-30 | N18: 2015-03-01 | O18: 5
B19: 14113151 | C19: MARCHANDISES | D19: 26705.83 | E19: 5341.17 | F19: 32047 | G19: 1008922 | H19: =INDEX(X!$H$2:$J$1000,MATCH($G19,X!$H$2:$H$1000,0),2) -> FOURNISSEUR 0019 | I19: =INDEX(X!$H$2:$J$1000,MATCH($G19,X!$H$2:$H$1000,0),3) -> 00181111004000073 | J19: 0.2 | K19: EFFET T 04955006 | L19: 2015-03-05 | M19: 2014-11-30 | N19: 2015-03-01 | O19: 5
B20: 14113152 | C20: MARCHANDISES | D20: 16729.17 | E20: 3345.83 | F20: 20075 | G20: 1008922 | H20: =INDEX(X!$H$2:$J$1000,MATCH($G20,X!$H$2:$H$1000,0),2) -> FOURNISSEUR 0019 | I20: =INDEX(X!$H$2:$J$1000,MATCH($G20,X!$H$2:$H$1000,0),3) -> 00181111004000073 | J20: 0.2 | K20: EFFET T 04955006 | L20: 2015-03-05 | M20: 2014-11-30 | N20: 2015-03-01 | O20: 5
B21: 41247 | C21: MARCHANDISES | D21: 533.33 | E21: 106.67 | F21: 640 | G21: 1009678 | H21: =INDEX(X!$H$2:$J$1000,MATCH($G21,X!$H$2:$H$1000,0),2) -> FOURNISSEUR 0031 | I21: =INDEX(X!$H$2:$J$1000,MATCH($G21,X!$H$2:$H$1000,0),3) -> 00301111004000085 | J21: 0.2 | K21: EFFET T 04670236 | L21: 2015-03-05 | M21: 2014-12-31 | N21: 2015-03-01 | O21: 5
B22: 412119 | C22: MARCHANDISES | D22: 5379.17 | E22: 1075.83 | F22: 6455 | G22: 1009678 | H22: =INDEX(X!$H$2:$J$1000,MATCH($G22,X!$H$2:$H$1000,0),2) -> FOURNISSEUR 0031 | I22: =INDEX(X!$H$2:$J$1000,MATCH($G22,X!$H$2:$H$1000,0),3) -> 00301111004000085 | J22: 0.2 | K22: EFFET T 04955004 | L22: 2015-03-05 | M22: 2014-12-31 | N22: 2015-03-01 | O22: 5
B23: 14123490 | C23: MARCHANDISES | D23: 22058.33 | E23: 4411.67 | F23: 26470 | G23: 1008922 | H23: =INDEX(X!$H$2:$J$1000,MATCH($G23,X!$H$2:$H$1000,0),2) -> FOURNISSEUR 0019 | I23: =INDEX(X!$H$2:$J$1000,MATCH($G23,X!$H$2:$H$1000,0),3) -> 00181111004000073 | J23: 0.2 | K23: EFFET T 04955007 | L23: 2015-03-05 | M23: 2014-12-31 | N23: 2015-03-01 | O23: 5
B24: 14123577 | C24: MARCHANDISES | D24: 562.5 | E24: 112.5 | F24: 675 | G24: 1008922 | H24: =INDEX(X!$H$2:$J$1000,MATCH($G24,X!$H$2:$H$1000,0),2) -> FOURNISSEUR 0019 | I24: =INDEX(X!$H$2:$J$1000,MATCH($G24,X!$H$2:$H$1000,0),3) -> 00181111004000073 | J24: 0.2 | K24: EFFET T 04955007 | L24: 2015-03-05 | M24: 2014-12-31 | N24: 2015-03-01 | O24: 5
B25: 1502000905 | C25: MARCHANDISES | D25: 6420 | E25: 1284 | F25: 7704 | G25: 1008607 | H25: =INDEX(X!$H$2:$J$1000,MATCH($G25,X!$H$2:$H$1000,0),2) -> FOURNISSEUR 0014 | I25: =INDEX(X!$H$2:$J$1000,MATCH($G25,X!$H$2:$H$1000,0),3) -> 00131111004000068 | J25: 0.2 | K25: CHQ 3755725 | L25: 2015-03-30 | M25: 2015-02-28 | N25: 2015-03-01 | O25: 2
B26: 15f0303 | C26: MARCHANDISES | D26: 4881.67 | E26: 976.33 | F26: 5858 | G26: 1009552 | H26: =INDEX(X!$H$2:$J$1000,MATCH($G26,X!$H$2:$H$1000,0),2) -> FOURNISSEUR 0029 | I26: =INDEX(X!$H$2:$J$1000,MATCH($G26,X!$H$2:$H$1000,0),3) -> 00281111004000083 | J26: 0.2 | K26: EFFET T 04670239 | L26: 2015-03-30 | M26: 2015-03-04 | N26: 2015-03-01 | O26: 5
B27: 2316 | C27: MARCHANDISES | D27: 10916.67 | E27: 2183.33 | F27: 13100 | G27: 1009237 | H27: =INDEX(X!$H$2:$J$1000,MATCH($G27,X!$H$2:$H$1000,0),2) -> FOURNISSEUR 0024 | I27: =INDEX(X!$H$2:$J$1000,MATCH($G27,X!$H$2:$H$1000,0),3) -> 00231111004000078 | J27: 0.2 | K27: EFFET 04670230 | L27: 2015-03-02 | M27: 2015-03-02 | N27: 2015-04-01 | O27: 5
B28: 2327 | C28: MARCHANDISES | D28: 10833.33 | E28: 2166.67 | F28: 13000 | G28: 1009237 | H28: =INDEX(X!$H$2:$J$1000,MATCH($G28,X!$H$2:$H$1000,0),2) -> FOURNISSEUR 0024 | I28: =INDEX(X!$H$2:$J$1000,MATCH($G28,X!$H$2:$H$1000,0),3) -> 00231111004000078 | J28: 0.2 | K28: EFFET 04670231 | L28: 2015-03-16 | M28: 2015-03-16 | N28: 2015-04-01 | O28: 5
B29: 2335 | C29: MARCHANDISES | D29: 17875 | E29: 3575 | F29: 21450 | G29: 1009237 | H29: =INDEX(X!$H$2:$J$1000,MATCH($G29,X!$H$2:$H$1000,0),2) -> FOURNISSEUR 0024 | I29: =INDEX(X!$H$2:$J$1000,MATCH($G29,X!$H$2:$H$1000,0),3) -> 00231111004000078 | J29: 0.2 | K29: EFFET 04670238 | L29: 2015-03-30 | M29: 2015-03-30 | N29: 2015-04-01 | O29: 5
B30: 15/03/0029 | C30: MARCHANDISES | D30: 6013.33 | E30: 1202.67 | F30: 7216 | G30: 1009741 | H30: =INDEX(X!$H$2:$J$1000,MATCH($G30,X!$H$2:$H$1000,0),2) -> FOURNISSEUR 0032 | I30: =INDEX(X!$H$2:$J$1000,MATCH($G30,X!$H$2:$H$1000,0),3) -> 00311111004000086 | J30: 0.2 | K30: EFFET T 4955017 | L30: 2015-04-06 | M30: 2015-03-31 | N30: 2015-04-01 | O30: 5
B31: 502106 | C31: MARCHANDISES | D31: 12966.67 | E31: 2593.33 | F31: 15560 | G31: 1008733 | H31: =INDEX(X!$H$2:$J$1000,MATCH($G31,X!$H$2:$H$1000,0),2) -> FOURNISSEUR 0016 | I31: =INDEX(X!$H$2:$J$1000,MATCH($G31,X!$H$2:$H$1000,0),3) -> 00151111004000070 | J31: 0.2 | K31: EFFET T 04670235 | L31: 2015-03-02 | M31: 2015-02-28 | N31: 2015-05-01 | O31: 5
B32: 503142 | C32: MARCHANDISES | D32: 666.67 | E32: 133.33 | F32: 800 | G32: 1008733 | H32: =INDEX(X!$H$2:$J$1000,MATCH($G32,X!$H$2:$H$1000,0),2) -> FOURNISSEUR 0016 | I32: =INDEX(X!$H$2:$J$1000,MATCH($G32,X!$H$2:$H$1000,0),3) -> 00151111004000070 | J32: 0.2 | K32: EFFET T 04955005 | L32: 2015-03-27 | M32: 2015-03-31 | N32: 2015-05-01 | O32: 5
B33: 503117 | C33: MARCHANDISES | D33: 6591.67 | E33: 1318.33 | F33: 7910 | G33: 1008733 | H33: =INDEX(X!$H$2:$J$1000,MATCH($G33,X!$H$2:$H$1000,0),2) -> FOURNISSEUR 0016 | I33: =INDEX(X!$H$2:$J$1000,MATCH($G33,X!$H$2:$H$1000,0),3) -> 00151111004000070 | J33: 0.2 | K33: ESPECES | L33: 2015-03-31 | M33: 2015-03-31 | N33: 2015-05-01 | O33: 1
B34: f0150061 | C34: MARCHANDISES | D34: 6000 | E34: 1200 | F34: 7200 | G34: 1007788 | H34: =INDEX(X!$H$2:$J$1000,MATCH($G34,X!$H$2:$H$1000,0),2) -> FOURNISSEUR 0001 | I34: =INDEX(X!$H$2:$J$1000,MATCH($G34,X!$H$2:$H$1000,0),3) -> 00001111004000055 | J34: 0.2 | K34: ESPECES | L34: 2015-04-01 | M34: 2015-04-01 | N34: 2015-05-01 | O34: 1
B35: 131/15 | C35: MARCHANDISES | D35: 5208.33 | E35: 1041.67 | F35: 6250 | G35: 1008670 | H35: =INDEX(X!$H$2:$J$1000,MATCH($G35,X!$H$2:$H$1000,0),2) -> FOURNISSEUR 0015 | I35: =INDEX(X!$H$2:$J$1000,MATCH($G35,X!$H$2:$H$1000,0),3) -> 00141111004000069 | J35: 0.2 | K35: EFFET T 04670244 | L35: 2015-04-15 | M35: 2015-04-15 | N35: 2015-05-01 | O35: 5
B36: 15010111 | C36: MARCHANDISES | D36: 18833.75 | E36: 3766.75 | F36: 22600.5 | G36: 1008922 | H36: =INDEX(X!$H$2:$J$1000,MATCH($G36,X!$H$2:$H$1000,0),2) -> FOURNISSEUR 0019 | I36: =INDEX(X!$H$2:$J$1000,MATCH($G36,X!$H$2:$H$1000,0),3) -> 00181111004000073 | J36: 0.2 | K36: EFFET T 04670243 | L36: 2015-04-20 | M36: 2015-01-31 | N36: 2015-05-01 | O36: 5
B37: 15f0416 | C37: MARCHANDISES | D37: 2278.33 | E37: 455.67 | F37: 2734 | G37: 1009552 | H37: =INDEX(X!$H$2:$J$1000,MATCH($G37,X!$H$2:$H$1000,0),2) -> FOURNISSEUR 0029 | I37: =INDEX(X!$H$2:$J$1000,MATCH($G37,X!$H$2:$H$1000,0),3) -> 00281111004000083 | J37: 0.2 | K37: EFFET T 04955001 | L37: 2015-04-30 | M37: 2015-04-24 | N37: 2015-05-01 | O37: 5
B38: 15010012 | C38: MARCHANDISES | D38: 23097.92 | E38: 4619.58 | F38: 27717.5 | G38: 1008922 | H38: =INDEX(X!$H$2:$J$1000,MATCH($G38,X!$H$2:$H$1000,0),2) -> FOURNISSEUR 0019 | I38: =INDEX(X!$H$2:$J$1000,MATCH($G38,X!$H$2:$H$1000,0),3) -> 00181111004000073 | J38: 0.2 | K38: EFFET T 04955029 | L38: 2015-05-06 | M38: 2015-01-31 | N38: 2015-05-01 | O38: 5
B39: 15010013 | C39: MARCHANDISES | D39: 9980 | E39: 1996 | F39: 11976 | G39: 1008922 | H39: =INDEX(X!$H$2:$J$1000,MATCH($G39,X!$H$2:$H$1000,0),2) -> FOURNISSEUR 0019 | I39: =INDEX(X!$H$2:$J$1000,MATCH($G39,X!$H$2:$H$1000,0),3) -> 00181111004000073 | J39: 0.2 | K39: EFFET T 04955029 | L39: 2015-05-06 | M39: 2015-01-31 | N39: 2015-05-01 | O39: 5
B40: 150200034 | C40: MARCHANDISES | D40: 8650 | E40: 1730 | F40: 10380 | G40: 1007914 | H40: =INDEX(X!$H$2:$J$1000,MATCH($G40,X!$H$2:$H$1000,0),2) -> FOURNISSEUR 0003 | I40: =INDEX(X!$H$2:$J$1000,MATCH($G40,X!$H$2:$H$1000,0),3) -> 00021111004000057 | J40: 0.2 | K40: EFFET T 04670250 | L40: 2015-05-11 | M40: 2015-02-23 | N40: 2015-05-01 | O40: 5
B41: 183 | C41: MARCHANDISES | D41: 770 | E41: 154 | F41: 924 | G41: 1007914 | H41: =INDEX(X!$H$2:$J$1000,MATCH($G41,X!$H$2:$H$1000,0),2) -> FOURNISSEUR 0003 | I41: =INDEX(X!$H$2:$J$1000,MATCH($G41,X!$H$2:$H$1000,0),3) -> 00021111004000057 | J41: 0.2 | K41: EFFET T 04955028 | L41: 2015-05-15 | M41: 2015-04-27 | N41: 2015-05-01 | O41: 5
B42: 135/15 | C42: MARCHANDISES | D42: 5050 | E42: 1010 | F42: 6060 | G42: 1008670 | H42: =INDEX(X!$H$2:$J$1000,MATCH($G42,X!$H$2:$H$1000,0),2) -> FOURNISSEUR 0015 | I42: =INDEX(X!$H$2:$J$1000,MATCH($G42,X!$H$2:$H$1000,0),3) -> 00141111004000069 | J42: 0.2 | K42: EFFET T 04670247 | L42: 2015-05-20 | M42: 2015-05-15 | N42: 2015-05-01 | O42: 5
B43: 27758 | C43: MARCHANDISES | D43: 458.33 | E43: 91.67 | F43: 550 | G43: 1008103 | H43: =INDEX(X!$H$2:$J$1000,MATCH($G43,X!$H$2:$H$1000,0),2) -> FOURNISSEUR 0006 | I43: =INDEX(X!$H$2:$J$1000,MATCH($G43,X!$H$2:$H$1000,0),3) -> 00051111004000060 | J43: 0.2 | K43: CHQ 3755728 | L43: 2015-05-29 | M43: 2015-05-20 | N43: 2015-05-01 | O43: 2
B44: 15/06/0053 | C44: MARCHANDISES | D44: 1830.7 | E44: 366.14 | F44: 2196.84 | G44: 1009741 | H44: =INDEX(X!$H$2:$J$1000,MATCH($G44,X!$H$2:$H$1000,0),2) -> FOURNISSEUR 0032 | I44: =INDEX(X!$H$2:$J$1000,MATCH($G44,X!$H$2:$H$1000,0),3) -> 00311111004000086 | J44: 0.2 | K44: EFFET T 04955034 | L44: 2015-05-05 | M44: 2015-06-15 | N44: 2015-06-01 | O44: 5
B45: 15020395 | C45: MARCHANDISES | D45: 16482.5 | E45: 3296.5 | F45: 19779 | G45: 1008922 | H45: =INDEX(X!$H$2:$J$1000,MATCH($G45,X!$H$2:$H$1000,0),2) -> FOURNISSEUR 0019 | I45: =INDEX(X!$H$2:$J$1000,MATCH($G45,X!$H$2:$H$1000,0),3) -> 00181111004000073 | J45: 0.2 | K45: EFFET T 04955030 | L45: 2015-06-01 | M45: 2015-02-28 | N45: 2015-06-01 | O45: 5
B46: 15020396 | C46: MARCHANDISES | D46: 8870.83 | E46: 1774.17 | F46: 10645 | G46: 1008922 | H46: =INDEX(X!$H$2:$J$1000,MATCH($G46,X!$H$2:$H$1000,0),2) -> FOURNISSEUR 0019 | I46: =INDEX(X!$H$2:$J$1000,MATCH($G46,X!$H$2:$H$1000,0),3) -> 00181111004000073 | J46: 0.2 | K46: EFFET T 04955030 | L46: 2015-06-01 | M46: 2015-02-28 | N46: 2015-06-01 | O46: 5
B47: 15020402 | C47: MARCHANDISES | D47: 1383.33 | E47: 276.67 | F47: 1660 | G47: 1008922 | H47: =INDEX(X!$H$2:$J$1000,MATCH($G47,X!$H$2:$H$1000,0),2) -> FOURNISSEUR 0019 | I47: =INDEX(X!$H$2:$J$1000,MATCH($G47,X!$H$2:$H$1000,0),3) -> 00181111004000073 | J47: 0.2 | K47: EFFET T 04955030 | L47: 2015-06-01 | M47: 2015-02-28 | N47: 2015-06-01 | O47: 5
B48: 502139 | C48: MARCHANDISES | D48: 7283.75 | E48: 1456.75 | F48: 8740.5 | G48: 1009678 | H48: =INDEX(X!$H$2:$J$1000,MATCH($G48,X!$H$2:$H$1000,0),2) -> FOURNISSEUR 0031 | I48: =INDEX(X!$H$2:$J$1000,MATCH($G48,X!$H$2:$H$1000,0),3) -> 00301111004000085 | J48: 0.2 | K48: EFFET T 04955025 | L48: 2015-06-01 | M48: 2015-02-28 | N48: 2015-06-01 | O48: 5
B49: 15f0506 | C49: MARCHANDISES | D49: 939.58 | E49: 187.92 | F49: 1127.5 | G49: 1009552 | H49: =INDEX(X!$H$2:$J$1000,MATCH($G49,X!$H$2:$H$1000,0),2) -> FOURNISSEUR 0029 | I49: =INDEX(X!$H$2:$J$1000,MATCH($G49,X!$H$2:$H$1000,0),3) -> 00281111004000083 | J49: 0.2 | K49: EFFET T 04955010 | L49: 2015-06-01 | M49: 2015-05-11 | N49: 2015-06-01 | O49: 5
B50: fa2381 | C50: MARCHANDISES | D50: 14166.67 | E50: 2833.33 | F50: 17000 | G50: 1008670 | H50: =INDEX(X!$H$2:$J$1000,MATCH($G50,X!$H$2:$H$1000,0),2) -> FOURNISSEUR 0015 | I50: =INDEX(X!$H$2:$J$1000,MATCH($G50,X!$H$2:$H$1000,0),3) -> 00141111004000069 | J50: 0.2 | K50: EFFET T 04670248 | L50: 2015-06-01 | M50: 2015-06-01 | N50: 2015-06-01 | O50: 5
B51: 15/06/0054 | C51: MARCHANDISES | D51: 7643.38 | E51: 1528.68 | F51: 9172.06 | G51: 1009741 | H51: =INDEX(X!$H$2:$J$1000,MATCH($G51,X!$H$2:$H$1000,0),2) -> FOURNISSEUR 0032 | I51: =INDEX(X!$H$2:$J$1000,MATCH($G51,X!$H$2:$H$1000,0),3) -> 00311111004000086 | J51: 0.2 | K51: EFFET T 04955043 | L51: 2015-06-04 | M51: 2015-06-15 | N51: 2015-06-01 | O51: 5
B52: 15031042 | C52: MARCHANDISES | D52: 9627.5 | E52: 1925.5 | F52: 11553 | G52: 1008922 | H52: =INDEX(X!$H$2:$J$1000,MATCH($G52,X!$H$2:$H$1000,0),2) -> FOURNISSEUR 0019 | I52: =INDEX(X!$H$2:$J$1000,MATCH($G52,X!$H$2:$H$1000,0),3) -> 00181111004000073 | J52: 0.2 | K52: EFFET T 04955015 | L52: 2015-06-30 | M52: 2015-03-31 | N52: 2015-06-01 | O52: 5
B53: 503122 | C53: MARCHANDISES | D53: 3583.33 | E53: 716.67 | F53: 4300 | G53: 1009678 | H53: =INDEX(X!$H$2:$J$1000,MATCH($G53,X!$H$2:$H$1000,0),2) -> FOURNISSEUR 0031 | I53: =INDEX(X!$H$2:$J$1000,MATCH($G53,X!$H$2:$H$1000,0),3) -> 00301111004000085 | J53: 0.2 | K53: EFFET T 04955026 | L53: 2015-06-30 | M53: 2015-03-31 | N53: 2015-06-01 | O53: 5
B54: 15f0629 | C54: MARCHANDISES | D54: 7095.83 | E54: 1419.17 | F54: 8515 | G54: 1008670 | H54: =INDEX(X!$H$2:$J$1000,MATCH($G54,X!$H$2:$H$1000,0),2) -> FOURNISSEUR 0015 | I54: =INDEX(X!$H$2:$J$1000,MATCH($G54,X!$H$2:$H$1000,0),3) -> 00141111004000069 | J54: 0.2 | K54: EFFET T 04955016 | L54: 2015-06-30 | M54: 2015-06-30 | N54: 2015-06-01 | O54: 5
B55: avoir 146 | C55: MARCHANDISES | D55: -362.5 | E55: -72.5 | F55: -435 | G55: 1009678 | H55: =INDEX(X!$H$2:$J$1000,MATCH($G55,X!$H$2:$H$1000,0),2) -> FOURNISSEUR 0031 | I55: =INDEX(X!$H$2:$J$1000,MATCH($G55,X!$H$2:$H$1000,0),3) -> 00301111004000085 | J55: 0.2 | K55: AVOIR | L55: 2015-07-31 | M55: 2015-03-31 | N55: 2015-06-01 | O55: 7
B56: 15030776 | C56: MARCHANDISES | D56: 29160.83 | E56: 5832.17 | F56: 34993 | G56: 1008922 | H56: =INDEX(X!$H$2:$J$1000,MATCH($G56,X!$H$2:$H$1000,0),2) -> FOURNISSEUR 0019 | I56: =INDEX(X!$H$2:$J$1000,MATCH($G56,X!$H$2:$H$1000,0),3) -> 00181111004000073 | J56: 0.2 | K56: EFFET T 05202204 | L56: 2015-07-02 | M56: 2015-03-31 | N56: 2015-07-01 | O56: 5
B57: 15030777 | C57: MARCHANDISES | D57: 10920 | E57: 2184 | F57: 13104 | G57: 1008922 | H57: =INDEX(X!$H$2:$J$1000,MATCH($G57,X!$H$2:$H$1000,0),2) -> FOURNISSEUR 0019 | I57: =INDEX(X!$H$2:$J$1000,MATCH($G57,X!$H$2:$H$1000,0),3) -> 00181111004000073 | J57: 0.2 | K57: EFFET T 05202204 | L57: 2015-07-02 | M57: 2015-03-31 | N57: 2015-07-01 | O57: 5
B58: 15030778 | C58: MARCHANDISES | D58: 2604.17 | E58: 520.83 | F58: 3125 | G58: 1008922 | H58: =INDEX(X!$H$2:$J$1000,MATCH($G58,X!$H$2:$H$1000,0),2) -> FOURNISSEUR 0019 | I58: =INDEX(X!$H$2:$J$1000,MATCH($G58,X!$H$2:$H$1000,0),3) -> 00181111004000073 | J58: 0.2 | K58: EFFET T 05202204 | L58: 2015-07-02 | M58: 2015-03-31 | N58: 2015-07-01 | O58: 5
B59: 15/7/0067 | C59: MARCHANDISES | D59: 3437.35 | E59: 687.47 | F59: 4124.82 | G59: 1009741 | H59: =INDEX(X!$H$2:$J$1000,MATCH($G59,X!$H$2:$H$1000,0),2) -> FOURNISSEUR 0032 | I59: =INDEX(X!$H$2:$J$1000,MATCH($G59,X!$H$2:$H$1000,0),3) -> 00311111004000086 | J59: 0.2 | K59: EFFET T 05202209 | L59: 2015-07-10 | M59: 2015-07-10 | N59: 2015-07-01 | O59: 5
B60: fa2399 | C60: MARCHANDISES | D60: 7958.33 | E60: 1591.67 | F60: 9550 | G60: 1009237 | H60: =INDEX(X!$H$2:$J$1000,MATCH($G60,X!$H$2:$H$1000,0),2) -> FOURNISSEUR 0024 | I60: =INDEX(X!$H$2:$J$1000,MATCH($G60,X!$H$2:$H$1000,0),3) -> 00231111004000078 | J60: 0.2 | K60: EFFET T 04955015 | L60: 2015-06-30 | M60: 2015-07-01 | N60: 2015-08-01 | O60: 5
B61: 50365 | C61: MARCHANDISES | D61: 10493.43 | E61: 2098.685 | F61: 12592.11 | G61: 1008733 | H61: =INDEX(X!$H$2:$J$1000,MATCH($G61,X!$H$2:$H$1000,0),2) -> FOURNISSEUR 0016 | I61: =INDEX(X!$H$2:$J$1000,MATCH($G61,X!$H$2:$H$1000,0),3) -> 00151111004000070 | J61: 0.2 | K61: EFFET 04955027 | L61: 2015-07-15 | M61: 2015-03-31 | N61: 2015-08-01 | O61: 5
B62: 5042 | C62: MARCHANDISES | D62: 1866.66 | E62: 373.33 | F62: 2239.99 | G62: 1008733 | H62: =INDEX(X!$H$2:$J$1000,MATCH($G62,X!$H$2:$H$1000,0),2) -> FOURNISSEUR 0016 | I62: =INDEX(X!$H$2:$J$1000,MATCH($G62,X!$H$2:$H$1000,0),3) -> 00151111004000070 | J62: 0.2 | K62: EFFET 04955027 | L62: 2015-07-15 | M62: 2015-04-18 | N62: 2015-08-01 | O62: 5
B63: fa2403 | C63: MARCHANDISES | D63: 10000 | E63: 2000 | F63: 12000 | G63: 1009237 | H63: =INDEX(X!$H$2:$J$1000,MATCH($G63,X!$H$2:$H$1000,0),2) -> FOURNISSEUR 0024 | I63: =INDEX(X!$H$2:$J$1000,MATCH($G63,X!$H$2:$H$1000,0),3) -> 00231111004000078 | J63: 0.2 | K63: EFFET T 04955019 | L63: 2015-07-15 | M63: 2015-07-07 | N63: 2015-08-01 | O63: 5
B64: 15041461 | C64: MARCHANDISES | D64: 10008.83 | E64: 2001.77 | F64: 12010.6 | G64: 1008922 | H64: =INDEX(X!$H$2:$J$1000,MATCH($G64,X!$H$2:$H$1000,0),2) -> FOURNISSEUR 0019 | I64: =INDEX(X!$H$2:$J$1000,MATCH($G64,X!$H$2:$H$1000,0),3) -> 00181111004000073 | J64: 0.2 | K64: EFFET 04955031 | L64: 2015-07-31 | M64: 2015-04-30 | N64: 2015-08-01 | O64: 5
B65: 15041411 | C65: MARCHANDISES | D65: 11700.83 | E65: 2340.17 | F65: 14041 | G65: 1008922 | H65: =INDEX(X!$H$2:$J$1000,MATCH($G65,X!$H$2:$H$1000,0),2) -> FOURNISSEUR 0019 | I65: =INDEX(X!$H$2:$J$1000,MATCH($G65,X!$H$2:$H$1000,0),3) -> 00181111004000073 | J65: 0.2 | K65: EFFET 05202205 | L65: 2015-07-31 | M65: 2015-04-30 | N65: 2015-08-01 | O65: 5
B66: 15041412 | C66: MARCHANDISES | D66: 10430.83 | E66: 2086.17 | F66: 12517 | G66: 1008922 | H66: =INDEX(X!$H$2:$J$1000,MATCH($G66,X!$H$2:$H$1000,0),2) -> FOURNISSEUR 0019 | I66: =INDEX(X!$H$2:$J$1000,MATCH($G66,X!$H$2:$H$1000,0),3) -> 00181111004000073 | J66: 0.2 | K66: EFFET 05202205 | L66: 2015-07-31 | M66: 2015-04-30 | N66: 2015-08-01 | O66: 5
B67: fa2411 | C67: MARCHANDISES | D67: 9416.67 | E67: 1883.33 | F67: 11300 | G67: 1009237 | H67: =INDEX(X!$H$2:$J$1000,MATCH($G67,X!$H$2:$H$1000,0),2) -> FOURNISSEUR 0024 | I67: =INDEX(X!$H$2:$J$1000,MATCH($G67,X!$H$2:$H$1000,0),3) -> 00231111004000078 | J67: 0.2 | K67: EFFET T 04955020 | L67: 2015-08-15 | M67: 2015-08-04 | N67: 2015-08-01 | O67: 5
B68: 15080097 | C68: MARCHANDISES | D68: 2727.22 | E68: 545.44 | F68: 3272.66 | G68: 1009741 | H68: =INDEX(X!$H$2:$J$1000,MATCH($G68,X!$H$2:$H$1000,0),2) -> FOURNISSEUR 0032 | I68: =INDEX(X!$H$2:$J$1000,MATCH($G68,X!$H$2:$H$1000,0),3) -> 00311111004000086 | J68: 0.2 | K68: EFFET T 5202216 | L68: 2015-08-01 | M68: 2015-08-20 | N68: 2015-09-01 | O68: 5
B69: 1508898 | C69: MARCHANDISES | D69: 259 | E69: 51.8 | F69: 310.8 | G69: 1009741 | H69: =INDEX(X!$H$2:$J$1000,MATCH($G69,X!$H$2:$H$1000,0),2) -> FOURNISSEUR 0032 | I69: =INDEX(X!$H$2:$J$1000,MATCH($G69,X!$H$2:$H$1000,0),3) -> 00311111004000086 | J69: 0.2 | K69: ESPECES | L69: 2015-08-20 | M69: 2015-08-20 | N69: 2015-09-01 | O69: =IF(COUNTIF(K69,"*EF*"),5,IF(COUNTIF(K69,"*ES*"),1,IF(COUNTIF(K69,"*CH*"),2,IF(COUNTIF(K69,"*PR*"),3,IF(COUNTIF(K69,"*CO*"),6,IF(COUNTIF(K69,"*VI*"),4,7)))))) -> 1
B70: 505127 | C70: MARCHANDISES | D70: 8655.83 | E70: 1731.17 | F70: 10387 | G70: 1009678 | H70: =INDEX(X!$H$2:$J$1000,MATCH($G70,X!$H$2:$H$1000,0),2) -> FOURNISSEUR 0031 | I70: =INDEX(X!$H$2:$J$1000,MATCH($G70,X!$H$2:$H$1000,0),3) -> 00301111004000085 | J70: 0.2 | K70: EFFET T 4955047 | L70: 2015-08-31 | M70: 2015-05-30 | N70: 2015-09-01 | O70: 5
B71: AVOIR128 | C71: MARCHANDISES | D71: -337.58 | E71: -67.52 | F71: -405.1 | G71: 1009678 | H71: =INDEX(X!$H$2:$J$1000,MATCH($G71,X!$H$2:$H$1000,0),2) -> FOURNISSEUR 0031 | I71: =INDEX(X!$H$2:$J$1000,MATCH($G71,X!$H$2:$H$1000,0),3) -> 00301111004000085 | J71: 0.2 | K71: EFFET T 4955047 | L71: 2015-08-31 | M71: 2015-05-30 | N71: 2015-09-01 | O71: 5
B72: 50548 | C72: MARCHANDISES | D72: 11720.83 | E72: 2344.17 | F72: 14065 | G72: 1008733 | H72: =INDEX(X!$H$2:$J$1000,MATCH($G72,X!$H$2:$H$1000,0),2) -> FOURNISSEUR 0016 | I72: =INDEX(X!$H$2:$J$1000,MATCH($G72,X!$H$2:$H$1000,0),3) -> 00151111004000070 | J72: 0.2 | K72: EFFET T 4955048 | L72: 2015-08-31 | M72: 2015-05-30 | N72: 2015-09-01 | O72: 5
B73: 2426 | C73: MARCHANDISES | D73: 16666.67 | E73: 3333.33 | F73: 20000 | G73: 1009237 | H73: =INDEX(X!$H$2:$J$1000,MATCH($G73,X!$H$2:$H$1000,0),2) -> FOURNISSEUR 0024 | I73: =INDEX(X!$H$2:$J$1000,MATCH($G73,X!$H$2:$H$1000,0),3) -> 00231111004000078 | J73: 0.2 | K73: EFFET T 4955035 | L73: 2015-08-31 | M73: 2015-09-01 | N73: 2015-09-01 | O73: 5
B74: 317 15 | C74: MARCHANDISES | D74: 1625 | E74: 325 | F74: 1950 | G74: 1008355 | H74: =INDEX(X!$H$2:$J$1000,MATCH($G74,X!$H$2:$H$1000,0),2) -> FOURNISSEUR 0010 | I74: =INDEX(X!$H$2:$J$1000,MATCH($G74,X!$H$2:$H$1000,0),3) -> 00091111004000064 | J74: 0.2 | K74: EFFET T 5202212 | L74: 2015-08-31 | M74: 2015-09-10 | N74: 2015-09-01 | O74: 5
B75: 318 15 | C75: MARCHANDISES | D75: 3325 | E75: 665 | F75: 3990 | G75: 1008355 | H75: =INDEX(X!$H$2:$J$1000,MATCH($G75,X!$H$2:$H$1000,0),2) -> FOURNISSEUR 0010 | I75: =INDEX(X!$H$2:$J$1000,MATCH($G75,X!$H$2:$H$1000,0),3) -> 00091111004000064 | J75: 0.2 | K75: EFFET T 4955045 | L75: 2015-08-31 | M75: 2015-09-10 | N75: 2015-09-01 | O75: 5
B76: AV15000103 | C76: MARCHANDISES | D76: -383.33 | E76: -76.67 | F76: -460 | G76: 1008922 | H76: =INDEX(X!$H$2:$J$1000,MATCH($G76,X!$H$2:$H$1000,0),2) -> FOURNISSEUR 0019 | I76: =INDEX(X!$H$2:$J$1000,MATCH($G76,X!$H$2:$H$1000,0),3) -> 00181111004000073 | J76: 0.2 | K76: EFFET T 5202230 | L76: 2015-09-20 | M76: 2015-05-30 | N76: 2015-09-01 | O76: 5
B77: 15051667 | C77: MARCHANDISES | D77: 21273.33 | E77: 4254.67 | F77: 25528 | G77: 1008922 | H77: =INDEX(X!$H$2:$J$1000,MATCH($G77,X!$H$2:$H$1000,0),2) -> FOURNISSEUR 0019 | I77: =INDEX(X!$H$2:$J$1000,MATCH($G77,X!$H$2:$H$1000,0),3) -> 00181111004000073 | J77: 0.2 | K77: EFFET T 5202230 | L77: 2015-09-20 | M77: 2015-05-31 | N77: 2015-09-01 | O77: 5
B78: 15051668 | C78: MARCHANDISES | D78: 10476.67 | E78: 2095.33 | F78: 12572 | G78: 1008922 | H78: =INDEX(X!$H$2:$J$1000,MATCH($G78,X!$H$2:$H$1000,0),2) -> FOURNISSEUR 0019 | I78: =INDEX(X!$H$2:$J$1000,MATCH($G78,X!$H$2:$H$1000,0),3) -> 00181111004000073 | J78: 0.2 | K78: EFFET T 5202230 | L78: 2015-09-20 | M78: 2015-05-31 | N78: 2015-09-01 | O78: 5
B79: 15F0621 | C79: MARCHANDISES | D79: 2128.33 | E79: 425.67 | F79: 2554 | G79: 1009552 | H79: =INDEX(X!$H$2:$J$1000,MATCH($G79,X!$H$2:$H$1000,0),2) -> FOURNISSEUR 0029 | I79: =INDEX(X!$H$2:$J$1000,MATCH($G79,X!$H$2:$H$1000,0),3) -> 00281111004000083 | J79: 0.2 | K79: EFF 4955033 | L79: 2015-07-30 | M79: 2015-06-29 | N79: 2015-10-01 | O79: 5
B80: 507121 | C80: MARCHANDISES | D80: 8125 | E80: 1625 | F80: 9750 | G80: 1009678 | H80: =INDEX(X!$H$2:$J$1000,MATCH($G80,X!$H$2:$H$1000,0),2) -> FOURNISSEUR 0031 | I80: =INDEX(X!$H$2:$J$1000,MATCH($G80,X!$H$2:$H$1000,0),3) -> 00301111004000085 | J80: 0.2 | K80: EFFET 04955037 | L80: 2015-08-31 | M80: 2015-07-31 | N80: 2015-10-01 | O80: 5
B81: 152/15 | C81: MARCHANDISES | D81: 4300 | E81: 860 | F81: 5160 | G81: 1008670 | H81: =INDEX(X!$H$2:$J$1000,MATCH($G81,X!$H$2:$H$1000,0),2) -> FOURNISSEUR 0015 | I81: =INDEX(X!$H$2:$J$1000,MATCH($G81,X!$H$2:$H$1000,0),3) -> 00141111004000069 | J81: 0.2 | K81: EFFET 4955038 | L81: 2015-08-31 | M81: 2015-08-20 | N81: 2015-10-01 | O81: 5
B82: F1508003452 | C82: MARCHANDISES | D82: 2010 | E82: 402 | F82: 2412 | G82: 1008607 | H82: =INDEX(X!$H$2:$J$1000,MATCH($G82,X!$H$2:$H$1000,0),2) -> FOURNISSEUR 0014 | I82: =INDEX(X!$H$2:$J$1000,MATCH($G82,X!$H$2:$H$1000,0),3) -> 00131111004000068 | J82: 0.2 | K82: CHQ 03755739 | L82: 2015-09-11 | M82: 2015-08-10 | N82: 2015-10-01 | O82: 2
B83: 15062128 | C83: MARCHANDISES | D83: 19958.33 | E83: 3991.67 | F83: 23950 | G83: 1008922 | H83: =INDEX(X!$H$2:$J$1000,MATCH($G83,X!$H$2:$H$1000,0),2) -> FOURNISSEUR 0019 | I83: =INDEX(X!$H$2:$J$1000,MATCH($G83,X!$H$2:$H$1000,0),3) -> 00181111004000073 | J83: 0.2 | K83: EFFET 05202232 | L83: 2015-10-28 | M83: 2015-06-30 | N83: 2015-10-01 | O83: 5
B84: 15072538 | C84: MARCHANDISES | D84: 2987.5 | E84: 597.5 | F84: 3585 | G84: 1008922 | H84: =INDEX(X!$H$2:$J$1000,MATCH($G84,X!$H$2:$H$1000,0),2) -> FOURNISSEUR 0019 | I84: =INDEX(X!$H$2:$J$1000,MATCH($G84,X!$H$2:$H$1000,0),3) -> 00181111004000073 | J84: 0.2 | K84: EFFET 05202232 | L84: 2015-10-28 | M84: 2015-07-31 | N84: 2015-10-01 | O84: 5
B85: 1506-2441 | C85: MARCHANDISES | D85: 2666.67 | E85: 533.33 | F85: 3200 | G85: 1008418 | H85: =INDEX(X!$H$2:$J$1000,MATCH($G85,X!$H$2:$H$1000,0),2) -> FOURNISSEUR 0011 | I85: =INDEX(X!$H$2:$J$1000,MATCH($G85,X!$H$2:$H$1000,0),3) -> 00101111004000065 | J85: 0.2 | K85: EFFET T 4955041 | L85: 2015-06-26 | M85: 2015-06-25 | N85: 2015-11-01 | O85: 5
B86: 15062415 | C86: MARCHANDISES | D86: 16458.33 | E86: 3291.67 | F86: 19750 | G86: 1008922 | H86: =INDEX(X!$H$2:$J$1000,MATCH($G86,X!$H$2:$H$1000,0),2) -> FOURNISSEUR 0019 | I86: =INDEX(X!$H$2:$J$1000,MATCH($G86,X!$H$2:$H$1000,0),3) -> 00181111004000073 | J86: 0.2 | K86: EFFET T 5202202 | L86: 2015-09-30 | M86: 2015-06-30 | N86: 2015-11-01 | O86: 5
B87: 165/15 | C87: MARCHANDISES | D87: 3883.33 | E87: 776.67 | F87: 4660 | G87: 1008670 | H87: =INDEX(X!$H$2:$J$1000,MATCH($G87,X!$H$2:$H$1000,0),2) -> FOURNISSEUR 0015 | I87: =INDEX(X!$H$2:$J$1000,MATCH($G87,X!$H$2:$H$1000,0),3) -> 00141111004000069 | J87: 0.2 | K87: EFFET T 4955049 | L87: 2015-09-30 | M87: 2015-09-28 | N87: 2015-11-01 | O87: 5
B88: 1509-4878 | C88: MARCHANDISES | D88: 1500 | E88: 300 | F88: 1800 | G88: 1009174 | H88: =INDEX(X!$H$2:$J$1000,MATCH($G88,X!$H$2:$H$1000,0),2) -> FOURNISSEUR 0023 | I88: =INDEX(X!$H$2:$J$1000,MATCH($G88,X!$H$2:$H$1000,0),3) -> 00221111004000077 | J88: 0.2 | K88: EFFET T 5202215 | L88: 2015-09-30 | M88: 2015-09-29 | N88: 2015-11-01 | O88: 5
B89: 15F0934 | C89: MARCHANDISES | D89: 3723.5 | E89: 744.7 | F89: 4468.2 | G89: 1009552 | H89: =INDEX(X!$H$2:$J$1000,MATCH($G89,X!$H$2:$H$1000,0),2) -> FOURNISSEUR 0029 | I89: =INDEX(X!$H$2:$J$1000,MATCH($G89,X!$H$2:$H$1000,0),3) -> 00281111004000083 | J89: 0.2 | K89: EFFET T 5202208 | L89: 2015-10-11 | M89: 2015-09-30 | N89: 2015-11-01 | O89: 5
B90: 171/15 | C90: MARCHANDISES | D90: 4375 | E90: 875 | F90: 5250 | G90: 1008670 | H90: =INDEX(X!$H$2:$J$1000,MATCH($G90,X!$H$2:$H$1000,0),2) -> FOURNISSEUR 0015 | I90: =INDEX(X!$H$2:$J$1000,MATCH($G90,X!$H$2:$H$1000,0),3) -> 00141111004000069 | J90: 0.2 | K90: EFFET T 5202211 | L90: 2015-10-15 | M90: 2015-10-23 | N90: 2015-11-01 | O90: 5
B91: 1511-3914 | C91: MARCHANDISES | D91: 4354.17 | E91: 870.83 | F91: 5225 | G91: 1008418 | H91: =INDEX(X!$H$2:$J$1000,MATCH($G91,X!$H$2:$H$1000,0),2) -> FOURNISSEUR 0011 | I91: =INDEX(X!$H$2:$J$1000,MATCH($G91,X!$H$2:$H$1000,0),3) -> 00101111004000065 | J91: 0.2 | K91: EFFET T 5202220 | L91: 2015-11-20 | M91: 2015-11-27 | N91: 2015-11-01 | O91: 5
B92: 76-2015 | C92: MARCHANDISES | D92: 135 | E92: 27 | F92: 162 | G92: 1009426 | H92: =INDEX(X!$H$2:$J$1000,MATCH($G92,X!$H$2:$H$1000,0),2) -> FOURNISSEUR 0027 | I92: =INDEX(X!$H$2:$J$1000,MATCH($G92,X!$H$2:$H$1000,0),3) -> 00261111004000081 | J92: 0.2 | K92: CHQ 3755735 | L92: 2015-06-30 | M92: 2015-02-28 | N92: 2015-12-01 | O92: 2
B93: 132/2015 | C93: MARCHANDISES | D93: 100 | E93: 20 | F93: 120 | G93: 1009426 | H93: =INDEX(X!$H$2:$J$1000,MATCH($G93,X!$H$2:$H$1000,0),2) -> FOURNISSEUR 0027 | I93: =INDEX(X!$H$2:$J$1000,MATCH($G93,X!$H$2:$H$1000,0),3) -> 00261111004000081 | J93: 0.2 | K93: CHQ 3755735 | L93: 2015-06-30 | M93: 2015-03-31 | N93: 2015-12-01 | O93: 2
B94: 222-2015 | C94: MARCHANDISES | D94: 1730.83 | E94: 346.17 | F94: 2077 | G94: 1009426 | H94: =INDEX(X!$H$2:$J$1000,MATCH($G94,X!$H$2:$H$1000,0),2) -> FOURNISSEUR 0027 | I94: =INDEX(X!$H$2:$J$1000,MATCH($G94,X!$H$2:$H$1000,0),3) -> 00261111004000081 | J94: 0.2 | K94: CHQ 3755735 | L94: 2015-06-30 | M94: 2015-04-30 | N94: 2015-12-01 | O94: 2
B95: 506128 | C95: MARCHANDISES | D95: 6879.17 | E95: 1375.83 | F95: 8255 | G95: 1009678 | H95: =INDEX(X!$H$2:$J$1000,MATCH($G95,X!$H$2:$H$1000,0),2) -> FOURNISSEUR 0031 | I95: =INDEX(X!$H$2:$J$1000,MATCH($G95,X!$H$2:$H$1000,0),3) -> 00301111004000085 | J95: 0.2 | K95: EFFET 5202214 | L95: 2015-11-01 | M95: 2015-06-30 | N95: 2015-12-01 | O95: 5
B96: AVOIR 130 | C96: MARCHANDISES | D96: -100 | E96: -20 | F96: -120 | G96: 1009678 | H96: =INDEX(X!$H$2:$J$1000,MATCH($G96,X!$H$2:$H$1000,0),2) -> FOURNISSEUR 0031 | I96: =INDEX(X!$H$2:$J$1000,MATCH($G96,X!$H$2:$H$1000,0),3) -> 00301111004000085 | J96: 0.2 | K96: EFFET 5202214 | L96: 2015-11-01 | M96: 2015-06-30 | N96: 2015-12-01 | O96: 5
B97: 50792 | C97: MARCHANDISES | D97: 3108.33 | E97: 621.67 | F97: 3730 | G97: 1009678 | H97: =INDEX(X!$H$2:$J$1000,MATCH($G97,X!$H$2:$H$1000,0),2) -> FOURNISSEUR 0031 | I97: =INDEX(X!$H$2:$J$1000,MATCH($G97,X!$H$2:$H$1000,0),3) -> 00301111004000085 | J97: 0.2 | K97: EFFET 5202214 | L97: 2015-11-01 | M97: 2015-07-31 | N97: 2015-12-01 | O97: 5
B98: AVOIR 111 | C98: MARCHANDISES | D98: -135.42 | E98: -27.08 | F98: -162.5 | G98: 1009678 | H98: =INDEX(X!$H$2:$J$1000,MATCH($G98,X!$H$2:$H$1000,0),2) -> FOURNISSEUR 0031 | I98: =INDEX(X!$H$2:$J$1000,MATCH($G98,X!$H$2:$H$1000,0),3) -> 00301111004000085 | J98: 0.2 | K98: EFFET 5202214 | L98: 2015-11-01 | M98: 2015-07-31 | N98: 2015-12-01 | O98: 5
B99: FA2452 | C99: MARCHANDISES | D99: 10000 | E99: 2000 | F99: 12000 | G99: 1009237 | H99: =INDEX(X!$H$2:$J$1000,MATCH($G99,X!$H$2:$H$1000,0),2) -> FOURNISSEUR 0024 | I99: =INDEX(X!$H$2:$J$1000,MATCH($G99,X!$H$2:$H$1000,0),3) -> 00231111004000078 | J99: 0.2 | K99: EFFET 5202210 | L99: 2015-11-01 | M99: 2015-11-03 | N99: 2015-12-01 | O99: 5
B100: F7420112015 | C100: MARCHANDISES | D100: 2500 | E100: 500 | F100: 3000 | G100: 1007851 | H100: =INDEX(X!$H$2:$J$1000,MATCH($G100,X!$H$2:$H$1000,0),2) -> FOURNISSEUR 0002 | I100: =INDEX(X!$H$2:$J$1000,MATCH($G100,X!$H$2:$H$1000,0),3) -> 00011111004000056 | J100: 0.2 | K100: CHQ 4386131 | L100: 2015-11-13 | M100: 2015-11-20 | N100: 2015-12-01 | O100: 2
B101: FA-15082840 | C101: MARCHANDISES | D101: 14323.75 | E101: 2864.75 | F101: 17188.5 | G101: 1008922 | H101: =INDEX(X!$H$2:$J$1000,MATCH($G101,X!$H$2:$H$1000,0),2) -> FOURNISSEUR 0019 | I101: =INDEX(X!$H$2:$J$1000,MATCH($G101,X!$H$2:$H$1000,0),3) -> 00181111004000073 | J101: 0.2 | K101: EFFET 5202245 | L101: 2015-11-30 | M101: 2015-08-31 | N101: 2015-12-01 | O101: 5
B102: FA-15083113 | C102: MARCHANDISES | D102: 22910.77 | E102: 4582.15 | F102: 27492.92 | G102: 1008922 | H102: =INDEX(X!$H$2:$J$1000,MATCH($G102,X!$H$2:$H$1000,0),2) -> FOURNISSEUR 0019 | I102: =INDEX(X!$H$2:$J$1000,MATCH($G102,X!$H$2:$H$1000,0),3) -> 00181111004000073 | J102: 0.2 | K102: EFFET 5202229 | L102: 2015-12-15 | M102: 2015-08-31 | N102: 2015-12-01 | O102: 5
B103: FA-15093247 | C103: MARCHANDISES | D103: 14388.33 | E103: 2877.67 | F103: 17266 | G103: 1008922 | H103: =INDEX(X!$H$2:$J$1000,MATCH($G103,X!$H$2:$H$1000,0),2) -> FOURNISSEUR 0019 | I103: =INDEX(X!$H$2:$J$1000,MATCH($G103,X!$H$2:$H$1000,0),3) -> 00181111004000073 | J103: 0.2 | K103: EFFET 5202246 | L103: 2015-12-28 | M103: 2015-09-30 | N103: 2015-12-01 | O103: 5
B104: 508 81 | C104: MARCHANDISES | D104: 2183.33 | E104: 436.67 | F104: 2620 | G104: 1009678 | H104: =INDEX(X!$H$2:$J$1000,MATCH($G104,X!$H$2:$H$1000,0),2) -> FOURNISSEUR 0031 | I104: =INDEX(X!$H$2:$J$1000,MATCH($G104,X!$H$2:$H$1000,0),3) -> 00301111004000085 | J104: 0.2 | K104: EFFET 5202240 | L104: 2015-12-30 | M104: 2015-08-31 | N104: 2015-12-01 | O104: 5
B105: FA 1514536 | C105: MARCHANDISES | D105: 16666.67 | E105: 3333.33 | F105: 20000 | G105: 1009048 | H105: =INDEX(X!$H$2:$J$1000,MATCH($G105,X!$H$2:$H$1000,0),2) -> FOURNISSEUR 0021 | I105: =INDEX(X!$H$2:$J$1000,MATCH($G105,X!$H$2:$H$1000,0),3) -> 00201111004000075 | J105: 0.2 | K105: EFFET 5202228 | L105: 2015-12-31 | M105: 2015-08-31 | N105: 2015-12-01 | O105: 5
B106: FA2478 | C106: MARCHANDISES | D106: 16666.67 | E106: 3333.33 | F106: 20000 | G106: 1009237 | H106: =INDEX(X!$H$2:$J$1000,MATCH($G106,X!$H$2:$H$1000,0),2) -> FOURNISSEUR 0024 | I106: =INDEX(X!$H$2:$J$1000,MATCH($G106,X!$H$2:$H$1000,0),3) -> 00231111004000078 | J106: 0.2 | K106: EFFET T 5202227 | L106: 2016-01-04 | M106: 2016-01-04 | N106: 2016-01-01 | O106: 5
B107: FA2440 | C107: MARCHANDISES | D107: 18583.33 | E107: 3716.67 | F107: 22300 | G107: 1009237 | H107: =INDEX(X!$H$2:$J$1000,MATCH($G107,X!$H$2:$H$1000,0),2) -> FOURNISSEUR 0024 | I107: =INDEX(X!$H$2:$J$1000,MATCH($G107,X!$H$2:$H$1000,0),3) -> 00231111004000078 | J107: 0.2 | K107: EFFET 4955046 | L107: 2016-01-07 | M107: 2015-10-09 | N107: 2016-01-01 | O107: 5
B108: FA15/606 | C108: MARCHANDISES | D108: 333.33 | E108: 66.67 | F108: 400 | G108: 1009615 | H108: =INDEX(X!$H$2:$J$1000,MATCH($G108,X!$H$2:$H$1000,0),2) -> FOURNISSEUR 0030 | I108: =INDEX(X!$H$2:$J$1000,MATCH($G108,X!$H$2:$H$1000,0),3) -> 00291111004000084 | J108: 0.2 | K108: CHQ 4386138 | L108: 2016-01-07 | M108: 2015-12-15 | N108: 2016-01-01 | O108: 2
B109: FA/15/12/138 | C109: MARCHANDISES | D109: 1052 | E109: 210.4 | F109: 1262.4 | G109: 1009741 | H109: =INDEX(X!$H$2:$J$1000,MATCH($G109,X!$H$2:$H$1000,0),2) -> FOURNISSEUR 0032 | I109: =INDEX(X!$H$2:$J$1000,MATCH($G109,X!$H$2:$H$1000,0),3) -> 00311111004000086 | J109: 0.2 | K109: EFFET T 5438864 | L109: 2016-01-07 | M109: 2015-12-30 | N109: 2016-01-01 | O109: 5
B110: 1186 | C110: MARCHANDISES | D110: 3000 | E110: 600 | F110: 3600 | G110: 1009804 | H110: =INDEX(X!$H$2:$J$1000,MATCH($G110,X!$H$2:$H$1000,0),2) -> FOURNISSEUR 0033 | I110: =INDEX(X!$H$2:$J$1000,MATCH($G110,X!$H$2:$H$1000,0),3) -> 00321111004000087 | J110: 0.2 | K110: EFFET 52022215 | L110: 2016-01-19 | M110: 2015-12-31 | N110: 2016-01-01 | O110: 5
B111: 510104 | C111: MARCHANDISES | D111: 9252.5 | E111: 1850.5 | F111: 11103 | G111: 1009678 | H111: =INDEX(X!$H$2:$J$1000,MATCH($G111,X!$H$2:$H$1000,0),2) -> FOURNISSEUR 0031 | I111: =INDEX(X!$H$2:$J$1000,MATCH($G111,X!$H$2:$H$1000,0),3) -> 00301111004000085 | J111: 0.2 | K111: EFFET T 5483858 | L111: 2016-02-01 | M111: 2015-10-31 | N111: 2016-02-01 | O111: 5
B112: 5102 | C112: MARCHANDISES | D112: 19011.67 | E112: 3802.33 | F112: 22814 | G112: 1008733 | H112: =INDEX(X!$H$2:$J$1000,MATCH($G112,X!$H$2:$H$1000,0),2) -> FOURNISSEUR 0016 | I112: =INDEX(X!$H$2:$J$1000,MATCH($G112,X!$H$2:$H$1000,0),3) -> 00151111004000070 | J112: 0.2 | K112: EFFET T 5202241 | L112: 2016-02-01 | M112: 2015-10-31 | N112: 2016-02-01 | O112: 5
B113: 1514581 | C113: MARCHANDISES | D113: 8333.33 | E113: 1666.67 | F113: 10000 | G113: 1009048 | H113: =INDEX(X!$H$2:$J$1000,MATCH($G113,X!$H$2:$H$1000,0),2) -> FOURNISSEUR 0021 | I113: =INDEX(X!$H$2:$J$1000,MATCH($G113,X!$H$2:$H$1000,0),3) -> 00201111004000075 | J113: 0.2 | K113: EFFET T 5202236 | L113: 2016-02-01 | M113: 2015-10-31 | N113: 2016-02-01 | O113: 5
B114: 150000165 | C114: MARCHANDISES | D114: 2408.5 | E114: 481.7 | F114: 2890.2 | G114: 1009426 | H114: =INDEX(X!$H$2:$J$1000,MATCH($G114,X!$H$2:$H$1000,0),2) -> FOURNISSEUR 0027 | I114: =INDEX(X!$H$2:$J$1000,MATCH($G114,X!$H$2:$H$1000,0),3) -> 00261111004000081 | J114: 0.2 | K114: EFFET T 5483857 | L114: 2016-02-15 | M114: 2015-10-31 | N114: 2016-02-01 | O114: 5
B115: 150000182 | C115: MARCHANDISES | D115: 194 | E115: 38.8 | F115: 232.8 | G115: 1009426 | H115: =INDEX(X!$H$2:$J$1000,MATCH($G115,X!$H$2:$H$1000,0),2) -> FOURNISSEUR 0027 | I115: =INDEX(X!$H$2:$J$1000,MATCH($G115,X!$H$2:$H$1000,0),3) -> 00261111004000081 | J115: 0.2 | K115: EFFET T 5483857 | L115: 2016-02-15 | M115: 2015-11-30 | N115: 2016-02-01 | O115: 5
B116: 15103629 | C116: MARCHANDISES | D116: 12841.33 | E116: 2568.27 | F116: 15409.6 | G116: 1008922 | H116: =INDEX(X!$H$2:$J$1000,MATCH($G116,X!$H$2:$H$1000,0),2) -> FOURNISSEUR 0019 | I116: =INDEX(X!$H$2:$J$1000,MATCH($G116,X!$H$2:$H$1000,0),3) -> 00181111004000073 | J116: 0.2 | K116: EFFET T 5483869 | L116: 2016-02-23 | M116: 2015-10-31 | N116: 2016-02-01 | O116: 5
B117: 13145 | C117: MARCHANDISES | D117: 450 | E117: 90 | F117: 540 | G117: 1007977 | H117: =INDEX(X!$H$2:$J$1000,MATCH($G117,X!$H$2:$H$1000,0),2) -> FOURNISSEUR 0004 | I117: =INDEX(X!$H$2:$J$1000,MATCH($G117,X!$H$2:$H$1000,0),3) -> 00031111004000058 | J117: 0.2 | K117: CHQ 5721 | L117: 2016-02-26 | M117: 2015-01-14 | N117: 2016-02-01 | O117: 2
B118: 115/2015 | C118: MARCHANDISES | D118: 1666.67 | E118: 333.33 | F118: 2000 | G118: 1008166 | H118: =INDEX(X!$H$2:$J$1000,MATCH($G118,X!$H$2:$H$1000,0),2) -> FOURNISSEUR 0007 | I118: =INDEX(X!$H$2:$J$1000,MATCH($G118,X!$H$2:$H$1000,0),3) -> 00061111004000061 | J118: 0.2 | K118: EFFET T 5202201 | L118: 2016-02-26 | M118: 2015-08-12 | N118: 2016-02-01 | O118: 5
B119: 187/15 | C119: MARCHANDISES | D119: 3100 | E119: 620 | F119: 3720 | G119: 1008670 | H119: =INDEX(X!$H$2:$J$1000,MATCH($G119,X!$H$2:$H$1000,0),2) -> FOURNISSEUR 0015 | I119: =INDEX(X!$H$2:$J$1000,MATCH($G119,X!$H$2:$H$1000,0),3) -> 00141111004000069 | J119: 0.2 | K119: EFFET T 5202217 | L119: 2016-02-26 | M119: 2015-11-10 | N119: 2016-02-01 | O119: 5
B120: 188/2015 | C120: MARCHANDISES | D120: 2166.67 | E120: 433.33 | F120: 2600 | G120: 1008166 | H120: =INDEX(X!$H$2:$J$1000,MATCH($G120,X!$H$2:$H$1000,0),2) -> FOURNISSEUR 0007 | I120: =INDEX(X!$H$2:$J$1000,MATCH($G120,X!$H$2:$H$1000,0),3) -> 00061111004000061 | J120: 0.2 | K120: EFFET T 5202237 | L120: 2016-02-26 | M120: 2015-12-10 | N120: 2016-02-01 | O120: 5
B121: 023/12/HB2015 | C121: MARCHANDISES | D121: 1980 | E121: 396 | F121: 2376 | G121: 1009363 | H121: =INDEX(X!$H$2:$J$1000,MATCH($G121,X!$H$2:$H$1000,0),2) -> FOURNISSEUR 0026 | I121: =INDEX(X!$H$2:$J$1000,MATCH($G121,X!$H$2:$H$1000,0),3) -> 00251111004000080 | J121: 0.2 | K121: CHQ 6141 | L121: 2016-02-26 | M121: 2015-12-21 | N121: 2016-02-01 | O121: 2
B122: 1602000388 | C122: MARCHANDISES | D122: 1425 | E122: 285 | F122: 1710 | G122: 1008607 | H122: =INDEX(X!$H$2:$J$1000,MATCH($G122,X!$H$2:$H$1000,0),2) -> FOURNISSEUR 0014 | I122: =INDEX(X!$H$2:$J$1000,MATCH($G122,X!$H$2:$H$1000,0),3) -> 00131111004000068 | J122: 0.2 | K122: CHQ 4386149 | L122: 2016-02-26 | M122: 2016-02-03 | N122: 2016-02-01 | O122: 2
B123: 51149 | C123: MARCHANDISES | D123: 1312.5 | E123: 262.5 | F123: 1575 | G123: 1008733 | H123: =INDEX(X!$H$2:$J$1000,MATCH($G123,X!$H$2:$H$1000,0),2) -> FOURNISSEUR 0016 | I123: =INDEX(X!$H$2:$J$1000,MATCH($G123,X!$H$2:$H$1000,0),3) -> 00151111004000070 | J123: 0.2 | K123: EFFET T 5483859 | L123: 2016-02-29 | M123: 2015-11-30 | N123: 2016-02-01 | O123: 5
B124: 15114003 | C124: MARCHANDISES | D124: 9417.5 | E124: 1883.5 | F124: 11301 | G124: 1008922 | H124: =INDEX(X!$H$2:$J$1000,MATCH($G124,X!$H$2:$H$1000,0),2) -> FOURNISSEUR 0019 | I124: =INDEX(X!$H$2:$J$1000,MATCH($G124,X!$H$2:$H$1000,0),3) -> 00181111004000073 | J124: 0.2 | K124: EFFET T 5483870 | L124: 2016-02-29 | M124: 2015-11-30 | N124: 2016-02-01 | O124: 5
B125: 15114267 | C125: MARCHANDISES | D125: 12924.17 | E125: 2584.83 | F125: 15509 | G125: 1008922 | H125: =INDEX(X!$H$2:$J$1000,MATCH($G125,X!$H$2:$H$1000,0),2) -> FOURNISSEUR 0019 | I125: =INDEX(X!$H$2:$J$1000,MATCH($G125,X!$H$2:$H$1000,0),3) -> 00181111004000073 | J125: 0.2 | K125: EFFET T 5202244 | L125: 2016-02-29 | M125: 2015-11-30 | N125: 2016-02-01 | O125: 5
B126: 0021/16 | C126: MARCHANDISES | D126: 2737.5 | E126: 547.5 | F126: 3285 | G126: 1008670 | H126: =INDEX(X!$H$2:$J$1000,MATCH($G126,X!$H$2:$H$1000,0),2) -> FOURNISSEUR 0015 | I126: =INDEX(X!$H$2:$J$1000,MATCH($G126,X!$H$2:$H$1000,0),3) -> 00141111004000069 | J126: 0.2 | K126: EFFET T 05202239 | L126: 2016-01-18 | M126: 2016-01-05 | N126: 2016-03-01 | O126: 5
B127: FA2490 | C127: MARCHANDISES | D127: 6583.33 | E127: 1316.67 | F127: 7900 | G127: 1009237 | H127: =INDEX(X!$H$2:$J$1000,MATCH($G127,X!$H$2:$H$1000,0),2) -> FOURNISSEUR 0024 | I127: =INDEX(X!$H$2:$J$1000,MATCH($G127,X!$H$2:$H$1000,0),3) -> 00231111004000078 | J127: 0.2 | K127: EFFET T 2235 | L127: 2016-02-01 | M127: 2016-02-01 | N127: 2016-03-01 | O127: 5
B128: 0022/16 | C128: MARCHANDISES | D128: 4916.67 | E128: 983.33 | F128: 5900 | G128: 1008670 | H128: =INDEX(X!$H$2:$J$1000,MATCH($G128,X!$H$2:$H$1000,0),2) -> FOURNISSEUR 0015 | I128: =INDEX(X!$H$2:$J$1000,MATCH($G128,X!$H$2:$H$1000,0),3) -> 00141111004000069 | J128: 0.2 | K128: EFFET T 05202248 | L128: 2016-02-29 | M128: 2016-02-15 | N128: 2016-03-01 | O128: 5
B129: FA2504 | C129: MARCHANDISES | D129: 12833.33 | E129: 2566.67 | F129: 15400 | G129: 1009237 | H129: =INDEX(X!$H$2:$J$1000,MATCH($G129,X!$H$2:$H$1000,0),2) -> FOURNISSEUR 0024 | I129: =INDEX(X!$H$2:$J$1000,MATCH($G129,X!$H$2:$H$1000,0),3) -> 00231111004000078 | J129: 0.2 | K129: EFFET T 5202243 | L129: 2016-02-29 | M129: 2016-03-07 | N129: 2016-03-01 | O129: 5
B130: FA/15/12/0185 | C130: MARCHANDISES | D130: 437 | E130: 87.4 | F130: 524.4 | G130: 1009741 | H130: =INDEX(X!$H$2:$J$1000,MATCH($G130,X!$H$2:$H$1000,0),2) -> FOURNISSEUR 0032 | I130: =INDEX(X!$H$2:$J$1000,MATCH($G130,X!$H$2:$H$1000,0),3) -> 00311111004000086 | J130: 0.2 | K130: EFFET T 05483881 | L130: 2016-03-09 | M130: 2015-12-30 | N130: 2016-03-01 | O130: 5
B131: FA/15/12/0184 | C131: MARCHANDISES | D131: 3463.1 | E131: 692.62 | F131: 4155.72 | G131: 1009741 | H131: =INDEX(X!$H$2:$J$1000,MATCH($G131,X!$H$2:$H$1000,0),2) -> FOURNISSEUR 0032 | I131: =INDEX(X!$H$2:$J$1000,MATCH($G131,X!$H$2:$H$1000,0),3) -> 00311111004000086 | J131: 0.2 | K131: EFFET T 05483881 | L131: 2016-03-09 | M131: 2015-12-30 | N131: 2016-03-01 | O131: 5
B132: 1603-0662 | C132: MARCHANDISES | D132: 3916.67 | E132: 783.33 | F132: 4700 | G132: 1009174 | H132: =INDEX(X!$H$2:$J$1000,MATCH($G132,X!$H$2:$H$1000,0),2) -> FOURNISSEUR 0023 | I132: =INDEX(X!$H$2:$J$1000,MATCH($G132,X!$H$2:$H$1000,0),3) -> 00221111004000077 | J132: 0.2 | K132: EFFET T 5202250 | L132: 2016-03-15 | M132: 2016-03-11 | N132: 2016-03-01 | O132: 5
B133: 1603-0885 | C133: MARCHANDISES | D133: 2833.33 | E133: 566.67 | F133: 3400 | G133: 1008418 | H133: =INDEX(X!$H$2:$J$1000,MATCH($G133,X!$H$2:$H$1000,0),2) -> FOURNISSEUR 0011 | I133: =INDEX(X!$H$2:$J$1000,MATCH($G133,X!$H$2:$H$1000,0),3) -> 00101111004000065 | J133: 0.2 | K133: EFFET T 5202249 | L133: 2016-03-15 | M133: 2016-03-15 | N133: 2016-03-01 | O133: =IF(COUNTIF(K133,"*EF*"),5,IF(COUNTIF(K133,"*ES*"),1,IF(COUNTIF(K133,"*CH*"),2,IF(COUNTIF(K133,"*PR*"),3,IF(COUNTIF(K133,"*CO*"),6,IF(COUNTIF(K133,"*VI*"),4,7)))))) -> 5
B134: 150000216 | C134: MARCHANDISES | D134: 800 | E134: 160 | F134: 960 | G134: 1009426 | H134: =INDEX(X!$H$2:$J$1000,MATCH($G134,X!$H$2:$H$1000,0),2) -> FOURNISSEUR 0027 | I134: =INDEX(X!$H$2:$J$1000,MATCH($G134,X!$H$2:$H$1000,0),3) -> 00261111004000081 | J134: 0.2 | K134: EFFET T 05483860 | L134: 2016-03-30 | M134: 2015-12-28 | N134: 2016-03-01 | O134: 5
B135: 1603-732 | C135: MARCHANDISES | D135: 2968.33 | E135: 593.67 | F135: 3562 | G135: 1009174 | H135: =INDEX(X!$H$2:$J$1000,MATCH($G135,X!$H$2:$H$1000,0),2) -> FOURNISSEUR 0023 | I135: =INDEX(X!$H$2:$J$1000,MATCH($G135,X!$H$2:$H$1000,0),3) -> 00221111004000077 | J135: 0.2 | K135: EFFET T 5483862 | L135: 2016-03-31 | M135: 2016-03-29 | N135: 2016-03-01 | O135: 5
B136: 1603-0753 | C136: MARCHANDISES | D136: 1333.33 | E136: 266.67 | F136: 1600 | G136: 1009174 | H136: =INDEX(X!$H$2:$J$1000,MATCH($G136,X!$H$2:$H$1000,0),2) -> FOURNISSEUR 0023 | I136: =INDEX(X!$H$2:$J$1000,MATCH($G136,X!$H$2:$H$1000,0),3) -> 00221111004000077 | J136: 0.2 | K136: EFFET T 5483875 | L136: 2016-03-31 | M136: 2016-03-29 | N136: 2016-03-01 | O136: 5
B137: FF562978022015 | C137: PRES DE SERVICES | D137: 169 | E137: 33.8 | F137: 202.8 | G137: 1009300 | H137: =INDEX(X!$H$2:$J$1000,MATCH($G137,X!$H$2:$H$1000,0),2) -> FOURNISSEUR 0025 | I137: =INDEX(X!$H$2:$J$1000,MATCH($G137,X!$H$2:$H$1000,0),3) -> 00241111004000079 | J137: 0.2 | K137: CHQ 326674 | L137: 2015-01-10 | M137: 2015-01-01 | N137: 2016-04-01 | O137: 2
B138: FF562979022015 | C138: PRES DE SERVICES | D138: 82.5 | E138: 16.5 | F138: 99 | G138: 1009300 | H138: =INDEX(X!$H$2:$J$1000,MATCH($G138,X!$H$2:$H$1000,0),2) -> FOURNISSEUR 0025 | I138: =INDEX(X!$H$2:$J$1000,MATCH($G138,X!$H$2:$H$1000,0),3) -> 00241111004000079 | J138: 0.2 | K138: CHQ 326674 | L138: 2015-01-10 | M138: 2015-01-01 | N138: 2016-04-01 | O138: 2
B139: 379548032015 | C139: PRES DE SERVICES | D139: 264 | E139: 52.8 | F139: 316.8 | G139: 1009300 | H139: =INDEX(X!$H$2:$J$1000,MATCH($G139,X!$H$2:$H$1000,0),2) -> FOURNISSEUR 0025 | I139: =INDEX(X!$H$2:$J$1000,MATCH($G139,X!$H$2:$H$1000,0),3) -> 00241111004000079 | J139: 0.2 | K139: CHQ 326674 | L139: 2015-01-10 | M139: 2015-02-01 | N139: 2016-04-01 | O139: 2
B140: 16F0313 | C140: MARCHANDISES | D140: 4725 | E140: 945 | F140: 5670 | G140: 1009552 | H140: =INDEX(X!$H$2:$J$1000,MATCH($G140,X!$H$2:$H$1000,0),2) -> FOURNISSEUR 0029 | I140: =INDEX(X!$H$2:$J$1000,MATCH($G140,X!$H$2:$H$1000,0),3) -> 00281111004000083 | J140: 0.2 | K140: EFFET T 5483863 | L140: 2015-03-30 | M140: 2016-03-17 | N140: 2016-04-01 | O140: 5
B141: 793419032015 | C141: PRES DE SERVICES | D141: 169 | E141: 33.8 | F141: 202.8 | G141: 1009300 | H141: =INDEX(X!$H$2:$J$1000,MATCH($G141,X!$H$2:$H$1000,0),2) -> FOURNISSEUR 0025 | I141: =INDEX(X!$H$2:$J$1000,MATCH($G141,X!$H$2:$H$1000,0),3) -> 00241111004000079 | J141: 0.2 | K141: CHQ 3755759 | L141: 2015-04-01 | M141: 2015-02-01 | N141: 2016-04-01 | O141: 2
B142: 793420032015 | C142: PRES DE SERVICES | D142: 82.5 | E142: 16.5 | F142: 99 | G142: 1009300 | H142: =INDEX(X!$H$2:$J$1000,MATCH($G142,X!$H$2:$H$1000,0),2) -> FOURNISSEUR 0025 | I142: =INDEX(X!$H$2:$J$1000,MATCH($G142,X!$H$2:$H$1000,0),3) -> 00241111004000079 | J142: 0.2 | K142: CHQ 3755759 | L142: 2015-04-01 | M142: 2015-02-01 | N142: 2016-04-01 | O142: 2
B143: 379548032015 | C143: PRES DE SERVICES | D143: 264 | E143: 52.8 | F143: 316.8 | G143: 1009300 | H143: =INDEX(X!$H$2:$J$1000,MATCH($G143,X!$H$2:$H$1000,0),2) -> FOURNISSEUR 0025 | I143: =INDEX(X!$H$2:$J$1000,MATCH($G143,X!$H$2:$H$1000,0),3) -> 00241111004000079 | J143: 0.2 | K143: CHQ 3755759 | L143: 2015-04-01 | M143: 2015-03-11 | N143: 2016-04-01 | O143: 2
B144: 120150506599 | C144: ELECTRICITE | D144: 83.58 | E144: 16.72 | F144: 100.3 | G144: 1008040 | H144: =INDEX(X!$H$2:$J$1000,MATCH($G144,X!$H$2:$H$1000,0),2) -> FOURNISSEUR 0005 | I144: =INDEX(X!$H$2:$J$1000,MATCH($G144,X!$H$2:$H$1000,0),3) -> 00041111004000059 | J144: 0.14 | K144: ESPECES | L144: 2015-04-07 | M144: 2015-03-15 | N144: 2016-04-01 | O144: 1
B145: 425569042015 | C145: PRES DE SERVICES | D145: 264 | E145: 52.8 | F145: 316.8 | G145: 1009300 | H145: =INDEX(X!$H$2:$J$1000,MATCH($G145,X!$H$2:$H$1000,0),2) -> FOURNISSEUR 0025 | I145: =INDEX(X!$H$2:$J$1000,MATCH($G145,X!$H$2:$H$1000,0),3) -> 00241111004000079 | J145: 0.2 | K145: ESPECES | L145: 2015-04-30 | M145: 2015-04-08 | N145: 2016-04-01 | O145: 1
B146: 813820042015 | C146: PRES DE SERVICES | D146: 169 | E146: 33.8 | F146: 202.8 | G146: 1009300 | H146: =INDEX(X!$H$2:$J$1000,MATCH($G146,X!$H$2:$H$1000,0),2) -> FOURNISSEUR 0025 | I146: =INDEX(X!$H$2:$J$1000,MATCH($G146,X!$H$2:$H$1000,0),3) -> 00241111004000079 | J146: 0.2 | K146: CHQ 3755733 | L146: 2015-06-02 | M146: 2015-03-01 | N146: 2016-04-01 | O146: 2
B147: 813821042015 | C147: PRES DE SERVICES | D147: 82.5 | E147: 16.5 | F147: 99 | G147: 1009300 | H147: =INDEX(X!$H$2:$J$1000,MATCH($G147,X!$H$2:$H$1000,0),2) -> FOURNISSEUR 0025 | I147: =INDEX(X!$H$2:$J$1000,MATCH($G147,X!$H$2:$H$1000,0),3) -> 00241111004000079 | J147: 0.2 | K147: CHQ 3755733 | L147: 2015-06-02 | M147: 2015-03-01 | N147: 2016-04-01 | O147: 2
B148: 448052052015 | C148: PRES DE SERVICES | D148: 264 | E148: 52.8 | F148: 316.8 | G148: 1009300 | H148: =INDEX(X!$H$2:$J$1000,MATCH($G148,X!$H$2:$H$1000,0),2) -> FOURNISSEUR 0025 | I148: =INDEX(X!$H$2:$J$1000,MATCH($G148,X!$H$2:$H$1000,0),3) -> 00241111004000079 | J148: 0.2 | K148: CHQ 3755733 | L148: 2015-06-02 | M148: 2015-05-12 | N148: 2016-04-01 | O148: 2
B149: 220150506599 | C149: ELECTRICITE | D149: 69.48 | E149: 10.64 | F149: 83.37 | G149: 1008040 | H149: =INDEX(X!$H$2:$J$1000,MATCH($G149,X!$H$2:$H$1000,0),2) -> FOURNISSEUR 0005 | I149: =INDEX(X!$H$2:$J$1000,MATCH($G149,X!$H$2:$H$1000,0),3) -> 00041111004000059 | J149: 0.14 | K149: ESPECES | L149: 2015-06-15 | M149: 2015-04-14 | N149: 2016-04-01 | O149: 1
B150: 812247052015 | C150: PRES DE SERVICES | D150: 169 | E150: 33.8 | F150: 202.8 | G150: 1009300 | H150: =INDEX(X!$H$2:$J$1000,MATCH($G150,X!$H$2:$H$1000,0),2) -> FOURNISSEUR 0025 | I150: =INDEX(X!$H$2:$J$1000,MATCH($G150,X!$H$2:$H$1000,0),3) -> 00241111004000079 | J150: 0.2 | K150: CHQ 3755737 | L150: 2015-07-02 | M150: 2015-04-01 | N150: 2016-04-01 | O150: 2
B151: 812248052015 | C151: PRES DE SERVICES | D151: 82.5 | E151: 16.5 | F151: 99 | G151: 1009300 | H151: =INDEX(X!$H$2:$J$1000,MATCH($G151,X!$H$2:$H$1000,0),2) -> FOURNISSEUR 0025 | I151: =INDEX(X!$H$2:$J$1000,MATCH($G151,X!$H$2:$H$1000,0),3) -> 00241111004000079 | J151: 0.2 | K151: CHQ 3755737 | L151: 2015-07-02 | M151: 2015-04-01 | N151: 2016-04-01 | O151: 2
B152: 321934062015 | C152: PRES DE SERVICES | D152: 264 | E152: 52.8 | F152: 316.8 | G152: 1009300 | H152: =INDEX(X!$H$2:$J$1000,MATCH($G152,X!$H$2:$H$1000,0),2) -> FOURNISSEUR 0025 | I152: =INDEX(X!$H$2:$J$1000,MATCH($G152,X!$H$2:$H$1000,0),3) -> 00241111004000079 | J152: 0.2 | K152: CHQ 3755737 | L152: 2015-07-02 | M152: 2015-06-13 | N152: 2016-04-01 | O152: 2
B153: 1962584062015 | C153: PRES DE SERVICES | D153: 169 | E153: 33.8 | F153: 202.8 | G153: 1009300 | H153: =INDEX(X!$H$2:$J$1000,MATCH($G153,X!$H$2:$H$1000,0),2) -> FOURNISSEUR 0025 | I153: =INDEX(X!$H$2:$J$1000,MATCH($G153,X!$H$2:$H$1000,0),3) -> 00241111004000079 | J153: 0.2 | K153: CHQ 3755738 | L153: 2015-08-03 | M153: 2015-05-01 | N153: 2016-04-01 | O153: 2
B154: 1962585062015 | C154: PRES DE SERVICES | D154: 82.5 | E154: 16.5 | F154: 99 | G154: 1009300 | H154: =INDEX(X!$H$2:$J$1000,MATCH($G154,X!$H$2:$H$1000,0),2) -> FOURNISSEUR 0025 | I154: =INDEX(X!$H$2:$J$1000,MATCH($G154,X!$H$2:$H$1000,0),3) -> 00241111004000079 | J154: 0.2 | K154: CHQ 3755738 | L154: 2015-08-03 | M154: 2015-05-01 | N154: 2016-04-01 | O154: 2
B155: 941024072015 | C155: PRES DE SERVICES | D155: 264 | E155: 52.8 | F155: 316.8 | G155: 1009300 | H155: =INDEX(X!$H$2:$J$1000,MATCH($G155,X!$H$2:$H$1000,0),2) -> FOURNISSEUR 0025 | I155: =INDEX(X!$H$2:$J$1000,MATCH($G155,X!$H$2:$H$1000,0),3) -> 00241111004000079 | J155: 0.2 | K155: CHQ 3755738 | L155: 2015-08-03 | M155: 2015-07-13 | N155: 2016-04-01 | O155: 2
B156: 320150506599 | C156: ELECTRICITE | D156: 71.83 | E156: 10.98 | F156: 86.2 | G156: 1008040 | H156: =INDEX(X!$H$2:$J$1000,MATCH($G156,X!$H$2:$H$1000,0),2) -> FOURNISSEUR 0005 | I156: =INDEX(X!$H$2:$J$1000,MATCH($G156,X!$H$2:$H$1000,0),3) -> 00041111004000059 | J156: 0.14 | K156: ESPECES | L156: 2015-08-24 | M156: 2015-05-11 | N156: 2016-04-01 | O156: 1
B157: 420150506599 | C157: ELECTRICITE | D157: 67.11 | E157: 10.29 | F157: 80.53 | G157: 1008040 | H157: =INDEX(X!$H$2:$J$1000,MATCH($G157,X!$H$2:$H$1000,0),2) -> FOURNISSEUR 0005 | I157: =INDEX(X!$H$2:$J$1000,MATCH($G157,X!$H$2:$H$1000,0),3) -> 00041111004000059 | J157: 0.14 | K157: ESPECES | L157: 2015-08-24 | M157: 2015-06-10 | N157: 2016-04-01 | O157: 1
B158: 520150506599 | C158: ELECTRICITE | D158: 73.02 | E158: 11.16 | F158: 87.62 | G158: 1008040 | H158: =INDEX(X!$H$2:$J$1000,MATCH($G158,X!$H$2:$H$1000,0),2) -> FOURNISSEUR 0005 | I158: =INDEX(X!$H$2:$J$1000,MATCH($G158,X!$H$2:$H$1000,0),3) -> 00041111004000059 | J158: 0.14 | K158: ESPECES | L158: 2015-08-24 | M158: 2015-07-14 | N158: 2016-04-01 | O158: 1
B159: 809693072015 | C159: PRES DE SERVICES | D159: 169 | E159: 33.8 | F159: 202.8 | G159: 1009300 | H159: =INDEX(X!$H$2:$J$1000,MATCH($G159,X!$H$2:$H$1000,0),2) -> FOURNISSEUR 0025 | I159: =INDEX(X!$H$2:$J$1000,MATCH($G159,X!$H$2:$H$1000,0),3) -> 00241111004000079 | J159: 0.2 | K159: CHQ 3755741 | L159: 2015-09-08 | M159: 2015-06-01 | N159: 2016-04-01 | O159: 2
B160: 809694072015 | C160: PRES DE SERVICES | D160: 82.5 | E160: 16.5 | F160: 99 | G160: 1009300 | H160: =INDEX(X!$H$2:$J$1000,MATCH($G160,X!$H$2:$H$1000,0),2) -> FOURNISSEUR 0025 | I160: =INDEX(X!$H$2:$J$1000,MATCH($G160,X!$H$2:$H$1000,0),3) -> 00241111004000079 | J160: 0.2 | K160: CHQ 3755741 | L160: 2015-09-08 | M160: 2015-06-01 | N160: 2016-04-01 | O160: 2
B161: 805387082015 | C161: PRES DE SERVICES | D161: 169 | E161: 33.8 | F161: 202.8 | G161: 1009300 | H161: =INDEX(X!$H$2:$J$1000,MATCH($G161,X!$H$2:$H$1000,0),2) -> FOURNISSEUR 0025 | I161: =INDEX(X!$H$2:$J$1000,MATCH($G161,X!$H$2:$H$1000,0),3) -> 00241111004000079 | J161: 0.2 | K161: CHQ 3755741 | L161: 2015-09-08 | M161: 2015-07-01 | N161: 2016-04-01 | O161: 2
B162: 805388082015 | C162: PRES DE SERVICES | D162: 82.5 | E162: 16.5 | F162: 99 | G162: 1009300 | H162: =INDEX(X!$H$2:$J$1000,MATCH($G162,X!$H$2:$H$1000,0),2) -> FOURNISSEUR 0025 | I162: =INDEX(X!$H$2:$J$1000,MATCH($G162,X!$H$2:$H$1000,0),3) -> 00241111004000079 | J162: 0.2 | K162: CHQ 3755741 | L162: 2015-09-08 | M162: 2015-07-01 | N162: 2016-04-01 | O162: 2
B163: 417730082015 | C163: PRES DE SERVICES | D163: 264 | E163: 52.8 | F163: 316.8 | G163: 1009300 | H163: =INDEX(X!$H$2:$J$1000,MATCH($G163,X!$H$2:$H$1000,0),2) -> FOURNISSEUR 0025 | I163: =INDEX(X!$H$2:$J$1000,MATCH($G163,X!$H$2:$H$1000,0),3) -> 00241111004000079 | J163: 0.2 | K163: CHQ 3755741 | L163: 2015-09-08 | M163: 2015-08-10 | N163: 2016-04-01 | O163: 2
B164: 979561092015 | C164: PRES DE SERVICES | D164: 390 | E164: 78 | F164: 468 | G164: 1009300 | H164: =INDEX(X!$H$2:$J$1000,MATCH($G164,X!$H$2:$H$1000,0),2) -> FOURNISSEUR 0025 | I164: =INDEX(X!$H$2:$J$1000,MATCH($G164,X!$H$2:$H$1000,0),3) -> 00241111004000079 | J164: 0.2 | K164: ESPECES | L164: 2015-10-15 | M164: 2015-09-15 | N164: 2016-04-01 | O164: 1
B165: 530269102015 | C165: PRES DE SERVICES | D165: 174 | E165: 34.8 | F165: 208.8 | G165: 1009300 | H165: =INDEX(X!$H$2:$J$1000,MATCH($G165,X!$H$2:$H$1000,0),2) -> FOURNISSEUR 0025 | I165: =INDEX(X!$H$2:$J$1000,MATCH($G165,X!$H$2:$H$1000,0),3) -> 00241111004000079 | J165: 0.2 | K165: CARTE | L165: 2015-11-04 | M165: 2015-10-12 | N165: 2016-04-01 | O165: 7
B166: 620150506599 | C166: ELECTRICITE | D166: 76.56 | E166: 11.68 | F166: 91.87 | G166: 1008040 | H166: =INDEX(X!$H$2:$J$1000,MATCH($G166,X!$H$2:$H$1000,0),2) -> FOURNISSEUR 0005 | I166: =INDEX(X!$H$2:$J$1000,MATCH($G166,X!$H$2:$H$1000,0),3) -> 00041111004000059 | J166: 0.14 | K166: ESPECES | L166: 2015-11-30 | M166: 2015-08-18 | N166: 2016-04-01 | O166: 1
B167: 720150506599 | C167: ELECTRICITE | D167: 55.3 | E167: 8.55 | F167: 66.36 | G167: 1008040 | H167: =INDEX(X!$H$2:$J$1000,MATCH($G167,X!$H$2:$H$1000,0),2) -> FOURNISSEUR 0005 | I167: =INDEX(X!$H$2:$J$1000,MATCH($G167,X!$H$2:$H$1000,0),3) -> 00041111004000059 | J167: 0.14 | K167: ESPECES | L167: 2015-11-30 | M167: 2015-09-14 | N167: 2016-04-01 | O167: 1
B168: 820150506599 | C168: ELECTRICITE | D168: 94.28 | E168: 14.28 | F168: 113.14 | G168: 1008040 | H168: =INDEX(X!$H$2:$J$1000,MATCH($G168,X!$H$2:$H$1000,0),2) -> FOURNISSEUR 0005 | I168: =INDEX(X!$H$2:$J$1000,MATCH($G168,X!$H$2:$H$1000,0),3) -> 00041111004000059 | J168: 0.14 | K168: ESPECES | L168: 2015-11-30 | M168: 2015-10-14 | N168: 2016-04-01 | O168: 1
B169: 796946092015 | C169: PRES DE SERVICES | D169: 169 | E169: 33.8 | F169: 202.8 | G169: 1009300 | H169: =INDEX(X!$H$2:$J$1000,MATCH($G169,X!$H$2:$H$1000,0),2) -> FOURNISSEUR 0025 | I169: =INDEX(X!$H$2:$J$1000,MATCH($G169,X!$H$2:$H$1000,0),3) -> 00241111004000079 | J169: 0.2 | K169: CHQ 4386136 | L169: 2015-12-10 | M169: 2015-08-01 | N169: 2016-04-01 | O169: 2
B170: 796947092015 | C170: PRES DE SERVICES | D170: 82.5 | E170: 16.5 | F170: 99 | G170: 1009300 | H170: =INDEX(X!$H$2:$J$1000,MATCH($G170,X!$H$2:$H$1000,0),2) -> FOURNISSEUR 0025 | I170: =INDEX(X!$H$2:$J$1000,MATCH($G170,X!$H$2:$H$1000,0),3) -> 00241111004000079 | J170: 0.2 | K170: CHQ 4386136 | L170: 2015-12-10 | M170: 2015-08-01 | N170: 2016-04-01 | O170: 2
B171: 790540102015 | C171: PRES DE SERVICES | D171: 169 | E171: 33.8 | F171: 202.8 | G171: 1009300 | H171: =INDEX(X!$H$2:$J$1000,MATCH($G171,X!$H$2:$H$1000,0),2) -> FOURNISSEUR 0025 | I171: =INDEX(X!$H$2:$J$1000,MATCH($G171,X!$H$2:$H$1000,0),3) -> 00241111004000079 | J171: 0.2 | K171: CHQ 4386136 | L171: 2015-12-10 | M171: 2015-09-01 | N171: 2016-04-01 | O171: 2
B172: 790541102015 | C172: PRES DE SERVICES | D172: 82.5 | E172: 16.5 | F172: 99 | G172: 1009300 | H172: =INDEX(X!$H$2:$J$1000,MATCH($G172,X!$H$2:$H$1000,0),2) -> FOURNISSEUR 0025 | I172: =INDEX(X!$H$2:$J$1000,MATCH($G172,X!$H$2:$H$1000,0),3) -> 00241111004000079 | J172: 0.2 | K172: CHQ 4386136 | L172: 2015-12-10 | M172: 2015-09-01 | N172: 2016-04-01 | O172: 2
B173: 780753112015 | C173: PRES DE SERVICES | D173: 169 | E173: 33.8 | F173: 202.8 | G173: 1009300 | H173: =INDEX(X!$H$2:$J$1000,MATCH($G173,X!$H$2:$H$1000,0),2) -> FOURNISSEUR 0025 | I173: =INDEX(X!$H$2:$J$1000,MATCH($G173,X!$H$2:$H$1000,0),3) -> 00241111004000079 | J173: 0.2 | K173: CHQ 4386136 | L173: 2015-12-10 | M173: 2015-10-01 | N173: 2016-04-01 | O173: 2
B174: 780754112015 | C174: PRES DE SERVICES | D174: 82.5 | E174: 16.5 | F174: 99 | G174: 1009300 | H174: =INDEX(X!$H$2:$J$1000,MATCH($G174,X!$H$2:$H$1000,0),2) -> FOURNISSEUR 0025 | I174: =INDEX(X!$H$2:$J$1000,MATCH($G174,X!$H$2:$H$1000,0),3) -> 00241111004000079 | J174: 0.2 | K174: CHQ 4386136 | L174: 2015-12-10 | M174: 2015-10-01 | N174: 2016-04-01 | O174: 2
B175: 773963122015 | C175: PRES DE SERVICES | D175: 169 | E175: 33.8 | F175: 202.8 | G175: 1009300 | H175: =INDEX(X!$H$2:$J$1000,MATCH($G175,X!$H$2:$H$1000,0),2) -> FOURNISSEUR 0025 | I175: =INDEX(X!$H$2:$J$1000,MATCH($G175,X!$H$2:$H$1000,0),3) -> 00241111004000079 | J175: 0.2 | K175: CHQ 4386136 | L175: 2015-12-10 | M175: 2015-11-01 | N175: 2016-04-01 | O175: 2
B176: 028/12/HB2015 | C176: MARCHANDISES | D176: 5250 | E176: 1050 | F176: 6300 | G176: 1009363 | H176: =INDEX(X!$H$2:$J$1000,MATCH($G176,X!$H$2:$H$1000,0),2) -> FOURNISSEUR 0026 | I176: =INDEX(X!$H$2:$J$1000,MATCH($G176,X!$H$2:$H$1000,0),3) -> 00251111004000080 | J176: 0.2 | K176: ESPECES | L176: 2015-12-21 | M176: 2015-12-21 | N176: 2016-04-01 | O176: 1
B177: 004/1/1HB2016 | C177: MARCHANDISES | D177: 941.67 | E177: 188.33 | F177: 1130 | G177: 1009363 | H177: =INDEX(X!$H$2:$J$1000,MATCH($G177,X!$H$2:$H$1000,0),2) -> FOURNISSEUR 0026 | I177: =INDEX(X!$H$2:$J$1000,MATCH($G177,X!$H$2:$H$1000,0),3) -> 00251111004000080 | J177: 0.2 | K177: CHQ 4386142 | L177: 2016-01-12 | M177: 2016-01-05 | N177: 2016-04-01 | O177: 2
B178: 454439122015 | C178: PRES DE SERVICES | D178: 189.83 | E178: 37.97 | F178: 227.8 | G178: 1009300 | H178: =INDEX(X!$H$2:$J$1000,MATCH($G178,X!$H$2:$H$1000,0),2) -> FOURNISSEUR 0025 | I178: =INDEX(X!$H$2:$J$1000,MATCH($G178,X!$H$2:$H$1000,0),3) -> 00241111004000079 | J178: 0.2 | K178: CHQ 4386144 | L178: 2016-01-15 | M178: 2015-12-11 | N178: 2016-04-01 | O178: 2
B179: 61402102016 | C179: PRES DE SERVICES | D179: 169 | E179: 33.8 | F179: 202.8 | G179: 1009300 | H179: =INDEX(X!$H$2:$J$1000,MATCH($G179,X!$H$2:$H$1000,0),2) -> FOURNISSEUR 0025 | I179: =INDEX(X!$H$2:$J$1000,MATCH($G179,X!$H$2:$H$1000,0),3) -> 00241111004000079 | J179: 0.2 | K179: CHQ 4386144 | L179: 2016-01-15 | M179: 2015-12-31 | N179: 2016-04-01 | O179: 2
B180: 920150506599 | C180: ELECTRICITE | D180: 80.11 | E180: 12.2 | F180: 96.13 | G180: 1008040 | H180: =INDEX(X!$H$2:$J$1000,MATCH($G180,X!$H$2:$H$1000,0),2) -> FOURNISSEUR 0005 | I180: =INDEX(X!$H$2:$J$1000,MATCH($G180,X!$H$2:$H$1000,0),3) -> 00041111004000059 | J180: 0.14 | K180: ESPECES | L180: 2016-02-10 | M180: 2015-11-12 | N180: 2016-04-01 | O180: 1
B181: 1020150506599 | C181: ELECTRICITE | D181: 51.74 | E181: 8.03 | F181: 62.09 | G181: 1008040 | H181: =INDEX(X!$H$2:$J$1000,MATCH($G181,X!$H$2:$H$1000,0),2) -> FOURNISSEUR 0005 | I181: =INDEX(X!$H$2:$J$1000,MATCH($G181,X!$H$2:$H$1000,0),3) -> 00041111004000059 | J181: 0.14 | K181: ESPECES | L181: 2016-02-10 | M181: 2015-12-30 | N181: 2016-04-01 | O181: 1
B182: 1120150506599 | C182: ELECTRICITE | D182: 63.57 | E182: 9.77 | F182: 76.28 | G182: 1008040 | H182: =INDEX(X!$H$2:$J$1000,MATCH($G182,X!$H$2:$H$1000,0),2) -> FOURNISSEUR 0005 | I182: =INDEX(X!$H$2:$J$1000,MATCH($G182,X!$H$2:$H$1000,0),3) -> 00041111004000059 | J182: 0.14 | K182: ESPECES | L182: 2016-02-10 | M182: 2015-12-31 | N182: 2016-04-01 | O182: 1
B183: 1220150506599 | C183: ELECTRICITE | D183: 56.48 | E183: 8.73 | F183: 67.77 | G183: 1008040 | H183: =INDEX(X!$H$2:$J$1000,MATCH($G183,X!$H$2:$H$1000,0),2) -> FOURNISSEUR 0005 | I183: =INDEX(X!$H$2:$J$1000,MATCH($G183,X!$H$2:$H$1000,0),3) -> 00041111004000059 | J183: 0.14 | K183: ESPECES | L183: 2016-02-10 | M183: 2015-12-31 | N183: 2016-04-01 | O183: 1
B184: 773964122015 | C184: PRES DE SERVICES | D184: 82.5 | E184: 16.5 | F184: 99 | G184: 1009300 | H184: =INDEX(X!$H$2:$J$1000,MATCH($G184,X!$H$2:$H$1000,0),2) -> FOURNISSEUR 0025 | I184: =INDEX(X!$H$2:$J$1000,MATCH($G184,X!$H$2:$H$1000,0),3) -> 00241111004000079 | J184: 0.2 | K184: CHQ 4386151 | L184: 2016-02-15 | M184: 2015-11-01 | N184: 2016-04-01 | O184: 2
B185: 588640112015 | C185: PRES DE SERVICES | D185: 169 | E185: 33.8 | F185: 202.8 | G185: 1009300 | H185: =INDEX(X!$H$2:$J$1000,MATCH($G185,X!$H$2:$H$1000,0),2) -> FOURNISSEUR 0025 | I185: =INDEX(X!$H$2:$J$1000,MATCH($G185,X!$H$2:$H$1000,0),3) -> 00241111004000079 | J185: 0.2 | K185: CHQ 4386151 | L185: 2016-02-15 | M185: 2015-11-10 | N185: 2016-04-01 | O185: 2
B186: 766859012016 | C186: PRES DE SERVICES | D186: 164.16 | E186: 32.83 | F186: 196.99 | G186: 1009300 | H186: =INDEX(X!$H$2:$J$1000,MATCH($G186,X!$H$2:$H$1000,0),2) -> FOURNISSEUR 0025 | I186: =INDEX(X!$H$2:$J$1000,MATCH($G186,X!$H$2:$H$1000,0),3) -> 00241111004000079 | J186: 0.2 | K186: CHQ 4386151 | L186: 2016-02-15 | M186: 2015-12-01 | N186: 2016-04-01 | O186: 2
B187: 766860012016 | C187: PRES DE SERVICES | D187: 82.5 | E187: 16.5 | F187: 99 | G187: 1009300 | H187: =INDEX(X!$H$2:$J$1000,MATCH($G187,X!$H$2:$H$1000,0),2) -> FOURNISSEUR 0025 | I187: =INDEX(X!$H$2:$J$1000,MATCH($G187,X!$H$2:$H$1000,0),3) -> 00241111004000079 | J187: 0.2 | K187: CHQ 4386151 | L187: 2016-02-15 | M187: 2015-12-01 | N187: 2016-04-01 | O187: 2
B188: 016/02/HB2016 | C188: MARCHANDISES | D188: 1575 | E188: 315 | F188: 1890 | G188: 1009363 | H188: =INDEX(X!$H$2:$J$1000,MATCH($G188,X!$H$2:$H$1000,0),2) -> FOURNISSEUR 0026 | I188: =INDEX(X!$H$2:$J$1000,MATCH($G188,X!$H$2:$H$1000,0),3) -> 00251111004000080 | J188: 0.2 | K188: CHQ 4386143 | L188: 2016-02-28 | M188: 2016-02-10 | N188: 2016-04-01 | O188: 2
B189: 512 82 | C189: MARCHANDISES | D189: 3304.75 | E189: 660.95 | F189: 3965.7 | G189: 1009678 | H189: =INDEX(X!$H$2:$J$1000,MATCH($G189,X!$H$2:$H$1000,0),2) -> FOURNISSEUR 0031 | I189: =INDEX(X!$H$2:$J$1000,MATCH($G189,X!$H$2:$H$1000,0),3) -> 00301111004000085 | J189: 0.2 | K189: EFFET T 5483872 | L189: 2016-03-30 | M189: 2015-12-31 | N189: 2016-04-01 | O189: 5
B190: 15124668 | C190: MARCHANDISES | D190: 2075.42 | E190: 415.08 | F190: 2490.5 | G190: 1008922 | H190: =INDEX(X!$H$2:$J$1000,MATCH($G190,X!$H$2:$H$1000,0),2) -> FOURNISSEUR 0019 | I190: =INDEX(X!$H$2:$J$1000,MATCH($G190,X!$H$2:$H$1000,0),3) -> 00181111004000073 | J190: 0.2 | K190: EFFET T 5483860 | L190: 2016-03-30 | M190: 2015-12-31 | N190: 2016-04-01 | O190: 5
B191: 15124428 | C191: MARCHANDISES | D191: 14929.17 | E191: 2985.83 | F191: 17915 | G191: 1008922 | H191: =INDEX(X!$H$2:$J$1000,MATCH($G191,X!$H$2:$H$1000,0),2) -> FOURNISSEUR 0019 | I191: =INDEX(X!$H$2:$J$1000,MATCH($G191,X!$H$2:$H$1000,0),3) -> 00181111004000073 | J191: 0.2 | K191: EFFET T 5483871 | L191: 2016-03-30 | M191: 2015-12-31 | N191: 2016-04-01 | O191: 5
B192: 160000241 | C192: MARCHANDISES | D192: 768 | E192: 153.6 | F192: 921.6 | G192: 1009426 | H192: =INDEX(X!$H$2:$J$1000,MATCH($G192,X!$H$2:$H$1000,0),2) -> FOURNISSEUR 0027 | I192: =INDEX(X!$H$2:$J$1000,MATCH($G192,X!$H$2:$H$1000,0),3) -> 00261111004000081 | J192: 0.2 | K192: EFFET T 5483874 | L192: 2016-03-30 | M192: 2016-01-30 | N192: 2016-04-01 | O192: 5
B193: 0023/16 | C193: MARCHANDISES | D193: 6513.33 | E193: 1302.67 | F193: 7816 | G193: 1008670 | H193: =INDEX(X!$H$2:$J$1000,MATCH($G193,X!$H$2:$H$1000,0),2) -> FOURNISSEUR 0015 | I193: =INDEX(X!$H$2:$J$1000,MATCH($G193,X!$H$2:$H$1000,0),3) -> 00141111004000069 | J193: 0.2 | K193: EFFET T 5483851 | L193: 2016-04-01 | M193: 2016-03-18 | N193: 2016-04-01 | O193: 5
B194: FA2530 | C194: MARCHANDISES | D194: 6500 | E194: 1300 | F194: 7800 | G194: 1009237 | H194: =INDEX(X!$H$2:$J$1000,MATCH($G194,X!$H$2:$H$1000,0),2) -> FOURNISSEUR 0024 | I194: =INDEX(X!$H$2:$J$1000,MATCH($G194,X!$H$2:$H$1000,0),3) -> 00231111004000078 | J194: 0.2 | K194: EFFET T 5483854 | L194: 2016-04-15 | M194: 2016-04-20 | N194: 2016-04-01 | O194: 5
B195: AVOIR16000001 | C195: MARCHANDISES | D195: -583.33 | E195: -116.67 | F195: -700 | G195: 1008922 | H195: =INDEX(X!$H$2:$J$1000,MATCH($G195,X!$H$2:$H$1000,0),2) -> FOURNISSEUR 0019 | I195: =INDEX(X!$H$2:$J$1000,MATCH($G195,X!$H$2:$H$1000,0),3) -> 00181111004000073 | J195: 0.2 | K195: EFFET T 5483895 | L195: 2016-04-25 | M195: 2016-01-07 | N195: 2016-04-01 | O195: 5
B196: 16010055 | C196: MARCHANDISES | D196: 17614.5 | E196: 3522.9 | F196: 21137.4 | G196: 1008922 | H196: =INDEX(X!$H$2:$J$1000,MATCH($G196,X!$H$2:$H$1000,0),2) -> FOURNISSEUR 0019 | I196: =INDEX(X!$H$2:$J$1000,MATCH($G196,X!$H$2:$H$1000,0),3) -> 00181111004000073 | J196: 0.2 | K196: EFFET T 5483895 | L196: 2016-04-25 | M196: 2016-01-31 | N196: 2016-04-01 | O196: 5
B197: FA16020506 | C197: MARCHANDISES | D197: 17895 | E197: 3579 | F197: 21474 | G197: 1008922 | H197: =INDEX(X!$H$2:$J$1000,MATCH($G197,X!$H$2:$H$1000,0),2) -> FOURNISSEUR 0019 | I197: =INDEX(X!$H$2:$J$1000,MATCH($G197,X!$H$2:$H$1000,0),3) -> 00181111004000073 | J197: 0.2 | K197: EFFET T 5483896 | L197: 2016-05-30 | M197: 2016-02-29 | N197: 2016-05-01 | O197: =IF(COUNTIF(K197,"*EF*"),5,IF(COUNTIF(K197,"*ES*"),1,IF(COUNTIF(K197,"*CH*"),2,IF(COUNTIF(K197,"*PR*"),3,IF(COUNTIF(K197,"*CO*"),6,IF(COUNTIF(K197,"*VI*"),4,7)))))) -> 5
B198: FA16020507 | C198: MARCHANDISES | D198: 17755 | E198: 3551 | F198: 21306 | G198: 1008922 | H198: =INDEX(X!$H$2:$J$1000,MATCH($G198,X!$H$2:$H$1000,0),2) -> FOURNISSEUR 0019 | I198: =INDEX(X!$H$2:$J$1000,MATCH($G198,X!$H$2:$H$1000,0),3) -> 00181111004000073 | J198: 0.2 | K198: EFFET T 5483896 | L198: 2016-05-30 | M198: 2016-02-29 | N198: 2016-05-01 | O198: 5
B199: 183 | C199: MARCHANDISES | D199: 1041.67 | E199: 208.33 | F199: 1250 | G199: 1007914 | H199: =INDEX(X!$H$2:$J$1000,MATCH($G199,X!$H$2:$H$1000,0),2) -> FOURNISSEUR 0003 | I199: =INDEX(X!$H$2:$J$1000,MATCH($G199,X!$H$2:$H$1000,0),3) -> 00021111004000057 | J199: 0.2 | K199: EFFET T 05483894 | L199: 2016-06-06 | M199: 2016-05-03 | N199: 2016-06-01 | O199: 5
B200: 60351 | C200: MARCHANDISES | D200: 2584.17 | E200: 516.83 | F200: 3101 | G200: 1008733 | H200: =INDEX(X!$H$2:$J$1000,MATCH($G200,X!$H$2:$H$1000,0),2) -> FOURNISSEUR 0016 | I200: =INDEX(X!$H$2:$J$1000,MATCH($G200,X!$H$2:$H$1000,0),3) -> 00151111004000070 | J200: 0.2 | K200: EFFET T 056900206 | L200: 2016-06-30 | M200: 2016-03-31 | N200: 2016-06-01 | O200: 5
B201: 60340 | C201: MARCHANDISES | D201: 15708.33 | E201: 3141.67 | F201: 18850 | G201: 1008733 | H201: =INDEX(X!$H$2:$J$1000,MATCH($G201,X!$H$2:$H$1000,0),2) -> FOURNISSEUR 0016 | I201: =INDEX(X!$H$2:$J$1000,MATCH($G201,X!$H$2:$H$1000,0),3) -> 00151111004000070 | J201: 0.2 | K201: EFFET T 056900206 | L201: 2016-06-30 | M201: 2016-03-31 | N201: 2016-06-01 | O201: 5
... 153 more rows

Sheet RECAP
A2: ="TABLEAU DEDUCTION TVA ANNEE"&" "&YEAR(A6) -> TABLEAU DEDUCTION TVA ANNEE 2016
A3: 1 | B3: 2 | C3: 3 | D3: 4 | E3: 5 | F3: 6 | G3: 7 | H3: 8 | I3: 9 | J3: 10 | K3: 11 | L3: 12 | M3: 13 | N3: 14 | O3: 15 | P3: 16 | Q3: 17 | R3: 18
A4: Mois Décl | B4: Vente HT | C4: Tva Vente 7% | D4: Tva Vente 10% | E4: Tva Vente 14% | F4: Tva Vente 30% | G4: Tva Vente 20% | H4: Pres serv 20% | I4: Transp 14% | J4: Op Bq 10% | K4: March 20% | L4: Services 7% | M4: Elect 14% | N4: Immob 20% | O4: Total TVA Mois Achat | P4: Crédit Préc | Q4: Total Ded Mois | R4: Mt Tva a declare | T4: Années | U4: Montant Crédit TVA
A5: ="Report Crédit Tva" &" "&YEAR(A6-1) -> Report Crédit Tva 2015 | R5: =VLOOKUP(Tableau4[[#This Row],[Mois Décl]],T5:U10,2) -> -5535.27 | T5: ="Report Crédit Tva"&" "&YEAR(X!$F$2)-1 -> Report Crédit Tva 2015 | U5: -5535.27
A6: =VENTE!F2 -> 2016-01-01 | B6: =SUMIFS(VENTE!$D$4:$D$74974,VENTE!$J$4:$J$74974,A6) -> 64359.6 | C6: =SUMIFS(VENTE!$F$4:$F$14982,VENTE!$E$4:$E$14982,"0,07",VENTE!$J$4:$J$14982,Tableau4[[#This Row],[Mois Décl]]) -> 0 | D6: =SUMIFS(VENTE!$F$4:$F$14982,VENTE!$E$4:$E$14982,"0,10",VENTE!$J$4:$J$14982,A6) -> 0 | E6: =SUMIFS(VENTE!$F$4:$F$14982,VENTE!$E$4:$E$14982,"0,14",VENTE!$J$4:$J$14982,A6) -> 0 | F6: =SUMIFS(VENTE!$F$4:$F$14982,VENTE!$E$4:$E$14982,"0,30",VENTE!$J$4:$J$14982,A6) -> 0 | G6: =ROUNDUP(Tableau4[[#This Row],[Vente HT]],-1)*0.2 -> 12872 | H6: =SUMIFS(ACHAT!$E$5:$E$34826,ACHAT!$C$5:$C$34826,XML!$I$2,ACHAT!$N$5:$N$34826,A6,ACHAT!$J$5:$J$34826,XML!$J$2) -> 0 | I6: =SUMIFS(ACHAT!$E$5:$E$34826,ACHAT!$C$5:$C$34826,XML!$I$4,ACHAT!$N$5:$N$34826,A6,ACHAT!$J$5:$J$34826,XML!$J$4) -> 0 | J6: =SUMIFS(ACHAT!$E$5:$E$34826,ACHAT!$C$5:$C$34826,XML!$I$3,ACHAT!$N$5:$N$34826,A6,ACHAT!$J$5:$J$34826,XML!$J$3) -> 0 | K6: =SUMIFS(ACHAT!$E$5:$E$34826,ACHAT!$C$5:$C$34826,XML!$I$8,ACHAT!$N$5:$N$34826,A6,ACHAT!$J$5:$J$34826,XML!$J$8) -> 7927.07 | L6: =SUMIFS(ACHAT!$E$5:$E$34826,ACHAT!$C$5:$C$34826,XML!$I$5,ACHAT!$N$5:$N$34826,A6,ACHAT!$J$5:$J$34826,XML!$J$5) -> 0 | M6: =SUMIFS(ACHAT!$E$5:$E$34826,ACHAT!$C$5:$C$34826,XML!$I$6,ACHAT!$N$5:$N$34826,A6,ACHAT!$J$5:$J$34826,XML!$J$6) -> 0 | N6: =SUMIFS(ACHAT!$E$5:$E$34826,ACHAT!$C$5:$C$34826,XML!$I$7,ACHAT!$N$5:$N$34826,A6,ACHAT!$J$5:$J$34826,XML!$J$7) -> 0 | O6: =H6+I6+J6+K6+L6+N6 -> 7927.07 | P6: =IF(R5>=0,0,OFFSET(A1,4,17)) -> -5535.27 | Q6: =O6-P6 -> 13462.34 | R6: =G6-Q6 -> -590.34 | T6: ="Report Crédit Tva"&" "&YEAR(X!$F$2) -> Report Crédit Tva 2016 | U6: 0 | AC6: 0.07 | AD6: EAU
A7: =EDATE(A6,1) -> 2016-02-01 | B7: =SUMIFS(VENTE!$D$4:$D$74974,VENTE!$J$4:$J$74974,A7) -> 54222.84 | C7: =SUMIFS(VENTE!$F$4:$F$14982,VENTE!$E$4:$E$14982,"0,07",VENTE!$J$4:$J$14982,Tableau4[[#This Row],[Mois Décl]]) -> 0 | D7: =SUMIFS(VENTE!$F$4:$F$14982,VENTE!$E$4:$E$14982,"0,10",VENTE!$J$4:$J$14982,A7) -> 0 | E7: =SUMIFS(VENTE!$F$4:$F$14982,VENTE!$E$4:$E$14982,"0,14",VENTE!$J$4:$J$14982,A7) -> 0 | F7: =SUMIFS(VENTE!$F$4:$F$14982,VENTE!$E$4:$E$14982,"0,30",VENTE!$J$4:$J$14982,A7) -> 0 | G7: =ROUNDUP(Tableau4[[#This Row],[Vente HT]],-1)*0.2 -> 10846 | H7: =SUMIFS(ACHAT!$E$5:$E$34826,ACHAT!$C$5:$C$34826,XML!$I$2,ACHAT!$N$5:$N$34826,A7,ACHAT!$J$5:$J$34826,XML!$J$2) -> 0 | I7: =SUMIFS(ACHAT!$E$5:$E$34826,ACHAT!$C$5:$C$34826,XML!$I$4,ACHAT!$N$5:$N$34826,A7,ACHAT!$J$5:$J$34826,XML!$J$4) -> 0 | J7: =SUMIFS(ACHAT!$E$5:$E$34826,ACHAT!$C$5:$C$34826,XML!$I$3,ACHAT!$N$5:$N$34826,A7,ACHAT!$J$5:$J$34826,XML!$J$3) -> 0 | K7: =SUMIFS(ACHAT!$E$5:$E$34826,ACHAT!$C$5:$C$34826,XML!$I$8,ACHAT!$N$5:$N$34826,A7,ACHAT!$J$5:$J$34826,XML!$J$8) -> 17296.76 | L7: =SUMIFS(ACHAT!$E$5:$E$34826,ACHAT!$C$5:$C$34826,XML!$I$5,ACHAT!$N$5:$N$34826,A7,ACHAT!$J$5:$J$34826,XML!$J$5) -> 0 | M7: =SUMIFS(ACHAT!$E$5:$E$34826,ACHAT!$C$5:$C$34826,XML!$I$6,ACHAT!$N$5:$N$34826,A7,ACHAT!$J$5:$J$34826,XML!$J$6) -> 0 | N7: =SUMIFS(ACHAT!$E$5:$E$34826,ACHAT!$C$5:$C$34826,XML!$I$7,ACHAT!$N$5:$N$34826,A7,ACHAT!$J$5:$J$34826,XML!$J$7) -> 0 | O7: =H7+I7+J7+K7+L7+N7 -> 17296.76 | P7: -590.34 | Q7: =O7-P7 -> 17887.1 | R7: =G7-Q7 -> -7041.1 | T7: ="Report Crédit Tva"&" "&YEAR(X!$F$2)+1 -> Report Crédit Tva 2017 | AC7: 0.1 | AD7: OP DE BANQUE
A8: =EDATE(A7,1) -> 2016-03-01 | B8: =SUMIFS(VENTE!$D$4:$D$74974,VENTE!$J$4:$J$74974,A8) -> 75193.18 | C8: =SUMIFS(VENTE!$F$4:$F$14982,VENTE!$E$4:$E$14982,"0,07",VENTE!$J$4:$J$14982,Tableau4[[#This Row],[Mois Décl]]) -> 0 | D8: =SUMIFS(VENTE!$F$4:$F$14982,VENTE!$E$4:$E$14982,"0,10",VENTE!$J$4:$J$14982,A8) -> 0 | E8: =SUMIFS(VENTE!$F$4:$F$14982,VENTE!$E$4:$E$14982,"0,14",VENTE!$J$4:$J$14982,A8) -> 0 | F8: =SUMIFS(VENTE!$F$4:$F$14982,VENTE!$E$4:$E$14982,"0,30",VENTE!$J$4:$J$14982,A8) -> 0 | G8: =ROUNDUP(Tableau4[[#This Row],[Vente HT]],-1)*0.2 -> 15040 | H8: =SUMIFS(ACHAT!$E$5:$E$34826,ACHAT!$C$5:$C$34826,XML!$I$2,ACHAT!$N$5:$N$34826,A8,ACHAT!$J$5:$J$34826,XML!$J$2) -> 0 | I8: =SUMIFS(ACHAT!$E$5:$E$34826,ACHAT!$C$5:$C$34826,XML!$I$4,ACHAT!$N$5:$N$34826,A8,ACHAT!$J$5:$J$34826,XML!$J$4) -> 0 | J8: =SUMIFS(ACHAT!$E$5:$E$34826,ACHAT!$C$5:$C$34826,XML!$I$3,ACHAT!$N$5:$N$34826,A8,ACHAT!$J$5:$J$34826,XML!$J$3) -> 0 | K8: =SUMIFS(ACHAT!$E$5:$E$34826,ACHAT!$C$5:$C$34826,XML!$I$8,ACHAT!$N$5:$N$34826,A8,ACHAT!$J$5:$J$34826,XML!$J$8) -> 8564.53 | L8: =SUMIFS(ACHAT!$E$5:$E$34826,ACHAT!$C$5:$C$34826,XML!$I$5,ACHAT!$N$5:$N$34826,A8,ACHAT!$J$5:$J$34826,XML!$J$5) -> 0 | M8: =SUMIFS(ACHAT!$E$5:$E$34826,ACHAT!$C$5:$C$34826,XML!$I$6,ACHAT!$N$5:$N$34826,A8,ACHAT!$J$5:$J$34826,XML!$J$6) -> 0 | N8: =SUMIFS(ACHAT!$E$5:$E$34826,ACHAT!$C$5:$C$34826,XML!$I$7,ACHAT!$N$5:$N$34826,A8,ACHAT!$J$5:$J$34826,XML!$J$7) -> 0 | O8: 8564.53 | P8: -7041.1 | Q8: 15605.63 | R8: -565.63 | T8: ="Report Crédit Tva"&" "&YEAR(X!$F$2)+2 -> Report Crédit Tva 2018 | AC8: 0.14 | AD8: TRANSPORT
A9: 2016-04-01 | B9: =SUMIFS(VENTE!$D$4:$D$74974,VENTE!$J$4:$J$74974,A9) -> 72914.66 | C9: =SUMIFS(VENTE!$F$4:$F$14982,VENTE!$E$4:$E$14982,"0,07",VENTE!$J$4:$J$14982,Tableau4[[#This Row],[Mois Décl]]) -> 0 | D9: =SUMIFS(VENTE!$F$4:$F$14982,VENTE!$E$4:$E$14982,"0,10",VENTE!$J$4:$J$14982,A9) -> 0 | E9: =SUMIFS(VENTE!$F$4:$F$14982,VENTE!$E$4:$E$14982,"0,14",VENTE!$J$4:$J$14982,A9) -> 0 | F9: =SUMIFS(VENTE!$F$4:$F$14982,VENTE!$E$4:$E$14982,"0,30",VENTE!$J$4:$J$14982,A9) -> 0 | G9: =ROUNDUP(Tableau4[[#This Row],[Vente HT]],-1)*0.2 -> 14584 | H9: =SUMIFS(ACHAT!$E$5:$E$34826,ACHAT!$C$5:$C$34826,XML!$I$2,ACHAT!$N$5:$N$34826,A9,ACHAT!$J$5:$J$34826,XML!$J$2) -> 1190.6 | I9: =SUMIFS(ACHAT!$E$5:$E$34826,ACHAT!$C$5:$C$34826,XML!$I$4,ACHAT!$N$5:$N$34826,A9,ACHAT!$J$5:$J$34826,XML!$J$4) -> 0 | J9: =SUMIFS(ACHAT!$E$5:$E$34826,ACHAT!$C$5:$C$34826,XML!$I$3,ACHAT!$N$5:$N$34826,A9,ACHAT!$J$5:$J$34826,XML!$J$3) -> 0 | K9: =SUMIFS(ACHAT!$E$5:$E$34826,ACHAT!$C$5:$C$34826,XML!$I$8,ACHAT!$N$5:$N$34826,A9,ACHAT!$J$5:$J$34826,XML!$J$8) -> 12722.69 | L9: =SUMIFS(ACHAT!$E$5:$E$34826,ACHAT!$C$5:$C$34826,XML!$I$5,ACHAT!$N$5:$N$34826,A9,ACHAT!$J$5:$J$34826,XML!$J$5) -> 0 | M9: =SUMIFS(ACHAT!$E$5:$E$34826,ACHAT!$C$5:$C$34826,XML!$I$6,ACHAT!$N$5:$N$34826,A9,ACHAT!$J$5:$J$34826,XML!$J$6) -> 133.03 | N9: =SUMIFS(ACHAT!$E$5:$E$34826,ACHAT!$C$5:$C$34826,XML!$I$7,ACHAT!$N$5:$N$34826,A9,ACHAT!$J$5:$J$34826,XML!$J$7) -> 0 | O9: =H9+I9+J9+K9+L9++M9+N9 -> 14046.32 | P9: -565.63 | Q9: 14611.95 | R9: -27.95 | T9: ="Report Crédit Tva"&" "&YEAR(X!$F$2)+3 -> Report Crédit Tva 2019 | AC9: 0.14 | AD9: ELECTRICITE
A10: 2016-05-01 | B10: =SUMIFS(VENTE!$D$4:$D$74974,VENTE!$J$4:$J$74974,A10) -> 30270.5 | C10: =SUMIFS(VENTE!$F$4:$F$14982,VENTE!$E$4:$E$14982,"0,07",VENTE!$J$4:$J$14982,Tableau4[[#This Row],[Mois Décl]]) -> 0 | D10: =SUMIFS(VENTE!$F$4:$F$14982,VENTE!$E$4:$E$14982,"0,10",VENTE!$J$4:$J$14982,A10) -> 0 | E10: =SUMIFS(VENTE!$F$4:$F$14982,VENTE!$E$4:$E$14982,"0,14",VENTE!$J$4:$J$14982,A10) -> 0 | F10: =SUMIFS(VENTE!$F$4:$F$14982,VENTE!$E$4:$E$14982,"0,30",VENTE!$J$4:$J$14982,A10) -> 0 | G10: =ROUNDUP(Tableau4[[#This Row],[Vente HT]],-1)*0.2 -> 6056 | H10: =SUMIFS(ACHAT!$E$5:$E$34826,ACHAT!$C$5:$C$34826,XML!$I$2,ACHAT!$N$5:$N$34826,A10,ACHAT!$J$5:$J$34826,XML!$J$2) -> 0 | I10: =SUMIFS(ACHAT!$E$5:$E$34826,ACHAT!$C$5:$C$34826,XML!$I$4,ACHAT!$N$5:$N$34826,A10,ACHAT!$J$5:$J$34826,XML!$J$4) -> 0 | J10: =SUMIFS(ACHAT!$E$5:$E$34826,ACHAT!$C$5:$C$34826,XML!$I$3,ACHAT!$N$5:$N$34826,A10,ACHAT!$J$5:$J$34826,XML!$J$3) -> 0 | K10: =SUMIFS(ACHAT!$E$5:$E$34826,ACHAT!$C$5:$C$34826,XML!$I$8,ACHAT!$N$5:$N$34826,A10,ACHAT!$J$5:$J$34826,XML!$J$8) -> 7130 | L10: =SUMIFS(ACHAT!$E$5:$E$34826,ACHAT!$C$5:$C$34826,XML!$I$5,ACHAT!$N$5:$N$34826,A10,ACHAT!$J$5:$J$34826,XML!$J$5) -> 0 | M10: =SUMIFS(ACHAT!$E$5:$E$34826,ACHAT!$C$5:$C$34826,XML!$I$6,ACHAT!$N$5:$N$34826,A10,ACHAT!$J$5:$J$34826,XML!$J$6) -> 0 | N10: =SUMIFS(ACHAT!$E$5:$E$34826,ACHAT!$C$5:$C$34826,XML!$I$7,ACHAT!$N$5:$N$34826,A10,ACHAT!$J$5:$J$34826,XML!$J$7) -> 0 | O10: 7130 | P10: -27.95 | Q10: 7157.95 | R10: -1101.95 | T10: ="Report Crédit Tva"&" "&YEAR(X!$F$2)+4 -> Report Crédit Tva 2020 | AC10: 0.2 | AD10: MARCHANDISES
A11: 2016-06-01 | B11: =SUMIFS(VENTE!$D$4:$D$74974,VENTE!$J$4:$J$74974,A11) -> 44477.08 | C11: =SUMIFS(VENTE!$F$4:$F$14982,VENTE!$E$4:$E$14982,"0,07",VENTE!$J$4:$J$14982,Tableau4[[#This Row],[Mois Décl]]) -> 0 | D11: =SUMIFS(VENTE!$F$4:$F$14982,VENTE!$E$4:$E$14982,"0,10",VENTE!$J$4:$J$14982,A11) -> 0 | E11: =SUMIFS(VENTE!$F$4:$F$14982,VENTE!$E$4:$E$14982,"0,14",VENTE!$J$4:$J$14982,A11) -> 0 | F11: =SUMIFS(VENTE!$F$4:$F$14982,VENTE!$E$4:$E$14982,"0,30",VENTE!$J$4:$J$14982,A11) -> 0 | G11: =ROUNDUP(Tableau4[[#This Row],[Vente HT]],-1)*0.2 -> 8896 | H11: =SUMIFS(ACHAT!$E$5:$E$34826,ACHAT!$C$5:$C$34826,XML!$I$2,ACHAT!$N$5:$N$34826,A11,ACHAT!$J$5:$J$34826,XML!$J$2) -> 0 | I11: =SUMIFS(ACHAT!$E$5:$E$34826,ACHAT!$C$5:$C$34826,XML!$I$4,ACHAT!$N$5:$N$34826,A11,ACHAT!$J$5:$J$34826,XML!$J$4) -> 0 | J11: =SUMIFS(ACHAT!$E$5:$E$34826,ACHAT!$C$5:$C$34826,XML!$I$3,ACHAT!$N$5:$N$34826,A11,ACHAT!$J$5:$J$34826,XML!$J$3) -> 0 | K11: =SUMIFS(ACHAT!$E$5:$E$34826,ACHAT!$C$5:$C$34826,XML!$I$8,ACHAT!$N$5:$N$34826,A11,ACHAT!$J$5:$J$34826,XML!$J$8) -> 10821.03 | L11: =SUMIFS(ACHAT!$E$5:$E$34826,ACHAT!$C$5:$C$34826,XML!$I$5,ACHAT!$N$5:$N$34826,A11,ACHAT!$J$5:$J$34826,XML!$J$5) -> 0 | M11: =SUMIFS(ACHAT!$E$5:$E$34826,ACHAT!$C$5:$C$34826,XML!$I$6,ACHAT!$N$5:$N$34826,A11,ACHAT!$J$5:$J$34826,XML!$J$6) -> 0 | N11: =SUMIFS(ACHAT!$E$5:$E$34826,ACHAT!$C$5:$C$34826,XML!$I$7,ACHAT!$N$5:$N$34826,A11,ACHAT!$J$5:$J$34826,XML!$J$7) -> 0 | O11: 10821.03 | P11: -1101.95 | Q11: 11922.98 | R11: -3026.98 | AC11: 0.2 | AD11: IMMOBILISATION
A12: 2016-07-01 | B12: =SUMIFS(VENTE!$D$4:$D$74974,VENTE!$J$4:$J$74974,A12) -> 78125.57 | C12: =SUMIFS(VENTE!$F$4:$F$14982,VENTE!$E$4:$E$14982,"0,07",VENTE!$J$4:$J$14982,Tableau4[[#This Row],[Mois Décl]]) -> 0 | D12: =SUMIFS(VENTE!$F$4:$F$14982,VENTE!$E$4:$E$14982,"0,10",VENTE!$J$4:$J$14982,A12) -> 0 | E12: =SUMIFS(VENTE!$F$4:$F$14982,VENTE!$E$4:$E$14982,"0,14",VENTE!$J$4:$J$14982,A12) -> 0 | F12: =SUMIFS(VENTE!$F$4:$F$14982,VENTE!$E$4:$E$14982,"0,30",VENTE!$J$4:$J$14982,A12) -> 0 | G12: =ROUNDUP(Tableau4[[#This Row],[Vente HT]],-1)*0.2 -> 15626 | H12: =SUMIFS(ACHAT!$E$5:$E$34826,ACHAT!$C$5:$C$34826,XML!$I$2,ACHAT!$N$5:$N$34826,A12,ACHAT!$J$5:$J$34826,XML!$J$2) -> 0 | I12: =SUMIFS(ACHAT!$E$5:$E$34826,ACHAT!$C$5:$C$34826,XML!$I$4,ACHAT!$N$5:$N$34826,A12,ACHAT!$J$5:$J$34826,XML!$J$4) -> 0 | J12: =SUMIFS(ACHAT!$E$5:$E$34826,ACHAT!$C$5:$C$34826,XML!$I$3,ACHAT!$N$5:$N$34826,A12,ACHAT!$J$5:$J$34826,XML!$J$3) -> 0 | K12: =SUMIFS(ACHAT!$E$5:$E$34826,ACHAT!$C$5:$C$34826,XML!$I$8,ACHAT!$N$5:$N$34826,A12,ACHAT!$J$5:$J$34826,XML!$J$8) -> 15089.01 | L12: =SUMIFS(ACHAT!$E$5:$E$34826,ACHAT!$C$5:$C$34826,XML!$I$5,ACHAT!$N$5:$N$34826,A12,ACHAT!$J$5:$J$34826,XML!$J$5) -> 0 | M12: =SUMIFS(ACHAT!$E$5:$E$34826,ACHAT!$C$5:$C$34826,XML!$I$6,ACHAT!$N$5:$N$34826,A12,ACHAT!$J$5:$J$34826,XML!$J$6) -> 0 | N12: =SUMIFS(ACHAT!$E$5:$E$34826,ACHAT!$C$5:$C$34826,XML!$I$7,ACHAT!$N$5:$N$34826,A12,ACHAT!$J$5:$J$34826,XML!$J$7) -> 0 | O12: 15089.01 | P12: -3026.98 | Q12: 18115.99 | R12: -2489.99 | AC12: 0.2 | AD12: PRES DE SERVICES
A13: 2016-08-01 | B13: =SUMIFS(VENTE!$D$4:$D$74974,VENTE!$J$4:$J$74974,A13) -> 44609.43 | C13: =SUMIFS(VENTE!$F$4:$F$14982,VENTE!$E$4:$E$14982,"0,07",VENTE!$J$4:$J$14982,Tableau4[[#This Row],[Mois Décl]]) -> 0 | D13: =SUMIFS(VENTE!$F$4:$F$14982,VENTE!$E$4:$E$14982,"0,10",VENTE!$J$4:$J$14982,A13) -> 0 | E13: =SUMIFS(VENTE!$F$4:$F$14982,VENTE!$E$4:$E$14982,"0,14",VENTE!$J$4:$J$14982,A13) -> 0 | F13: =SUMIFS(VENTE!$F$4:$F$14982,VENTE!$E$4:$E$14982,"0,30",VENTE!$J$4:$J$14982,A13) -> 0 | G13: =ROUNDUP(Tableau4[[#This Row],[Vente HT]],-1)*0.2 -> 8922 | H13: =SUMIFS(ACHAT!$E$5:$E$34826,ACHAT!$C$5:$C$34826,XML!$I$2,ACHAT!$N$5:$N$34826,A13,ACHAT!$J$5:$J$34826,XML!$J$2) -> 0 | I13: =SUMIFS(ACHAT!$E$5:$E$34826,ACHAT!$C$5:$C$34826,XML!$I$4,ACHAT!$N$5:$N$34826,A13,ACHAT!$J$5:$J$34826,XML!$J$4) -> 0 | J13: =SUMIFS(ACHAT!$E$5:$E$34826,ACHAT!$C$5:$C$34826,XML!$I$3,ACHAT!$N$5:$N$34826,A13,ACHAT!$J$5:$J$34826,XML!$J$3) -> 0 | K13: =SUMIFS(ACHAT!$E$5:$E$34826,ACHAT!$C$5:$C$34826,XML!$I$8,ACHAT!$N$5:$N$34826,A13,ACHAT!$J$5:$J$34826,XML!$J$8) -> 7483.01 | L13: =SUMIFS(ACHAT!$E$5:$E$34826,ACHAT!$C$5:$C$34826,XML!$I$5,ACHAT!$N$5:$N$34826,A13,ACHAT!$J$5:$J$34826,XML!$J$5) -> 0 | M13: =SUMIFS(ACHAT!$E$5:$E$34826,ACHAT!$C$5:$C$34826,XML!$I$6,ACHAT!$N$5:$N$34826,A13,ACHAT!$J$5:$J$34826,XML!$J$6) -> 0 | N13: =SUMIFS(ACHAT!$E$5:$E$34826,ACHAT!$C$5:$C$34826,XML!$I$7,ACHAT!$N$5:$N$34826,A13,ACHAT!$J$5:$J$34826,XML!$J$7) -> 0 | O13: 7483.01 | P13: -2489.99 | Q13: 9973 | R13: -1051
A14: 2016-09-01 | B14: =SUMIFS(VENTE!$D$4:$D$74974,VENTE!$J$4:$J$74974,A14) -> 39823.06 | C14: =SUMIFS(VENTE!$F$4:$F$14982,VENTE!$E$4:$E$14982,"0,07",VENTE!$J$4:$J$14982,Tableau4[[#This Row],[Mois Décl]]) -> 0 | D14: =SUMIFS(VENTE!$F$4:$F$14982,VENTE!$E$4:$E$14982,"0,10",VENTE!$J$4:$J$14982,A14) -> 0 | E14: =SUMIFS(VENTE!$F$4:$F$14982,VENTE!$E$4:$E$14982,"0,14",VENTE!$J$4:$J$14982,A14) -> 0 | F14: =SUMIFS(VENTE!$F$4:$F$14982,VENTE!$E$4:$E$14982,"0,30",VENTE!$J$4:$J$14982,A14) -> 0 | G14: =ROUNDUP(Tableau4[[#This Row],[Vente HT]],-1)*0.2 -> 7966 | H14: =SUMIFS(ACHAT!$E$5:$E$34826,ACHAT!$C$5:$C$34826,XML!$I$2,ACHAT!$N$5:$N$34826,A14,ACHAT!$J$5:$J$34826,XML!$J$2) -> 0 | I14: =SUMIFS(ACHAT!$E$5:$E$34826,ACHAT!$C$5:$C$34826,XML!$I$4,ACHAT!$N$5:$N$34826,A14,ACHAT!$J$5:$J$34826,XML!$J$4) -> 0 | J14: =SUMIFS(ACHAT!$E$5:$E$34826,ACHAT!$C$5:$C$34826,XML!$I$3,ACHAT!$N$5:$N$34826,A14,ACHAT!$J$5:$J$34826,XML!$J$3) -> 0 | K14: =SUMIFS(ACHAT!$E$5:$E$34826,ACHAT!$C$5:$C$34826,XML!$I$8,ACHAT!$N$5:$N$34826,A14,ACHAT!$J$5:$J$34826,XML!$J$8) -> 9207.4 | L14: =SUMIFS(ACHAT!$E$5:$E$34826,ACHAT!$C$5:$C$34826,XML!$I$5,ACHAT!$N$5:$N$34826,A14,ACHAT!$J$5:$J$34826,XML!$J$5) -> 0 | M14: =SUMIFS(ACHAT!$E$5:$E$34826,ACHAT!$C$5:$C$34826,XML!$I$6,ACHAT!$N$5:$N$34826,A14,ACHAT!$J$5:$J$34826,XML!$J$6) -> 0 | N14: =SUMIFS(ACHAT!$E$5:$E$34826,ACHAT!$C$5:$C$34826,XML!$I$7,ACHAT!$N$5:$N$34826,A14,ACHAT!$J$5:$J$34826,XML!$J$7) -> 0 | O14: 9207.4 | P14: -1051 | Q14: 10258.4 | R14: -2292.4
A15: 2016-10-01 | B15: =SUMIFS(VENTE!$D$4:$D$74974,VENTE!$J$4:$J$74974,A15) -> 28713.52 | C15: =SUMIFS(VENTE!$F$4:$F$14982,VENTE!$E$4:$E$14982,"0,07",VENTE!$J$4:$J$14982,Tableau4[[#This Row],[Mois Décl]]) -> 0 | D15: =SUMIFS(VENTE!$F$4:$F$14982,VENTE!$E$4:$E$14982,"0,10",VENTE!$J$4:$J$14982,A15) -> 0 | E15: =SUMIFS(VENTE!$F$4:$F$14982,VENTE!$E$4:$E$14982,"0,14",VENTE!$J$4:$J$14982,A15) -> 0 | F15: =SUMIFS(VENTE!$F$4:$F$14982,VENTE!$E$4:$E$14982,"0,30",VENTE!$J$4:$J$14982,A15) -> 0 | G15: =ROUNDUP(Tableau4[[#This Row],[Vente HT]],-1)*0.2 -> 5744 | H15: =SUMIFS(ACHAT!$E$5:$E$34826,ACHAT!$C$5:$C$34826,XML!$I$2,ACHAT!$N$5:$N$34826,A15,ACHAT!$J$5:$J$34826,XML!$J$2) -> 0 | I15: =SUMIFS(ACHAT!$E$5:$E$34826,ACHAT!$C$5:$C$34826,XML!$I$4,ACHAT!$N$5:$N$34826,A15,ACHAT!$J$5:$J$34826,XML!$J$4) -> 0 | J15: =SUMIFS(ACHAT!$E$5:$E$34826,ACHAT!$C$5:$C$34826,XML!$I$3,ACHAT!$N$5:$N$34826,A15,ACHAT!$J$5:$J$34826,XML!$J$3) -> 0 | K15: =SUMIFS(ACHAT!$E$5:$E$34826,ACHAT!$C$5:$C$34826,XML!$I$8,ACHAT!$N$5:$N$34826,A15,ACHAT!$J$5:$J$34826,XML!$J$8) -> 3661.17 | L15: =SUMIFS(ACHAT!$E$5:$E$34826,ACHAT!$C$5:$C$34826,XML!$I$5,ACHAT!$N$5:$N$34826,A15,ACHAT!$J$5:$J$34826,XML!$J$5) -> 0 | M15: =SUMIFS(ACHAT!$E$5:$E$34826,ACHAT!$C$5:$C$34826,XML!$I$6,ACHAT!$N$5:$N$34826,A15,ACHAT!$J$5:$J$34826,XML!$J$6) -> 0 | N15: =SUMIFS(ACHAT!$E$5:$E$34826,ACHAT!$C$5:$C$34826,XML!$I$7,ACHAT!$N$5:$N$34826,A15,ACHAT!$J$5:$J$34826,XML!$J$7) -> 0 | O15: 3661.17 | P15: =IF(R14>=0,0,OFFSET(A10,4,17)) -> -2292.4 | Q15: 5953.57 | R15: -209.57
A16: 2016-11-01 | B16: =SUMIFS(VENTE!$D$4:$D$74974,VENTE!$J$4:$J$74974,A16) -> 34386.83 | C16: =SUMIFS(VENTE!$F$4:$F$14982,VENTE!$E$4:$E$14982,"0,07",VENTE!$J$4:$J$14982,Tableau4[[#This Row],[Mois Décl]]) -> 0 | D16: =SUMIFS(VENTE!$F$4:$F$14982,VENTE!$E$4:$E$14982,"0,10",VENTE!$J$4:$J$14982,A16) -> 0 | E16: =SUMIFS(VENTE!$F$4:$F$14982,VENTE!$E$4:$E$14982,"0,14",VENTE!$J$4:$J$14982,A16) -> 0 | F16: =SUMIFS(VENTE!$F$4:$F$14982,VENTE!$E$4:$E$14982,"0,30",VENTE!$J$4:$J$14982,A16) -> 0 | G16: =ROUNDUP(Tableau4[[#This Row],[Vente HT]],-1)*0.2 -> 6878 | H16: =SUMIFS(ACHAT!$E$5:$E$34826,ACHAT!$C$5:$C$34826,XML!$I$2,ACHAT!$N$5:$N$34826,A16,ACHAT!$J$5:$J$34826,XML!$J$2) -> 0 | I16: =SUMIFS(ACHAT!$E$5:$E$34826,ACHAT!$C$5:$C$34826,XML!$I$4,ACHAT!$N$5:$N$34826,A16,ACHAT!$J$5:$J$34826,XML!$J$4) -> 0 | J16: =SUMIFS(ACHAT!$E$5:$E$34826,ACHAT!$C$5:$C$34826,XML!$I$3,ACHAT!$N$5:$N$34826,A16,ACHAT!$J$5:$J$34826,XML!$J$3) -> 0 | K16: =SUMIFS(ACHAT!$E$5:$E$34826,ACHAT!$C$5:$C$34826,XML!$I$8,ACHAT!$N$5:$N$34826,A16,ACHAT!$J$5:$J$34826,XML!$J$8) -> 6895.16 | L16: =SUMIFS(ACHAT!$E$5:$E$34826,ACHAT!$C$5:$C$34826,XML!$I$5,ACHAT!$N$5:$N$34826,A16,ACHAT!$J$5:$J$34826,XML!$J$5) -> 0 | M16: =SUMIFS(ACHAT!$E$5:$E$34826,ACHAT!$C$5:$C$34826,XML!$I$6,ACHAT!$N$5:$N$34826,A16,ACHAT!$J$5:$J$34826,XML!$J$6) -> 0 | N16: =SUMIFS(ACHAT!$E$5:$E$34826,ACHAT!$C$5:$C$34826,XML!$I$7,ACHAT!$N$5:$N$34826,A16,ACHAT!$J$5:$J$34826,XML!$J$7) -> 0 | O16: 6895.16 | P16: -209.57 | Q16: 7104.73 | R16: -226.73
A17: 2016-12-01 | B17: =SUMIFS(VENTE!$D$4:$D$74974,VENTE!$J$4:$J$74974,A17) -> 72656.48 | C17: =SUMIFS(VENTE!$F$4:$F$14982,VENTE!$E$4:$E$14982,"0,07",VENTE!$J$4:$J$14982,Tableau4[[#This Row],[Mois Décl]]) -> 0 | D17: =SUMIFS(VENTE!$F$4:$F$14982,VENTE!$E$4:$E$14982,"0,10",VENTE!$J$4:$J$14982,A17) -> 0 | E17: =SUMIFS(VENTE!$F$4:$F$14982,VENTE!$E$4:$E$14982,"0,14",VENTE!$J$4:$J$14982,A17) -> 0 | F17: =SUMIFS(VENTE!$F$4:$F$14982,VENTE!$E$4:$E$14982,"0,30",VENTE!$J$4:$J$14982,A17) -> 0 | G17: =ROUNDUP(Tableau4[[#This Row],[Vente HT]],-1)*0.2 -> 14532 | H17: =SUMIFS(ACHAT!$E$5:$E$34826,ACHAT!$C$5:$C$34826,XML!$I$2,ACHAT!$N$5:$N$34826,A17,ACHAT!$J$5:$J$34826,XML!$J$2) -> 0 | I17: =SUMIFS(ACHAT!$E$5:$E$34826,ACHAT!$C$5:$C$34826,XML!$I$4,ACHAT!$N$5:$N$34826,A17,ACHAT!$J$5:$J$34826,XML!$J$4) -> 0 | J17: =SUMIFS(ACHAT!$E$5:$E$34826,ACHAT!$C$5:$C$34826,XML!$I$3,ACHAT!$N$5:$N$34826,A17,ACHAT!$J$5:$J$34826,XML!$J$3) -> 0 | K17: =SUMIFS(ACHAT!$E$5:$E$34826,ACHAT!$C$5:$C$34826,XML!$I$8,ACHAT!$N$5:$N$34826,A17,ACHAT!$J$5:$J$34826,XML!$J$8) -> 12454.94 | L17: =SUMIFS(ACHAT!$E$5:$E$34826,ACHAT!$C$5:$C$34826,XML!$I$5,ACHAT!$N$5:$N$34826,A17,ACHAT!$J$5:$J$34826,XML!$J$5) -> 0 | M17: =SUMIFS(ACHAT!$E$5:$E$34826,ACHAT!$C$5:$C$34826,XML!$I$6,ACHAT!$N$5:$N$34826,A17,ACHAT!$J$5:$J$34826,XML!$J$6) -> 0 | N17: =SUMIFS(ACHAT!$E$5:$E$34826,ACHAT!$C$5:$C$34826,XML!$I$7,ACHAT!$N$5:$N$34826,A17,ACHAT!$J$5:$J$34826,XML!$J$7) -> 1333.33 | O17: 13788.27 | P17: -226.73 | Q17: 14015 | R17: 517
A18: ="RAD"&" "&YEAR(A6) -> RAD 2016 | B18: =SUMIFS(VENTE!$D$4:$D$74974,VENTE!$J$4:$J$74974,A18) -> 0 | C18: =SUMIFS(VENTE!$F$4:$F$14982,VENTE!$E$4:$E$14982,"0,07",VENTE!$J$4:$J$14982,Tableau4[[#This Row],[Mois Décl]]) -> 0 | D18: =SUMIFS(VENTE!$F$4:$F$14982,VENTE!$E$4:$E$14982,"0,10",VENTE!$J$4:$J$14982,A18) -> 0 | E18: =SUMIFS(VENTE!$F$4:$F$14982,VENTE!$E$4:$E$14982,"0,14",VENTE!$J$4:$J$14982,A18) -> 0 | F18: =SUMIFS(VENTE!$F$4:$F$14982,VENTE!$E$4:$E$14982,"0,30",VENTE!$J$4:$J$14982,A18) -> 0 | G18: =SUMIFS(VENTE!$F$4:$F$74974,VENTE!$J$4:$J$74974,A18) -> 0 | H18: =SUMIFS(ACHAT!$E$5:$E$34826,ACHAT!$C$5:$C$34826,XML!$I$2,ACHAT!$N$5:$N$34826,A18,ACHAT!$J$5:$J$34826,XML!$J$2) -> 0 | I18: =SUMIFS(ACHAT!$E$5:$E$34826,ACHAT!$C$5:$C$34826,XML!$I$4,ACHAT!$N$5:$N$34826,A18,ACHAT!$J$5:$J$34826,XML!$J$4) -> 0 | J18: =SUMIFS(ACHAT!$E$5:$E$34826,ACHAT!$C$5:$C$34826,XML!$I$3,ACHAT!$N$5:$N$34826,A18,ACHAT!$J$5:$J$34826,XML!$J$3) -> 0 | K18: =SUMIFS(ACHAT!$E$5:$E$34826,ACHAT!$C$5:$C$34826,XML!$I$8,ACHAT!$N$5:$N$34826,A18,ACHAT!$J$5:$J$34826,XML!$J$8) -> 0 | L18: =SUMIFS(ACHAT!$E$5:$E$34826,ACHAT!$C$5:$C$34826,XML!$I$5,ACHAT!$N$5:$N$34826,A18,ACHAT!$J$5:$J$34826,XML!$J$5) -> 0 | M18: =SUMIFS(ACHAT!$E$5:$E$34826,ACHAT!$C$5:$C$34826,XML!$I$6,ACHAT!$N$5:$N$34826,A18,ACHAT!$J$5:$J$34826,XML!$J$6) -> 0 | N18: =SUMIFS(ACHAT!$E$5:$E$34826,ACHAT!$C$5:$C$34826,XML!$I$7,ACHAT!$N$5:$N$34826,A18,ACHAT!$J$5:$J$34826,XML!$J$7) -> 0 | O18: 0
A19: Total | B19: =SUBTOTAL(109,[Vente HT]) -> 639752.75 | C19: =SUBTOTAL(109,[Tva Vente 7%]) -> 0 | D19: =SUBTOTAL(109,[Tva Vente 10%]) -> 0 | E19: =SUBTOTAL(109,[Tva Vente 14%]) -> 0 | F19: =SUBTOTAL(109,[Tva Vente 30%]) -> 0 | G19: =SUBTOTAL(109,[Tva Vente 20%]) -> 127962 | H19: =SUBTOTAL(109,[Pres serv 20%]) -> 1190.6 | I19: =SUBTOTAL(109,[Transp 14% ]) -> 0 | J19: =SUBTOTAL(107,[Op Bq 10%]) -> 0 | K19: =SUBTOTAL(109,[March 20%]) -> 119252.77 | L19: =SUBTOTAL(109,[Services 7%]) -> 0 | M19: =SUBTOTAL(109,[Elect 14%]) -> 133.03 | N19: =SUBTOTAL(109,[Immob 20%]) -> 1333.33 | O19: =SUBTOTAL(109,[Total TVA Mois Achat]) -> 121909.73
A20: RAD = RESTE A DECLARER
A23: ="CONTRÔLE TVA FACTURE ANNEE"&" "&YEAR(A6) -> CONTRÔLE TVA FACTURE ANNEE 2016
A25: Contrôle du calcul de la TVA collectée | G25: Récapitulation du chiffre d'affaires déclaré | L25: Observations
A26: Chiffre d'affaires | C26: TVA correspondante | G26: Désignation | I26: Montant | L26: Situation des comptes | N26: 3456 | O26: 4456
A27: Taux | B27: Montant | G27: Non taxable | L27: Suivant détail ci-dessus | N27: =IF(R17<0,-R17,0) -> 0 | O27: =IF(R17>0,R17,0) -> 517
A28: 7 | B28: =Tableau4[[#Totals],[Tva Vente 7%]]-C18 -> 0 | C28: =B28*A28/100 -> 0 | G28: Taxable à 7% | L28: Suivant les comptes | O28: 506.78
A29: 10 | B29: =Tableau4[[#Totals],[Tva Vente 10%]]-D18 -> 0 | C29: =B29*A29/100 -> 0 | G29: Taxable à 10% | L29: Ecart | N29: =N27-N28 -> 0 | O29: =O27-O28 -> 10.22
A30: 14 | B30: =Tableau4[[#Totals],[Tva Vente 14%]]-E18 -> 0 | C30: 0 | G30: Taxable à 14% | L30: Autres observations
A31: 20 | B31: =Tableau4[[#Totals],[Vente HT]]-B18 -> 639752.75 | C31: 127950.55 | G31: Taxable à 20% | I31: =Tableau4[[#Totals],[Vente HT]]-B18 -> 639752.75
A32: 30 | B32: =Tableau4[[#Totals],[Tva Vente 30%]]-F18 -> 0 | C32: 0 | G32: Taxable à 30% | I32: =H21 -> 0
A33: Total calculé | C33: =SUM(C28:C32) -> 127950.55 | G33: Total hors taxe | I33: =SUM(I27:I31) -> 639752.75
A34: Total déclaré | C34: =Tableau4[[#Totals],[Tva Vente 20%]]-G18 -> 127962 | G34: TVA collectée | I34: =Tableau4[[#Totals],[Tva Vente 20%]]-G18 -> 127962
A35: Ecart | C35: =C33-C34 -> -11.45 | G35: Total TTC | I35: =SUM(I33:I34) -> 767714.75
A38: DESIGNATION | F38: MONTANT
A39: Situation au début de l'exercice
A40: * Clients et comptes rattachés | D40: (poste 342) | E40: +
A41: * Clients créditeurs, avances et acomptes | D41: (poste 442) | E41: -
A42: * Intérêts courus et non échus à percevoir | D42: (cpte 3493) | E42: +
A43: * Créances rattachées aux cptes d'associés | D43: (cpte 3467) | E43: +
A44: * Chèques à encaisser ou en portefeuille | D44: (cpte 5111) | E44: +
A45: * Effets à encaisser ou en portefeuille | D45: (cpte 5113) | E45: +
A46: Situation en fin d'exercice
A47: * Clients et comptes rattachés | D47: (poste 342) | E47: -
A48: * Clients créditeurs, avances et acomptes | D48: (poste 442) | E48: +
A49: * Intérêts courus et non échus à percevoir | D49: (cpte 3493) | E49: -
A50: * Créances rattachées aux cptes d'associés | D50: (cpte 3467) | E50: -
A51: * Chèques à encaisser ou en portefeuille | D51: (cpte 5111) | E51: -
A52: * Effets à encaisser ou en portefeuille | D52: (cpte 5113) | E52: -
A53: Chiffre d'affaires TTC de l'exercice | E53: + | F53: =CA!D17 -> 748853.94
A54: Régularisation comptables opérées
A55: * Clients passés en charges (TTC) | E55: -
A56: * Clients passés en produits (TTC) | E56: +
A57: Opérations en instance en rapprochements bancaires
A58: * Remises non encaissées au début de l'exercice | E58: +
A59: * Remises non encaissées en fin d'exercice | E59: -
A60: CA TOTAL TTC ( encaissements théoriques) | F60: =F40-F41+F42+F43+F44+F45-F47+F48-F49-F50-F51-F52+F53-F55+F56+F58-F59 -> 748853.94
A61: CA DECLARE TTC | F61: =I35 -> 767714.75
A62: ECART ( 1 ) | F62: =F60-F61 -> -18860.81

Sheet CA
A2: ="TABLEAU CHIFFRE D'AFFAIRE ET ACHATS ANNEE"&" "&YEAR(A6) -> TABLEAU CHIFFRE D'AFFAIRE ET ACHATS ANNEE 2016
A4: Mois Décl | B4: Vente HT | C4: Tva Vente | D4: Vente TTC | E4: Pres serv 20% | F4: Transp 14% | G4: Op Bq 10% | H4: March 20% | I4: Services 7% | J4: Elect 14% | K4: Immob 20% | L4: Total Achat HT | M4: Total Espéces | N4: Total Chq Effet et Autres | O4: Ventes Déclaré TTC
A5: =RECAP!A6 -> 2016-01-01 | B5: =SUMIFS(VENTE!$D$4:$D$75000,X!$B$4:$B$75000,A5) -> 47505.17 | C5: =SUMIFS(VENTE!$F$4:$F$75000,X!$B$4:$B$75000,A5) -> 9501.03 | D5: =SUMIFS(VENTE!$G$4:$G$75000,X!$B$4:$B$75000,A5) -> 57006.2 | E5: =SUMIFS(ACHAT!$D$5:$D$75000,ACHAT!$C$5:$C$75000,XML!$I$2,X!$D$5:$D$75000,A5,ACHAT!$J$5:$J$75000,XML!$J$2) -> 251.5 | F5: =SUMIFS(ACHAT!$D$5:$D$75000,ACHAT!$C$5:$C$75000,XML!$I$4,X!$D$5:$D$75000,A5,ACHAT!$J$5:$J$75000,XML!$J$4) -> 0 | G5: =SUMIFS(ACHAT!$D$5:$D$75000,ACHAT!$C$5:$C$75000,XML!$I$3,X!$D$5:$D$75000,A5,ACHAT!$J$5:$J$75000,XML!$J$3) -> 6 | H5: =SUMIFS(ACHAT!$D$5:$D$75000,ACHAT!$C$5:$C$75000,XML!$I$8,X!$D$5:$D$75000,A5,ACHAT!$J$5:$J$75000,XML!$J$8) -> 41434.59 | I5: =SUMIFS(ACHAT!$D$5:$D$75000,ACHAT!$C$5:$C$75000,XML!$I$5,X!$D$5:$D$75000,A5,ACHAT!$J$5:$J$75000,XML!$J$5) -> 0 | J5: =SUMIFS(ACHAT!$D$5:$D$75000,ACHAT!$C$5:$C$75000,XML!$I$6,X!$D$5:$D$75000,A5,ACHAT!$J$5:$J$75000,XML!$J$5) -> 0 | K5: =SUMIFS(ACHAT!$D$5:$D$75000,ACHAT!$C$5:$C$75000,XML!$I$7,X!$D$5:$D$75000,A5,ACHAT!$J$5:$J$75000,XML!$J$7) -> 0 | L5: =E5+F5++G5+H5+I5+J5+K5 -> 41692.09 | M5: =SUMIFS(VENTE!$G$4:$G$75000,X!$C$4:$C$75000,A5,VENTE!$K$4:$K$75000,"1") -> 20498.8 | N5: =SUMIFS(VENTE!$G$4:$G$75000,X!$C$4:$C$75000,A5,VENTE!$K$4:$K$75000,"2")+SUMIFS(VENTE!$G$4:$G$75000,X!$C$4:$C$75000,A5,VENTE!$K$4:$K$75000,"3")+SUMIFS(VENTE!$G$4:$G$75000,X!$C$4:$C$75000,A5,VENTE!$K$4:$K$75000,"4")+SUMIFS(VENTE!$G$4:$G$75000,X!$C$4:$C$75000,A5,VENTE!$K$4:$K$75000,"5")+SUMIFS(VENTE!$G$4:$G$75000,X!$C$4:$C$75000,A5,VENTE!$K$4:$K$75000,"6")+SUMIFS(VENTE!$G$4:$G$75000,X!$C$4:$C$75000,A5,VENTE!$K$4:$K$75000,"7") -> 66732.7 | O5: =Tableau39[[#This Row],[Total Espéces]]+N5 -> 87231.5
A6: =RECAP!A7 -> 2016-02-01 | B6: =SUMIFS(VENTE!$D$4:$D$75000,X!$B$4:$B$75000,A6) -> 72116.58 | C6: =SUMIFS(VENTE!$F$4:$F$75000,X!$B$4:$B$75000,A6) -> 14423.32 | D6: =SUMIFS(VENTE!$G$4:$G$75000,X!$B$4:$B$75000,A6) -> 86539.9 | E6: =SUMIFS(ACHAT!$D$5:$D$75000,ACHAT!$C$5:$C$75000,XML!$I$2,X!$D$5:$D$75000,A6,ACHAT!$J$5:$J$75000,XML!$J$2) -> 420.5 | F6: =SUMIFS(ACHAT!$D$5:$D$75000,ACHAT!$C$5:$C$75000,XML!$I$4,X!$D$5:$D$75000,A6,ACHAT!$J$5:$J$75000,XML!$J$4) -> 0 | G6: =SUMIFS(ACHAT!$D$5:$D$75000,ACHAT!$C$5:$C$75000,XML!$I$3,X!$D$5:$D$75000,A6,ACHAT!$J$5:$J$75000,XML!$J$3) -> 0 | H6: =SUMIFS(ACHAT!$D$5:$D$75000,ACHAT!$C$5:$C$75000,XML!$I$8,X!$D$5:$D$75000,A6,ACHAT!$J$5:$J$75000,XML!$J$8) -> 68136.66 | I6: =SUMIFS(ACHAT!$D$5:$D$75000,ACHAT!$C$5:$C$75000,XML!$I$5,X!$D$5:$D$75000,A6,ACHAT!$J$5:$J$75000,XML!$J$5) -> 0 | J6: =SUMIFS(ACHAT!$D$5:$D$75000,ACHAT!$C$5:$C$75000,XML!$I$6,X!$D$5:$D$75000,A6,ACHAT!$J$5:$J$75000,XML!$J$5) -> 0 | K6: =SUMIFS(ACHAT!$D$5:$D$75000,ACHAT!$C$5:$C$75000,XML!$I$7,X!$D$5:$D$75000,A6,ACHAT!$J$5:$J$75000,XML!$J$7) -> 0 | L6: 68557.16 | M6: =SUMIFS(VENTE!$G$4:$G$75000,X!$C$4:$C$75000,A6,VENTE!$K$4:$K$75000,"1") -> 46351.4 | N6: =SUMIFS(VENTE!$G$4:$G$75000,X!$C$4:$C$75000,A6,VENTE!$K$4:$K$75000,"2")+SUMIFS(VENTE!$G$4:$G$75000,X!$C$4:$C$75000,A6,VENTE!$K$4:$K$75000,"3")+SUMIFS(VENTE!$G$4:$G$75000,X!$C$4:$C$75000,A6,VENTE!$K$4:$K$75000,"4")+SUMIFS(VENTE!$G$4:$G$75000,X!$C$4:$C$75000,A6,VENTE!$K$4:$K$75000,"5")+SUMIFS(VENTE!$G$4:$G$75000,X!$C$4:$C$75000,A6,VENTE!$K$4:$K$75000,"6")+SUMIFS(VENTE!$G$4:$G$75000,X!$C$4:$C$75000,A6,VENTE!$K$4:$K$75000,"7") -> 18716 | O6: =Tableau39[[#This Row],[Total Espéces]]+N6 -> 65067.4
A7: =RECAP!A8 -> 2016-03-01 | B7: =SUMIFS(VENTE!$D$4:$D$75000,X!$B$4:$B$75000,A7) -> 93098.1 | C7: =SUMIFS(VENTE!$F$4:$F$75000,X!$B$4:$B$75000,A7) -> 18619.6 | D7: =SUMIFS(VENTE!$G$4:$G$75000,X!$B$4:$B$75000,A7) -> 111717.7 | E7: =SUMIFS(ACHAT!$D$5:$D$75000,ACHAT!$C$5:$C$75000,XML!$I$2,X!$D$5:$D$75000,A7,ACHAT!$J$5:$J$75000,XML!$J$2) -> 441.35 | F7: =SUMIFS(ACHAT!$D$5:$D$75000,ACHAT!$C$5:$C$75000,XML!$I$4,X!$D$5:$D$75000,A7,ACHAT!$J$5:$J$75000,XML!$J$4) -> 0 | G7: =SUMIFS(ACHAT!$D$5:$D$75000,ACHAT!$C$5:$C$75000,XML!$I$3,X!$D$5:$D$75000,A7,ACHAT!$J$5:$J$75000,XML!$J$3) -> 20 | H7: =SUMIFS(ACHAT!$D$5:$D$75000,ACHAT!$C$5:$C$75000,XML!$I$8,X!$D$5:$D$75000,A7,ACHAT!$J$5:$J$75000,XML!$J$8) -> 91546.82 | I7: =SUMIFS(ACHAT!$D$5:$D$75000,ACHAT!$C$5:$C$75000,XML!$I$5,X!$D$5:$D$75000,A7,ACHAT!$J$5:$J$75000,XML!$J$5) -> 0 | J7: =SUMIFS(ACHAT!$D$5:$D$75000,ACHAT!$C$5:$C$75000,XML!$I$6,X!$D$5:$D$75000,A7,ACHAT!$J$5:$J$75000,XML!$J$5) -> 0 | K7: =SUMIFS(ACHAT!$D$5:$D$75000,ACHAT!$C$5:$C$75000,XML!$I$7,X!$D$5:$D$75000,A7,ACHAT!$J$5:$J$75000,XML!$J$7) -> 0 | L7: 92008.17 | M7: =SUMIFS(VENTE!$G$4:$G$75000,X!$C$4:$C$75000,A7,VENTE!$K$4:$K$75000,"1") -> 26933.5 | N7: =SUMIFS(VENTE!$G$4:$G$75000,X!$C$4:$C$75000,A7,VENTE!$K$4:$K$75000,"2")+SUMIFS(VENTE!$G$4:$G$75000,X!$C$4:$C$75000,A7,VENTE!$K$4:$K$75000,"3")+SUMIFS(VENTE!$G$4:$G$75000,X!$C$4:$C$75000,A7,VENTE!$K$4:$K$75000,"4")+SUMIFS(VENTE!$G$4:$G$75000,X!$C$4:$C$75000,A7,VENTE!$K$4:$K$75000,"5")+SUMIFS(VENTE!$G$4:$G$75000,X!$C$4:$C$75000,A7,VENTE!$K$4:$K$75000,"6")+SUMIFS(VENTE!$G$4:$G$75000,X!$C$4:$C$75000,A7,VENTE!$K$4:$K$75000,"7") -> 69815.3 | O7: =Tableau39[[#This Row],[Total Espéces]]+N7 -> 96748.8
A8: =RECAP!A9 -> 2016-04-01 | B8: =SUMIFS(VENTE!$D$4:$D$75000,X!$B$4:$B$75000,A8) -> 67223.75 | C8: =SUMIFS(VENTE!$F$4:$F$75000,X!$B$4:$B$75000,A8) -> 13444.75 | D8: =SUMIFS(VENTE!$G$4:$G$75000,X!$B$4:$B$75000,A8) -> 80668.5 | E8: =SUMIFS(ACHAT!$D$5:$D$75000,ACHAT!$C$5:$C$75000,XML!$I$2,X!$D$5:$D$75000,A8,ACHAT!$J$5:$J$75000,XML!$J$2) -> 420.5 | F8: =SUMIFS(ACHAT!$D$5:$D$75000,ACHAT!$C$5:$C$75000,XML!$I$4,X!$D$5:$D$75000,A8,ACHAT!$J$5:$J$75000,XML!$J$4) -> 0 | G8: =SUMIFS(ACHAT!$D$5:$D$75000,ACHAT!$C$5:$C$75000,XML!$I$3,X!$D$5:$D$75000,A8,ACHAT!$J$5:$J$75000,XML!$J$3) -> 0 | H8: =SUMIFS(ACHAT!$D$5:$D$75000,ACHAT!$C$5:$C$75000,XML!$I$8,X!$D$5:$D$75000,A8,ACHAT!$J$5:$J$75000,XML!$J$8) -> 34042.51 | I8: =SUMIFS(ACHAT!$D$5:$D$75000,ACHAT!$C$5:$C$75000,XML!$I$5,X!$D$5:$D$75000,A8,ACHAT!$J$5:$J$75000,XML!$J$5) -> 0 | J8: =SUMIFS(ACHAT!$D$5:$D$75000,ACHAT!$C$5:$C$75000,XML!$I$6,X!$D$5:$D$75000,A8,ACHAT!$J$5:$J$75000,XML!$J$5) -> 0 | K8: =SUMIFS(ACHAT!$D$5:$D$75000,ACHAT!$C$5:$C$75000,XML!$I$7,X!$D$5:$D$75000,A8,ACHAT!$J$5:$J$75000,XML!$J$7) -> 0 | L8: 34463.01 | M8: =SUMIFS(VENTE!$G$4:$G$75000,X!$C$4:$C$75000,A8,VENTE!$K$4:$K$75000,"1") -> 11080.5 | N8: =SUMIFS(VENTE!$G$4:$G$75000,X!$C$4:$C$75000,A8,VENTE!$K$4:$K$75000,"2")+SUMIFS(VENTE!$G$4:$G$75000,X!$C$4:$C$75000,A8,VENTE!$K$4:$K$75000,"3")+SUMIFS(VENTE!$G$4:$G$75000,X!$C$4:$C$75000,A8,VENTE!$K$4:$K$75000,"4")+SUMIFS(VENTE!$G$4:$G$75000,X!$C$4:$C$75000,A8,VENTE!$K$4:$K$75000,"5")+SUMIFS(VENTE!$G$4:$G$75000,X!$C$4:$C$75000,A8,VENTE!$K$4:$K$75000,"6")+SUMIFS(VENTE!$G$4:$G$75000,X!$C$4:$C$75000,A8,VENTE!$K$4:$K$75000,"7") -> 75915.1 | O8: =Tableau39[[#This Row],[Total Espéces]]+N8 -> 86995.6
A9: =RECAP!A10 -> 2016-05-01 | B9: =SUMIFS(VENTE!$D$4:$D$75000,X!$B$4:$B$75000,A9) -> 30045.69 | C9: =SUMIFS(VENTE!$F$4:$F$75000,X!$B$4:$B$75000,A9) -> 6009.11 | D9: =SUMIFS(VENTE!$G$4:$G$75000,X!$B$4:$B$75000,A9) -> 36054.8 | E9: =SUMIFS(ACHAT!$D$5:$D$75000,ACHAT!$C$5:$C$75000,XML!$I$2,X!$D$5:$D$75000,A9,ACHAT!$J$5:$J$75000,XML!$J$2) -> 251.5 | F9: =SUMIFS(ACHAT!$D$5:$D$75000,ACHAT!$C$5:$C$75000,XML!$I$4,X!$D$5:$D$75000,A9,ACHAT!$J$5:$J$75000,XML!$J$4) -> 0 | G9: =SUMIFS(ACHAT!$D$5:$D$75000,ACHAT!$C$5:$C$75000,XML!$I$3,X!$D$5:$D$75000,A9,ACHAT!$J$5:$J$75000,XML!$J$3) -> 30 | H9: =SUMIFS(ACHAT!$D$5:$D$75000,ACHAT!$C$5:$C$75000,XML!$I$8,X!$D$5:$D$75000,A9,ACHAT!$J$5:$J$75000,XML!$J$8) -> 60986.26 | I9: =SUMIFS(ACHAT!$D$5:$D$75000,ACHAT!$C$5:$C$75000,XML!$I$5,X!$D$5:$D$75000,A9,ACHAT!$J$5:$J$75000,XML!$J$5) -> 0 | J9: =SUMIFS(ACHAT!$D$5:$D$75000,ACHAT!$C$5:$C$75000,XML!$I$6,X!$D$5:$D$75000,A9,ACHAT!$J$5:$J$75000,XML!$J$5) -> 0 | K9: =SUMIFS(ACHAT!$D$5:$D$75000,ACHAT!$C$5:$C$75000,XML!$I$7,X!$D$5:$D$75000,A9,ACHAT!$J$5:$J$75000,XML!$J$7) -> 0 | L9: 61267.76 | M9: =SUMIFS(VENTE!$G$4:$G$75000,X!$C$4:$C$75000,A9,VENTE!$K$4:$K$75000,"1") -> 9482.4 | N9: =SUMIFS(VENTE!$G$4:$G$75000,X!$C$4:$C$75000,A9,VENTE!$K$4:$K$75000,"2")+SUMIFS(VENTE!$G$4:$G$75000,X!$C$4:$C$75000,A9,VENTE!$K$4:$K$75000,"3")+SUMIFS(VENTE!$G$4:$G$75000,X!$C$4:$C$75000,A9,VENTE!$K$4:$K$75000,"4")+SUMIFS(VENTE!$G$4:$G$75000,X!$C$4:$C$75000,A9,VENTE!$K$4:$K$75000,"5")+SUMIFS(VENTE!$G$4:$G$75000,X!$C$4:$C$75000,A9,VENTE!$K$4:$K$75000,"6")+SUMIFS(VENTE!$G$4:$G$75000,X!$C$4:$C$75000,A9,VENTE!$K$4:$K$75000,"7") -> 25785.1 | O9: =Tableau39[[#This Row],[Total Espéces]]+N9 -> 35267.5
A10: =RECAP!A11 -> 2016-06-01 | B10: =SUMIFS(VENTE!$D$4:$D$75000,X!$B$4:$B$75000,A10) -> 37841.67 | C10: =SUMIFS(VENTE!$F$4:$F$75000,X!$B$4:$B$75000,A10) -> 7568.33 | D10: =SUMIFS(VENTE!$G$4:$G$75000,X!$B$4:$B$75000,A10) -> 45410 | E10: =SUMIFS(ACHAT!$D$5:$D$75000,ACHAT!$C$5:$C$75000,XML!$I$2,X!$D$5:$D$75000,A10,ACHAT!$J$5:$J$75000,XML!$J$2) -> 334 | F10: =SUMIFS(ACHAT!$D$5:$D$75000,ACHAT!$C$5:$C$75000,XML!$I$4,X!$D$5:$D$75000,A10,ACHAT!$J$5:$J$75000,XML!$J$4) -> 0 | G10: =SUMIFS(ACHAT!$D$5:$D$75000,ACHAT!$C$5:$C$75000,XML!$I$3,X!$D$5:$D$75000,A10,ACHAT!$J$5:$J$75000,XML!$J$3) -> 0 | H10: =SUMIFS(ACHAT!$D$5:$D$75000,ACHAT!$C$5:$C$75000,XML!$I$8,X!$D$5:$D$75000,A10,ACHAT!$J$5:$J$75000,XML!$J$8) -> 32853.33 | I10: =SUMIFS(ACHAT!$D$5:$D$75000,ACHAT!$C$5:$C$75000,XML!$I$5,X!$D$5:$D$75000,A10,ACHAT!$J$5:$J$75000,XML!$J$5) -> 0 | J10: =SUMIFS(ACHAT!$D$5:$D$75000,ACHAT!$C$5:$C$75000,XML!$I$6,X!$D$5:$D$75000,A10,ACHAT!$J$5:$J$75000,XML!$J$5) -> 0 | K10: =SUMIFS(ACHAT!$D$5:$D$75000,ACHAT!$C$5:$C$75000,XML!$I$7,X!$D$5:$D$75000,A10,ACHAT!$J$5:$J$75000,XML!$J$7) -> 0 | L10: 33187.33 | M10: =SUMIFS(VENTE!$G$4:$G$75000,X!$C$4:$C$75000,A10,VENTE!$K$4:$K$75000,"1") -> 26486.5 | N10: =SUMIFS(VENTE!$G$4:$G$75000,X!$C$4:$C$75000,A10,VENTE!$K$4:$K$75000,"2")+SUMIFS(VENTE!$G$4:$G$75000,X!$C$4:$C$75000,A10,VENTE!$K$4:$K$75000,"3")+SUMIFS(VENTE!$G$4:$G$75000,X!$C$4:$C$75000,A10,VENTE!$K$4:$K$75000,"4")+SUMIFS(VENTE!$G$4:$G$75000,X!$C$4:$C$75000,A10,VENTE!$K$4:$K$75000,"5")+SUMIFS(VENTE!$G$4:$G$75000,X!$C$4:$C$75000,A10,VENTE!$K$4:$K$75000,"6")+SUMIFS(VENTE!$G$4:$G$75000,X!$C$4:$C$75000,A10,VENTE!$K$4:$K$75000,"7") -> 13484 | O10: =Tableau39[[#This Row],[Total Espéces]]+N10 -> 39970.5
A11: =RECAP!A12 -> 2016-07-01 | B11: =SUMIFS(VENTE!$D$4:$D$75000,X!$B$4:$B$75000,A11) -> 51891.82 | C11: =SUMIFS(VENTE!$F$4:$F$75000,X!$B$4:$B$75000,A11) -> 10378.38 | D11: =SUMIFS(VENTE!$G$4:$G$75000,X!$B$4:$B$75000,A11) -> 62270.2 | E11: =SUMIFS(ACHAT!$D$5:$D$75000,ACHAT!$C$5:$C$75000,XML!$I$2,X!$D$5:$D$75000,A11,ACHAT!$J$5:$J$75000,XML!$J$2) -> 334 | F11: =SUMIFS(ACHAT!$D$5:$D$75000,ACHAT!$C$5:$C$75000,XML!$I$4,X!$D$5:$D$75000,A11,ACHAT!$J$5:$J$75000,XML!$J$4) -> 0 | G11: =SUMIFS(ACHAT!$D$5:$D$75000,ACHAT!$C$5:$C$75000,XML!$I$3,X!$D$5:$D$75000,A11,ACHAT!$J$5:$J$75000,XML!$J$3) -> 0 | H11: =SUMIFS(ACHAT!$D$5:$D$75000,ACHAT!$C$5:$C$75000,XML!$I$8,X!$D$5:$D$75000,A11,ACHAT!$J$5:$J$75000,XML!$J$8) -> 32110.84 | I11: =SUMIFS(ACHAT!$D$5:$D$75000,ACHAT!$C$5:$C$75000,XML!$I$5,X!$D$5:$D$75000,A11,ACHAT!$J$5:$J$75000,XML!$J$5) -> 0 | J11: =SUMIFS(ACHAT!$D$5:$D$75000,ACHAT!$C$5:$C$75000,XML!$I$6,X!$D$5:$D$75000,A11,ACHAT!$J$5:$J$75000,XML!$J$5) -> 0 | K11: =SUMIFS(ACHAT!$D$5:$D$75000,ACHAT!$C$5:$C$75000,XML!$I$7,X!$D$5:$D$75000,A11,ACHAT!$J$5:$J$75000,XML!$J$7) -> 0 | L11: 32444.84 | M11: =SUMIFS(VENTE!$G$4:$G$75000,X!$C$4:$C$75000,A11,VENTE!$K$4:$K$75000,"1") -> 6677.7 | N11: =SUMIFS(VENTE!$G$4:$G$75000,X!$C$4:$C$75000,A11,VENTE!$K$4:$K$75000,"2")+SUMIFS(VENTE!$G$4:$G$75000,X!$C$4:$C$75000,A11,VENTE!$K$4:$K$75000,"3")+SUMIFS(VENTE!$G$4:$G$75000,X!$C$4:$C$75000,A11,VENTE!$K$4:$K$75000,"4")+SUMIFS(VENTE!$G$4:$G$75000,X!$C$4:$C$75000,A11,VENTE!$K$4:$K$75000,"5")+SUMIFS(VENTE!$G$4:$G$75000,X!$C$4:$C$75000,A11,VENTE!$K$4:$K$75000,"6")+SUMIFS(VENTE!$G$4:$G$75000,X!$C$4:$C$75000,A11,VENTE!$K$4:$K$75000,"7") -> 100275 | O11: =Tableau39[[#This Row],[Total Espéces]]+N11 -> 106952.7
A12: =RECAP!A13 -> 2016-08-01 | B12: =SUMIFS(VENTE!$D$4:$D$75000,X!$B$4:$B$75000,A12) -> 37299.83 | C12: =SUMIFS(VENTE!$F$4:$F$75000,X!$B$4:$B$75000,A12) -> 7459.97 | D12: =SUMIFS(VENTE!$G$4:$G$75000,X!$B$4:$B$75000,A12) -> 44759.8 | E12: =SUMIFS(ACHAT!$D$5:$D$75000,ACHAT!$C$5:$C$75000,XML!$I$2,X!$D$5:$D$75000,A12,ACHAT!$J$5:$J$75000,XML!$J$2) -> 350.65 | F12: =SUMIFS(ACHAT!$D$5:$D$75000,ACHAT!$C$5:$C$75000,XML!$I$4,X!$D$5:$D$75000,A12,ACHAT!$J$5:$J$75000,XML!$J$4) -> 0 | G12: =SUMIFS(ACHAT!$D$5:$D$75000,ACHAT!$C$5:$C$75000,XML!$I$3,X!$D$5:$D$75000,A12,ACHAT!$J$5:$J$75000,XML!$J$3) -> 0 | H12: =SUMIFS(ACHAT!$D$5:$D$75000,ACHAT!$C$5:$C$75000,XML!$I$8,X!$D$5:$D$75000,A12,ACHAT!$J$5:$J$75000,XML!$J$8) -> 61062.67 | I12: =SUMIFS(ACHAT!$D$5:$D$75000,ACHAT!$C$5:$C$75000,XML!$I$5,X!$D$5:$D$75000,A12,ACHAT!$J$5:$J$75000,XML!$J$5) -> 0 | J12: =SUMIFS(ACHAT!$D$5:$D$75000,ACHAT!$C$5:$C$75000,XML!$I$6,X!$D$5:$D$75000,A12,ACHAT!$J$5:$J$75000,XML!$J$5) -> 0 | K12: =SUMIFS(ACHAT!$D$5:$D$75000,ACHAT!$C$5:$C$75000,XML!$I$7,X!$D$5:$D$75000,A12,ACHAT!$J$5:$J$75000,XML!$J$7) -> 0 | L12: 61413.32 | M12: =SUMIFS(VENTE!$G$4:$G$75000,X!$C$4:$C$75000,A12,VENTE!$K$4:$K$75000,"1") -> 15312.3 | N12: =SUMIFS(VENTE!$G$4:$G$75000,X!$C$4:$C$75000,A12,VENTE!$K$4:$K$75000,"2")+SUMIFS(VENTE!$G$4:$G$75000,X!$C$4:$C$75000,A12,VENTE!$K$4:$K$75000,"3")+SUMIFS(VENTE!$G$4:$G$75000,X!$C$4:$C$75000,A12,VENTE!$K$4:$K$75000,"4")+SUMIFS(VENTE!$G$4:$G$75000,X!$C$4:$C$75000,A12,VENTE!$K$4:$K$75000,"5")+SUMIFS(VENTE!$G$4:$G$75000,X!$C$4:$C$75000,A12,VENTE!$K$4:$K$75000,"6")+SUMIFS(VENTE!$G$4:$G$75000,X!$C$4:$C$75000,A12,VENTE!$K$4:$K$75000,"7") -> 38219 | O12: =Tableau39[[#This Row],[Total Espéces]]+N12 -> 53531.3
A13: =RECAP!A14 -> 2016-09-01 | B13: =SUMIFS(VENTE!$D$4:$D$75000,X!$B$4:$B$75000,A13) -> 45777.3 | C13: =SUMIFS(VENTE!$F$4:$F$75000,X!$B$4:$B$75000,A13) -> 9155.46 | D13: =SUMIFS(VENTE!$G$4:$G$75000,X!$B$4:$B$75000,A13) -> 54932.76 | E13: =SUMIFS(ACHAT!$D$5:$D$75000,ACHAT!$C$5:$C$75000,XML!$I$2,X!$D$5:$D$75000,A13,ACHAT!$J$5:$J$75000,XML!$J$2) -> 334 | F13: =SUMIFS(ACHAT!$D$5:$D$75000,ACHAT!$C$5:$C$75000,XML!$I$4,X!$D$5:$D$75000,A13,ACHAT!$J$5:$J$75000,XML!$J$4) -> 0 | G13: =SUMIFS(ACHAT!$D$5:$D$75000,ACHAT!$C$5:$C$75000,XML!$I$3,X!$D$5:$D$75000,A13,ACHAT!$J$5:$J$75000,XML!$J$3) -> 0 | H13: =SUMIFS(ACHAT!$D$5:$D$75000,ACHAT!$C$5:$C$75000,XML!$I$8,X!$D$5:$D$75000,A13,ACHAT!$J$5:$J$75000,XML!$J$8) -> 33328.34 | I13: =SUMIFS(ACHAT!$D$5:$D$75000,ACHAT!$C$5:$C$75000,XML!$I$5,X!$D$5:$D$75000,A13,ACHAT!$J$5:$J$75000,XML!$J$5) -> 0 | J13: =SUMIFS(ACHAT!$D$5:$D$75000,ACHAT!$C$5:$C$75000,XML!$I$6,X!$D$5:$D$75000,A13,ACHAT!$J$5:$J$75000,XML!$J$5) -> 0 | K13: =SUMIFS(ACHAT!$D$5:$D$75000,ACHAT!$C$5:$C$75000,XML!$I$7,X!$D$5:$D$75000,A13,ACHAT!$J$5:$J$75000,XML!$J$7) -> 0 | L13: 33662.34 | M13: =SUMIFS(VENTE!$G$4:$G$75000,X!$C$4:$C$75000,A13,VENTE!$K$4:$K$75000,"1") -> 22239.8 | N13: =SUMIFS(VENTE!$G$4:$G$75000,X!$C$4:$C$75000,A13,VENTE!$K$4:$K$75000,"2")+SUMIFS(VENTE!$G$4:$G$75000,X!$C$4:$C$75000,A13,VENTE!$K$4:$K$75000,"3")+SUMIFS(VENTE!$G$4:$G$75000,X!$C$4:$C$75000,A13,VENTE!$K$4:$K$75000,"4")+SUMIFS(VENTE!$G$4:$G$75000,X!$C$4:$C$75000,A13,VENTE!$K$4:$K$75000,"5")+SUMIFS(VENTE!$G$4:$G$75000,X!$C$4:$C$75000,A13,VENTE!$K$4:$K$75000,"6")+SUMIFS(VENTE!$G$4:$G$75000,X!$C$4:$C$75000,A13,VENTE!$K$4:$K$75000,"7") -> 20789.96 | O13: =Tableau39[[#This Row],[Total Espéces]]+N13 -> 43029.76
A14: =RECAP!A15 -> 2016-10-01 | B14: =SUMIFS(VENTE!$D$4:$D$75000,X!$B$4:$B$75000,A14) -> 38570.6 | C14: =SUMIFS(VENTE!$F$4:$F$75000,X!$B$4:$B$75000,A14) -> 7714.12 | D14: =SUMIFS(VENTE!$G$4:$G$75000,X!$B$4:$B$75000,A14) -> 46284.71 | E14: =SUMIFS(ACHAT!$D$5:$D$75000,ACHAT!$C$5:$C$75000,XML!$I$2,X!$D$5:$D$75000,A14,ACHAT!$J$5:$J$75000,XML!$J$2) -> 334 | F14: =SUMIFS(ACHAT!$D$5:$D$75000,ACHAT!$C$5:$C$75000,XML!$I$4,X!$D$5:$D$75000,A14,ACHAT!$J$5:$J$75000,XML!$J$4) -> 0 | G14: =SUMIFS(ACHAT!$D$5:$D$75000,ACHAT!$C$5:$C$75000,XML!$I$3,X!$D$5:$D$75000,A14,ACHAT!$J$5:$J$75000,XML!$J$3) -> 0 | H14: =SUMIFS(ACHAT!$D$5:$D$75000,ACHAT!$C$5:$C$75000,XML!$I$8,X!$D$5:$D$75000,A14,ACHAT!$J$5:$J$75000,XML!$J$8) -> 52873.22 | I14: =SUMIFS(ACHAT!$D$5:$D$75000,ACHAT!$C$5:$C$75000,XML!$I$5,X!$D$5:$D$75000,A14,ACHAT!$J$5:$J$75000,XML!$J$5) -> 0 | J14: =SUMIFS(ACHAT!$D$5:$D$75000,ACHAT!$C$5:$C$75000,XML!$I$6,X!$D$5:$D$75000,A14,ACHAT!$J$5:$J$75000,XML!$J$5) -> 0 | K14: =SUMIFS(ACHAT!$D$5:$D$75000,ACHAT!$C$5:$C$75000,XML!$I$7,X!$D$5:$D$75000,A14,ACHAT!$J$5:$J$75000,XML!$J$7) -> 0 | L14: 53207.22 | M14: =SUMIFS(VENTE!$G$4:$G$75000,X!$C$4:$C$75000,A14,VENTE!$K$4:$K$75000,"1") -> 21494.41 | N14: =SUMIFS(VENTE!$G$4:$G$75000,X!$C$4:$C$75000,A14,VENTE!$K$4:$K$75000,"2")+SUMIFS(VENTE!$G$4:$G$75000,X!$C$4:$C$75000,A14,VENTE!$K$4:$K$75000,"3")+SUMIFS(VENTE!$G$4:$G$75000,X!$C$4:$C$75000,A14,VENTE!$K$4:$K$75000,"4")+SUMIFS(VENTE!$G$4:$G$75000,X!$C$4:$C$75000,A14,VENTE!$K$4:$K$75000,"5")+SUMIFS(VENTE!$G$4:$G$75000,X!$C$4:$C$75000,A14,VENTE!$K$4:$K$75000,"6")+SUMIFS(VENTE!$G$4:$G$75000,X!$C$4:$C$75000,A14,VENTE!$K$4:$K$75000,"7") -> 12961.8 | O14: =Tableau39[[#This Row],[Total Espéces]]+N14 -> 34456.21
A15: =RECAP!A16 -> 2016-11-01 | B15: =SUMIFS(VENTE!$D$4:$D$75000,X!$B$4:$B$75000,A15) -> 41107.58 | C15: =SUMIFS(VENTE!$F$4:$F$75000,X!$B$4:$B$75000,A15) -> 8221.52 | D15: =SUMIFS(VENTE!$G$4:$G$75000,X!$B$4:$B$75000,A15) -> 49329.1 | E15: =SUMIFS(ACHAT!$D$5:$D$75000,ACHAT!$C$5:$C$75000,XML!$I$2,X!$D$5:$D$75000,A15,ACHAT!$J$5:$J$75000,XML!$J$2) -> 334 | F15: =SUMIFS(ACHAT!$D$5:$D$75000,ACHAT!$C$5:$C$75000,XML!$I$4,X!$D$5:$D$75000,A15,ACHAT!$J$5:$J$75000,XML!$J$4) -> 0 | G15: =SUMIFS(ACHAT!$D$5:$D$75000,ACHAT!$C$5:$C$75000,XML!$I$3,X!$D$5:$D$75000,A15,ACHAT!$J$5:$J$75000,XML!$J$3) -> 0 | H15: =SUMIFS(ACHAT!$D$5:$D$75000,ACHAT!$C$5:$C$75000,XML!$I$8,X!$D$5:$D$75000,A15,ACHAT!$J$5:$J$75000,XML!$J$8) -> 32169.25 | I15: =SUMIFS(ACHAT!$D$5:$D$75000,ACHAT!$C$5:$C$75000,XML!$I$5,X!$D$5:$D$75000,A15,ACHAT!$J$5:$J$75000,XML!$J$5) -> 0 | J15: =SUMIFS(ACHAT!$D$5:$D$75000,ACHAT!$C$5:$C$75000,XML!$I$6,X!$D$5:$D$75000,A15,ACHAT!$J$5:$J$75000,XML!$J$5) -> 0 | K15: =SUMIFS(ACHAT!$D$5:$D$75000,ACHAT!$C$5:$C$75000,XML!$I$7,X!$D$5:$D$75000,A15,ACHAT!$J$5:$J$75000,XML!$J$7) -> 0 | L15: 32503.25 | M15: =SUMIFS(VENTE!$G$4:$G$75000,X!$C$4:$C$75000,A15,VENTE!$K$4:$K$75000,"1") -> 18000.8 | N15: =SUMIFS(VENTE!$G$4:$G$75000,X!$C$4:$C$75000,A15,VENTE!$K$4:$K$75000,"2")+SUMIFS(VENTE!$G$4:$G$75000,X!$C$4:$C$75000,A15,VENTE!$K$4:$K$75000,"3")+SUMIFS(VENTE!$G$4:$G$75000,X!$C$4:$C$75000,A15,VENTE!$K$4:$K$75000,"4")+SUMIFS(VENTE!$G$4:$G$75000,X!$C$4:$C$75000,A15,VENTE!$K$4:$K$75000,"5")+SUMIFS(VENTE!$G$4:$G$75000,X!$C$4:$C$75000,A15,VENTE!$K$4:$K$75000,"6")+SUMIFS(VENTE!$G$4:$G$75000,X!$C$4:$C$75000,A15,VENTE!$K$4:$K$75000,"7") -> 13263.4 | O15: =Tableau39[[#This Row],[Total Espéces]]+N15 -> 31264.2
A16: =RECAP!A17 -> 2016-12-01 | B16: =SUMIFS(VENTE!$D$4:$D$75000,X!$B$4:$B$75000,A16) -> 61566.9 | C16: =SUMIFS(VENTE!$F$4:$F$75000,X!$B$4:$B$75000,A16) -> 12313.38 | D16: =SUMIFS(VENTE!$G$4:$G$75000,X!$B$4:$B$75000,A16) -> 73880.27 | E16: =SUMIFS(ACHAT!$D$5:$D$75000,ACHAT!$C$5:$C$75000,XML!$I$2,X!$D$5:$D$75000,A16,ACHAT!$J$5:$J$75000,XML!$J$2) -> 165 | F16: =SUMIFS(ACHAT!$D$5:$D$75000,ACHAT!$C$5:$C$75000,XML!$I$4,X!$D$5:$D$75000,A16,ACHAT!$J$5:$J$75000,XML!$J$4) -> 0 | G16: =SUMIFS(ACHAT!$D$5:$D$75000,ACHAT!$C$5:$C$75000,XML!$I$3,X!$D$5:$D$75000,A16,ACHAT!$J$5:$J$75000,XML!$J$3) -> 0 | H16: =SUMIFS(ACHAT!$D$5:$D$75000,ACHAT!$C$5:$C$75000,XML!$I$8,X!$D$5:$D$75000,A16,ACHAT!$J$5:$J$75000,XML!$J$8) -> 39700.18 | I16: =SUMIFS(ACHAT!$D$5:$D$75000,ACHAT!$C$5:$C$75000,XML!$I$5,X!$D$5:$D$75000,A16,ACHAT!$J$5:$J$75000,XML!$J$5) -> 0 | J16: =SUMIFS(ACHAT!$D$5:$D$75000,ACHAT!$C$5:$C$75000,XML!$I$6,X!$D$5:$D$75000,A16,ACHAT!$J$5:$J$75000,XML!$J$5) -> 0 | K16: =SUMIFS(ACHAT!$D$5:$D$75000,ACHAT!$C$5:$C$75000,XML!$I$7,X!$D$5:$D$75000,A16,ACHAT!$J$5:$J$75000,XML!$J$7) -> 6666.67 | L16: 46531.85 | M16: =SUMIFS(VENTE!$G$4:$G$75000,X!$C$4:$C$75000,A16,VENTE!$K$4:$K$75000,"1") -> 37025.27 | N16: =SUMIFS(VENTE!$G$4:$G$75000,X!$C$4:$C$75000,A16,VENTE!$K$4:$K$75000,"2")+SUMIFS(VENTE!$G$4:$G$75000,X!$C$4:$C$75000,A16,VENTE!$K$4:$K$75000,"3")+SUMIFS(VENTE!$G$4:$G$75000,X!$C$4:$C$75000,A16,VENTE!$K$4:$K$75000,"4")+SUMIFS(VENTE!$G$4:$G$75000,X!$C$4:$C$75000,A16,VENTE!$K$4:$K$75000,"5")+SUMIFS(VENTE!$G$4:$G$75000,X!$C$4:$C$75000,A16,VENTE!$K$4:$K$75000,"6")+SUMIFS(VENTE!$G$4:$G$75000,X!$C$4:$C$75000,A16,VENTE!$K$4:$K$75000,"7") -> 50162.5 | O16: =Tableau39[[#This Row],[Total Espéces]]+N16 -> 87187.77
A17: Total | B17: =SUBTOTAL(109,[Vente HT]) -> 624044.99 | C17: =SUBTOTAL(109,[Tva Vente]) -> 124808.97 | D17: =SUBTOTAL(109,[Vente TTC]) -> 748853.94 | E17: =SUBTOTAL(109,[Pres serv 20%]) -> 3971 | F17: =SUBTOTAL(109,[Transp 14% ]) -> 0 | G17: =SUBTOTAL(109,[Op Bq 10%]) -> 56 | H17: =SUBTOTAL(109,[March 20%]) -> 580244.67 | I17: =SUBTOTAL(109,[Services 7%]) -> 0 | J17: =SUBTOTAL(109,[Elect 14%]) -> 0 | K17: =SUBTOTAL(109,[Immob 20%]) -> 6666.67 | L17: =SUBTOTAL(109,[Total Achat HT]) -> 590938.34 | M17: =SUBTOTAL(109,[Total Espéces]) -> 261583.38 | N17: =SUBTOTAL(109,[Total Chq Effet et Autres]) -> 506119.86 | O17: =SUBTOTAL(109,[Ventes Déclaré TTC]) -> 767703.24

Sheet XML
I1: Designation | J1: Taux | K1: T.HT | L1: T.TVA | M1: T.TTC | XX1: 4 | XY1: =INDEX(RECAP!$A$6:$A$17,XX1) -> 2016-04-01
I2: PRES DE SERVICES | J2: 0.2 | K2: =SUMIFS($D$11:$D$42577,$J$11:$J$42577,$J2,$C$11:$C$42577,$I2) -> 5952.99 | L2: =SUMIFS($E$11:$E$42577,$J$11:$J$42577,$J2,$C$11:$C$42577,$I2) -> 1190.6 | M2: =SUMIFS($F$11:$F$42577,$J$11:$J$42577,$J2,$C$11:$C$42577,$I2) -> 7143.59
A3: MOIS DE DECLARATION | I3: OP DE BANQUE | J3: 0.1 | K3: 0 | L3: 0 | M3: 0
A4: RAISON SOCIAL | I4: TRANSPORT | J4: 0.14 | K4: 0 | L4: 0 | M4: 0
A5: ID_FISCAL | C5: 65760124 | I5: EAU | J5: 0.07 | K5: 0 | L5: 0 | M5: 0
A6: ANNEE | C6: =YEAR(XY1) -> 2016 | D6: TABLEAU DE DEDUCTION TVA | I6: ELECTRICITE | J6: 0.14 | K6: 843.06 | L6: 133.03 | M6: 1011.66
A7: PERIODE(Mens) | C7: =MONTH(XY1) -> 4 | I7: IMMOBILISATION | J7: 0.2 | K7: 0 | L7: 0 | M7: 0
A8: REGIME(Encais-1) | C8: 1 | I8: MARCHANDISES | J8: 0.2 | K8: 63613.51 | L8: 12722.69 | M8: 76336.2
A9: Total | D9: =SUBTOTAL(9,D11:D13012) -> 70409.56 | E9: =VLOOKUP($XY$1,Tableau4[#All],15) -> 14046.32 | F9: =SUBTOTAL(9,F11:F13323) -> 84491.45 | G9: Nbre ligne | H9: =COUNT(A11:A13780) -> 60 | I9: =IF(L9=E9,"Résultat Exact","Résultat Faux") -> Résultat Exact | J9: TOTAL | K9: =SUM(K2:K8) -> 70409.56 | L9: =SUM(L2:L8) -> 14046.32 | M9: =SUM(M2:M8) -> 84491.45
A10: OR | B10: FACT_NUM | C10: DESIGNATION | D10: M_HT | E10: TVA | F10: M_TTC | G10: IF | H10: LIB_FRSS | I10: ICE_FRS | J10: TAUX | K10: ID_PAIE | L10: DATE_PAIE | M10: DATE_FAC
A11: =IF(B11="","",1) -> 1 | B11: =IFERROR(INDEX(Nom_choisis,ROW()-10,1),"") -> FF562978022015 | C11: =IFERROR(INDEX(Nom_choisis,ROW()-10,2),"") -> PRES DE SERVICES | D11: =IFERROR(INDEX(Nom_choisis,ROW()-10,3),"") -> 169 | E11: =IFERROR(INDEX(Nom_choisis,ROW()-10,4),"") -> 33.8 | F11: =IFERROR(INDEX(Nom_choisis,ROW()-10,5),"") -> 202.8 | G11: =IFERROR(INDEX(Nom_choisis,ROW()-10,6),"") -> 1009300 | H11: =IFERROR(INDEX(Nom_choisis,ROW()-10,7),"") -> FOURNISSEUR 0025 | I11: =IFERROR(INDEX(Nom_choisis,ROW()-10,8),"") -> 00241111004000079 | J11: =IFERROR(INDEX(Nom_choisis,ROW()-10,9),"") -> 0.2 | K11: =IFERROR(INDEX(Nom_choisis,ROW()-10,14),"") -> 2 | L11: =IFERROR(INDEX(Nom_choisis,ROW()-10,11),"") -> 2015-01-10 | M11: =IFERROR(INDEX(Nom_choisis,ROW()-10,12),"") -> 2015-01-01
A12: =IF(B12="","",A11+1) -> 2 | B12: FF562979022015 | C12: PRES DE SERVICES | D12: 82.5 | E12: 16.5 | F12: 99 | G12: 1009300 | H12: FOURNISSEUR 0025 | I12: 00241111004000079 | J12: 0.2 | K12: 2 | L12: 2015-01-10 | M12: 2015-01-01
A13: =IF(B13="","",A12+1) -> 3 | B13: 379548032015 | C13: PRES DE SERVICES | D13: 264 | E13: 52.8 | F13: 316.8 | G13: 1009300 | H13: FOURNISSEUR 0025 | I13: 00241111004000079 | J13: 0.2 | K13: 2 | L13: 2015-01-10 | M13: 2015-02-01
A14: 4 | B14: 16F0313 | C14: MARCHANDISES | D14: 4725 | E14: 945 | F14: 5670 | G14: 1009552 | H14: FOURNISSEUR 0029 | I14: 00281111004000083 | J14: 0.2 | K14: 5 | L14: 2015-03-30 | M14: 2016-03-17
A15: 5 | B15: 793419032015 | C15: PRES DE SERVICES | D15: 169 | E15: 33.8 | F15: 202.8 | G15: 1009300 | H15: FOURNISSEUR 0025 | I15: 00241111004000079 | J15: 0.2 | K15: 2 | L15: 2015-04-01 | M15: 2015-02-01
A16: 6 | B16: 793420032015 | C16: PRES DE SERVICES | D16: 82.5 | E16: 16.5 | F16: 99 | G16: 1009300 | H16: FOURNISSEUR 0025 | I16: 00241111004000079 | J16: 0.2 | K16: 2 | L16: 2015-04-01 | M16: 2015-02-01
A17: 7 | B17: 379548032015 | C17: PRES DE SERVICES | D17: 264 | E17: 52.8 | F17: 316.8 | G17: 1009300 | H17: FOURNISSEUR 0025 | I17: 00241111004000079 | J17: 0.2 | K17: 2 | L17: 2015-04-01 | M17: 2015-03-11
A18: 8 | B18: 120150506599 | C18: ELECTRICITE | D18: 83.58 | E18: 16.72 | F18: 100.3 | G18: 1008040 | H18: FOURNISSEUR 0005 | I18: 00041111004000059 | J18: 0.14 | K18: 1 | L18: 2015-04-07 | M18: 2015-03-15
A19: 9 | B19: 425569042015 | C19: PRES DE SERVICES | D19: 264 | E19: 52.8 | F19: 316.8 | G19: 1009300 | H19: FOURNISSEUR 0025 | I19: 00241111004000079 | J19: 0.2 | K19: 1 | L19: 2015-04-30 | M19: 2015-04-08
A20: 10 | B20: 813820042015 | C20: PRES DE SERVICES | D20: 169 | E20: 33.8 | F20: 202.8 | G20: 1009300 | H20: FOURNISSEUR 0025 | I20: 00241111004000079 | J20: 0.2 | K20: 2 | L20: 2015-06-02 | M20: 2015-03-01
A21: 11 | B21: 813821042015 | C21: PRES DE SERVICES | D21: 82.5 | E21: 16.5 | F21: 99 | G21: 1009300 | H21: FOURNISSEUR 0025 | I21: 00241111004000079 | J21: 0.2 | K21: 2 | L21: 2015-06-02 | M21: 2015-03-01
A22: 12 | B22: 448052052015 | C22: PRES DE SERVICES | D22: 264 | E22: 52.8 | F22: 316.8 | G22: 1009300 | H22: FOURNISSEUR 0025 | I22: 00241111004000079 | J22: 0.2 | K22: 2 | L22: 2015-06-02 | M22: 2015-05-12
A23: 13 | B23: 220150506599 | C23: ELECTRICITE | D23: 69.48 | E23: 10.64 | F23: 83.37 | G23: 1008040 | H23: FOURNISSEUR 0005 | I23: 00041111004000059 | J23: 0.14 | K23: 1 | L23: 2015-06-15 | M23: 2015-04-14
A24: 14 | B24: 812247052015 | C24: PRES DE SERVICES | D24: 169 | E24: 33.8 | F24: 202.8 | G24: 1009300 | H24: FOURNISSEUR 0025 | I24: 00241111004000079 | J24: 0.2 | K24: 2 | L24: 2015-07-02 | M24: 2015-04-01
A25: 15 | B25: 812248052015 | C25: PRES DE SERVICES | D25: 82.5 | E25: 16.5 | F25: 99 | G25: 1009300 | H25: FOURNISSEUR 0025 | I25: 00241111004000079 | J25: 0.2 | K25: 2 | L25: 2015-07-02 | M25: 2015-04-01
A26: 16 | B26: 321934062015 | C26: PRES DE SERVICES | D26: 264 | E26: 52.8 | F26: 316.8 | G26: 1009300 | H26: FOURNISSEUR 0025 | I26: 00241111004000079 | J26: 0.2 | K26: 2 | L26: 2015-07-02 | M26: 2015-06-13
A27: 17 | B27: 1962584062015 | C27: PRES DE SERVICES | D27: 169 | E27: 33.8 | F27: 202.8 | G27: 1009300 | H27: FOURNISSEUR 0025 | I27: 00241111004000079 | J27: 0.2 | K27: 2 | L27: 2015-08-03 | M27: 2015-05-01
A28: 18 | B28: 1962585062015 | C28: PRES DE SERVICES | D28: 82.5 | E28: 16.5 | F28: 99 | G28: 1009300 | H28: FOURNISSEUR 0025 | I28: 00241111004000079 | J28: 0.2 | K28: 2 | L28: 2015-08-03 | M28: 2015-05-01
A29: 19 | B29: 941024072015 | C29: PRES DE SERVICES | D29: 264 | E29: 52.8 | F29: 316.8 | G29: 1009300 | H29: FOURNISSEUR 0025 | I29: 00241111004000079 | J29: 0.2 | K29: 2 | L29: 2015-08-03 | M29: 2015-07-13
A30: 20 | B30: 320150506599 | C30: ELECTRICITE | D30: 71.83 | E30: 10.98 | F30: 86.2 | G30: 1008040 | H30: FOURNISSEUR 0005 | I30: 00041111004000059 | J30: 0.14 | K30: 1 | L30: 2015-08-24 | M30: 2015-05-11
A31: 21 | B31: 420150506599 | C31: ELECTRICITE | D31: 67.11 | E31: 10.29 | F31: 80.53 | G31: 1008040 | H31: FOURNISSEUR 0005 | I31: 00041111004000059 | J31: 0.14 | K31: 1 | L31: 2015-08-24 | M31: 2015-06-10
A32: 22 | B32: 520150506599 | C32: ELECTRICITE | D32: 73.02 | E32: 11.16 | F32: 87.62 | G32: 1008040 | H32: FOURNISSEUR 0005 | I32: 00041111004000059 | J32: 0.14 | K32: 1 | L32: 2015-08-24 | M32: 2015-07-14
A33: 23 | B33: 809693072015 | C33: PRES DE SERVICES | D33: 169 | E33: 33.8 | F33: 202.8 | G33: 1009300 | H33: FOURNISSEUR 0025 | I33: 00241111004000079 | J33: 0.2 | K33: 2 | L33: 2015-09-08 | M33: 2015-06-01
A34: 24 | B34: 809694072015 | C34: PRES DE SERVICES | D34: 82.5 | E34: 16.5 | F34: 99 | G34: 1009300 | H34: FOURNISSEUR 0025 | I34: 00241111004000079 | J34: 0.2 | K34: 2 | L34: 2015-09-08 | M34: 2015-06-01
A35: 25 | B35: 805387082015 | C35: PRES DE SERVICES | D35: 169 | E35: 33.8 | F35: 202.8 | G35: 1009300 | H35: FOURNISSEUR 0025 | I35: 00241111004000079 | J35: 0.2 | K35: 2 | L35: 2015-09-08 | M35: 2015-07-01
A36: 26 | B36: 805388082015 | C36: PRES DE SERVICES | D36: 82.5 | E36: 16.5 | F36: 99 | G36: 1009300 | H36: FOURNISSEUR 0025 | I36: 00241111004000079 | J36: 0.2 | K36: 2 | L36: 2015-09-08 | M36: 2015-07-01
A37: 27 | B37: 417730082015 | C37: PRES DE SERVICES | D37: 264 | E37: 52.8 | F37: 316.8 | G37: 1009300 | H37: FOURNISSEUR 0025 | I37: 00241111004000079 | J37: 0.2 | K37: 2 | L37: 2015-09-08 | M37: 2015-08-10
A38: 28 | B38: 979561092015 | C38: PRES DE SERVICES | D38: 390 | E38: 78 | F38: 468 | G38: 1009300 | H38: FOURNISSEUR 0025 | I38: 00241111004000079 | J38: 0.2 | K38: 1 | L38: 2015-10-15 | M38: 2015-09-15
A39: 29 | B39: 530269102015 | C39: PRES DE SERVICES | D39: 174 | E39: 34.8 | F39: 208.8 | G39: 1009300 | H39: FOURNISSEUR 0025 | I39: 00241111004000079 | J39: 0.2 | K39: 7 | L39: 2015-11-04 | M39: 2015-10-12
A40: 30 | B40: 620150506599 | C40: ELECTRICITE | D40: 76.56 | E40: 11.68 | F40: 91.87 | G40: 1008040 | H40: FOURNISSEUR 0005 | I40: 00041111004000059 | J40: 0.14 | K40: 1 | L40: 2015-11-30 | M40: 2015-08-18
A41: 31 | B41: 720150506599 | C41: ELECTRICITE | D41: 55.3 | E41: 8.55 | F41: 66.36 | G41: 1008040 | H41: FOURNISSEUR 0005 | I41: 00041111004000059 | J41: 0.14 | K41: 1 | L41: 2015-11-30 | M41: 2015-09-14
A42: 32 | B42: 820150506599 | C42: ELECTRICITE | D42: 94.28 | E42: 14.28 | F42: 113.14 | G42: 1008040 | H42: FOURNISSEUR 0005 | I42: 00041111004000059 | J42: 0.14 | K42: 1 | L42: 2015-11-30 | M42: 2015-10-14
A43: 33 | B43: 796946092015 | C43: PRES DE SERVICES | D43: 169 | E43: 33.8 | F43: 202.8 | G43: 1009300 | H43: FOURNISSEUR 0025 | I43: 00241111004000079 | J43: 0.2 | K43: 2 | L43: 2015-12-10 | M43: 2015-08-01
A44: 34 | B44: 796947092015 | C44: PRES DE SERVICES | D44: 82.5 | E44: 16.5 | F44: 99 | G44: 1009300 | H44: FOURNISSEUR 0025 | I44: 00241111004000079 | J44: 0.2 | K44: 2 | L44: 2015-12-10 | M44: 2015-08-01
A45: 35 | B45: 790540102015 | C45: PRES DE SERVICES | D45: 169 | E45: 33.8 | F45: 202.8 | G45: 1009300 | H45: FOURNISSEUR 0025 | I45: 00241111004000079 | J45: 0.2 | K45: 2 | L45: 2015-12-10 | M45: 2015-09-01
A46: 36 | B46: 790541102015 | C46: PRES DE SERVICES | D46: 82.5 | E46: 16.5 | F46: 99 | G46: 1009300 | H46: FOURNISSEUR 0025 | I46: 00241111004000079 | J46: 0.2 | K46: 2 | L46: 2015-12-10 | M46: 2015-09-01
A47: 37 | B47: 780753112015 | C47: PRES DE SERVICES | D47: 169 | E47: 33.8 | F47: 202.8 | G47: 1009300 | H47: FOURNISSEUR 0025 | I47: 00241111004000079 | J47: 0.2 | K47: 2 | L47: 2015-12-10 | M47: 2015-10-01
A48: 38 | B48: 780754112015 | C48: PRES DE SERVICES | D48: 82.5 | E48: 16.5 | F48: 99 | G48: 1009300 | H48: FOURNISSEUR 0025 | I48: 00241111004000079 | J48: 0.2 | K48: 2 | L48: 2015-12-10 | M48: 2015-10-01
A49: 39 | B49: 773963122015 | C49: PRES DE SERVICES | D49: 169 | E49: 33.8 | F49: 202.8 | G49: 1009300 | H49: FOURNISSEUR 0025 | I49: 00241111004000079 | J49: 0.2 | K49: 2 | L49: 2015-12-10 | M49: 2015-11-01
A50: 40 | B50: 028/12/HB2015 | C50: MARCHANDISES | D50: 5250 | E50: 1050 | F50: 6300 | G50: 1009363 | H50: FOURNISSEUR 0026 | I50: 00251111004000080 | J50: 0.2 | K50: 1 | L50: 2015-12-21 | M50: 2015-12-21
A51: 41 | B51: 004/1/1HB2016 | C51: MARCHANDISES | D51: 941.67 | E51: 188.33 | F51: 1130 | G51: 1009363 | H51: FOURNISSEUR 0026 | I51: 00251111004000080 | J51: 0.2 | K51: 2 | L51: 2016-01-12 | M51: 2016-01-05
A52: 42 | B52: 454439122015 | C52: PRES DE SERVICES | D52: 189.83 | E52: 37.97 | F52: 227.8 | G52: 1009300 | H52: FOURNISSEUR 0025 | I52: 00241111004000079 | J52: 0.2 | K52: 2 | L52: 2016-01-15 | M52: 2015-12-11
A53: 43 | B53: 61402102016 | C53: PRES DE SERVICES | D53: 169 | E53: 33.8 | F53: 202.8 | G53: 1009300 | H53: FOURNISSEUR 0025 | I53: 00241111004000079 | J53: 0.2 | K53: 2 | L53: 2016-01-15 | M53: 2015-12-31
A54: 44 | B54: 920150506599 | C54: ELECTRICITE | D54: 80.11 | E54: 12.2 | F54: 96.13 | G54: 1008040 | H54: FOURNISSEUR 0005 | I54: 00041111004000059 | J54: 0.14 | K54: 1 | L54: 2016-02-10 | M54: 2015-11-12
A55: 45 | B55: 1020150506599 | C55: ELECTRICITE | D55: 51.74 | E55: 8.03 | F55: 62.09 | G55: 1008040 | H55: FOURNISSEUR 0005 | I55: 00041111004000059 | J55: 0.14 | K55: 1 | L55: 2016-02-10 | M55: 2015-12-30
A56: 46 | B56: 1120150506599 | C56: ELECTRICITE | D56: 63.57 | E56: 9.77 | F56: 76.28 | G56: 1008040 | H56: FOURNISSEUR 0005 | I56: 00041111004000059 | J56: 0.14 | K56: 1 | L56: 2016-02-10 | M56: 2015-12-31
A57: 47 | B57: 1220150506599 | C57: ELECTRICITE | D57: 56.48 | E57: 8.73 | F57: 67.77 | G57: 1008040 | H57: FOURNISSEUR 0005 | I57: 00041111004000059 | J57: 0.14 | K57: 1 | L57: 2016-02-10 | M57: 2015-12-31
A58: 48 | B58: 773964122015 | C58: PRES DE SERVICES | D58: 82.5 | E58: 16.5 | F58: 99 | G58: 1009300 | H58: FOURNISSEUR 0025 | I58: 00241111004000079 | J58: 0.2 | K58: 2 | L58: 2016-02-15 | M58: 2015-11-01
A59: 49 | B59: 588640112015 | C59: PRES DE SERVICES | D59: 169 | E59: 33.8 | F59: 202.8 | G59: 1009300 | H59: FOURNISSEUR 0025 | I59: 00241111004000079 | J59: 0.2 | K59: 2 | L59: 2016-02-15 | M59: 2015-11-10
A60: 50 | B60: 766859012016 | C60: PRES DE SERVICES | D60: 164.16 | E60: 32.83 | F60: 196.99 | G60: 1009300 | H60: FOURNISSEUR 0025 | I60: 00241111004000079 | J60: 0.2 | K60: 2 | L60: 2016-02-15 | M60: 2015-12-01
A61: 51 | B61: 766860012016 | C61: PRES DE SERVICES | D61: 82.5 | E61: 16.5 | F61: 99 | G61: 1009300 | H61: FOURNISSEUR 0025 | I61: 00241111004000079 | J61: 0.2 | K61: 2 | L61: 2016-02-15 | M61: 2015-12-01
A62: 52 | B62: 016/02/HB2016 | C62: MARCHANDISES | D62: 1575 | E62: 315 | F62: 1890 | G62: 1009363 | H62: FOURNISSEUR 0026 | I62: 00251111004000080 | J62: 0.2 | K62: 2 | L62: 2016-02-28 | M62: 2016-02-10
A63: 53 | B63: 512 82 | C63: MARCHANDISES | D63: 3304.75 | E63: 660.95 | F63: 3965.7 | G63: 1009678 | H63: FOURNISSEUR 0031 | I63: 00301111004000085 | J63: 0.2 | K63: 5 | L63: 2016-03-30 | M63: 2015-12-31
A64: 54 | B64: 15124668 | C64: MARCHANDISES | D64: 2075.42 | E64: 415.08 | F64: 2490.5 | G64: 1008922 | H64: FOURNISSEUR 0019 | I64: 00181111004000073 | J64: 0.2 | K64: 5 | L64: 2016-03-30 | M64: 2015-12-31
A65: 55 | B65: 15124428 | C65: MARCHANDISES | D65: 14929.17 | E65: 2985.83 | F65: 17915 | G65: 1008922 | H65: FOURNISSEUR 0019 | I65: 00181111004000073 | J65: 0.2 | K65: 5 | L65: 2016-03-30 | M65: 2015-12-31
A66: 56 | B66: 160000241 | C66: MARCHANDISES | D66: 768 | E66: 153.6 | F66: 921.6 | G66: 1009426 | H66: FOURNISSEUR 0027 | I66: 00261111004000081 | J66: 0.2 | K66: 5 | L66: 2016-03-30 | M66: 2016-01-30
A67: 57 | B67: 0023/16 | C67: MARCHANDISES | D67: 6513.33 | E67: 1302.67 | F67: 7816 | G67: 1008670 | H67: FOURNISSEUR 0015 | I67: 00141111004000069 | J67: 0.2 | K67: 5 | L67: 2016-04-01 | M67: 2016-03-18
A68: 58 | B68: FA2530 | C68: MARCHANDISES | D68: 6500 | E68: 1300 | F68: 7800 | G68: 1009237 | H68: FOURNISSEUR 0024 | I68: 00231111004000078 | J68: 0.2 | K68: 5 | L68: 2016-04-15 | M68: 2016-04-20
A69: 59 | B69: AVOIR16000001 | C69: MARCHANDISES | D69: -583.33 | E69: -116.67 | F69: -700 | G69: 1008922 | H69: FOURNISSEUR 0019 | I69: 00181111004000073 | J69: 0.2 | K69: 5 | L69: 2016-04-25 | M69: 2016-01-07
A70: 60 | B70: 16010055 | C70: MARCHANDISES | D70: 17614.5 | E70: 3522.9 | F70: 21137.4 | G70: 1008922 | H70: FOURNISSEUR 0019 | I70: 00181111004000073 | J70: 0.2 | K70: 5 | L70: 2016-04-25 | M70: 2016-01-31
B75: =IFERROR(INDEX(Nom_choisis,ROW()-10,1),"") ->  | C75: =IFERROR(INDEX(Nom_choisis,ROW()-10,2),"") ->  | D75: =IFERROR(INDEX(Nom_choisis,ROW()-10,3),"") ->  | E75: =IFERROR(INDEX(Nom_choisis,ROW()-10,4),"") ->  | F75: =IFERROR(INDEX(Nom_choisis,ROW()-10,5),"") ->  | G75: =IFERROR(INDEX(Nom_choisis,ROW()-10,6),"") ->  | H75: =IFERROR(INDEX(Nom_choisis,ROW()-10,7),"") ->  | I75: =IFERROR(INDEX(Nom_choisis,ROW()-10,8),"") ->  | J75: =IFERROR(INDEX(Nom_choisis,ROW()-10,9),"") ->  | K75: =IFERROR(INDEX(Nom_choisis,ROW()-10,14),"") ->  | L75: =IFERROR(INDEX(Nom_choisis,ROW()-10,11),"") ->  | M75: =IFERROR(INDEX(Nom_choisis,ROW()-10,12),"") -> 
A77: =IF(B77="","",A76+1) -> 
R119: =IFERROR(INDEX(Nom_choisis,ROW()-10,3),"") ->  | S119: =IFERROR(INDEX(Nom_choisis,ROW()-10,4),"") ->  | T119: =IFERROR(INDEX(Nom_choisis,ROW()-10,3),"") -> 
O132: =IF(B1095="","",A1094+1) -> 
B139: =IFERROR(INDEX(Nom_choisis,ROW()-10,1),"") ->  | C139: =IFERROR(INDEX(Nom_choisis,ROW()-10,2),"") ->  | D139: =IFERROR(INDEX(Nom_choisis,ROW()-10,3),"") ->  | E139: =IFERROR(INDEX(Nom_choisis,ROW()-10,4),"") ->  | F139: =IFERROR(INDEX(Nom_choisis,ROW()-10,5),"") ->  | G139: =IFERROR(INDEX(Nom_choisis,ROW()-10,6),"") ->  | H139: =IFERROR(INDEX(Nom_choisis,ROW()-10,7),"") ->  | I139: =IFERROR(INDEX(Nom_choisis,ROW()-10,8),"") ->  | J139: =IFERROR(INDEX(Nom_choisis,ROW()-10,9),"") ->  | K139: =IFERROR(INDEX(Nom_choisis,ROW()-10,14),"") ->  | L139: =IFERROR(INDEX(Nom_choisis,ROW()-10,11),"") ->  | M139: =IFERROR(INDEX(Nom_choisis,ROW()-10,12),"") -> 
A141: =IF(B141="","",A140+1) -> 
R145: =IFERROR(INDEX(Nom_choisis,ROW()-10,3),"") ->  | S145: =IFERROR(INDEX(Nom_choisis,ROW()-10,4),"") ->  | T145: =IFERROR(INDEX(Nom_choisis,ROW()-10,3),"") -> 
B203: =IFERROR(INDEX(Nom_choisis,ROW()-10,1),"") ->  | C203: =IFERROR(INDEX(Nom_choisis,ROW()-10,2),"") ->  | D203: =IFERROR(INDEX(Nom_choisis,ROW()-10,3),"") ->  | E203: =IFERROR(INDEX(Nom_choisis,ROW()-10,4),"") ->  | F203: =IFERROR(INDEX(Nom_choisis,ROW()-10,5),"") ->  | G203: =IFERROR(INDEX(Nom_choisis,ROW()-10,6),"") ->  | H203: =IFERROR(INDEX(Nom_choisis,ROW()-10,7),"") ->  | I203: =IFERROR(INDEX(Nom_choisis,ROW()-10,8),"") ->  | J203: =IFERROR(INDEX(Nom_choisis,ROW()-10,9),"") ->  | K203: =IFERROR(INDEX(Nom_choisis,ROW()-10,14),"") ->  | L203: =IFERROR(INDEX(Nom_choisis,ROW()-10,11),"") ->  | M203: =IFERROR(INDEX(Nom_choisis,ROW()-10,12),"") -> 
A205: =IF(B205="","",A204+1) -> 
B267: =IFERROR(INDEX(Nom_choisis,ROW()-10,1),"") ->  | C267: =IFERROR(INDEX(Nom_choisis,ROW()-10,2),"") ->  | D267: =IFERROR(INDEX(Nom_choisis,ROW()-10,3),"") ->  | E267: =IFERROR(INDEX(Nom_choisis,ROW()-10,4),"") ->  | F267: =IFERROR(INDEX(Nom_choisis,ROW()-10,5),"") ->  | G267: =IFERROR(INDEX(Nom_choisis,ROW()-10,6),"") ->  | H267: =IFERROR(INDEX(Nom_choisis,ROW()-10,7),"") ->  | I267: =IFERROR(INDEX(Nom_choisis,ROW()-10,8),"") ->  | J267: =IFERROR(INDEX(Nom_choisis,ROW()-10,9),"") ->  | K267: =IFERROR(INDEX(Nom_choisis,ROW()-10,14),"") ->  | L267: =IFERROR(INDEX(Nom_choisis,ROW()-10,11),"") ->  | M267: =IFERROR(INDEX(Nom_choisis,ROW()-10,12),"") -> 
A269: =IF(B269="","",A268+1) -> 
B331: =IFERROR(INDEX(Nom_choisis,ROW()-10,1),"") ->  | C331: =IFERROR(INDEX(Nom_choisis,ROW()-10,2),"") ->  | D331: =IFERROR(INDEX(Nom_choisis,ROW()-10,3),"") ->  | E331: =IFERROR(INDEX(Nom_choisis,ROW()-10,4),"") ->  | F331: =IFERROR(INDEX(Nom_choisis,ROW()-10,5),"") ->  | G331: =IFERROR(INDEX(Nom_choisis,ROW()-10,6),"") ->  | H331: =IFERROR(INDEX(Nom_choisis,ROW()-10,7),"") ->  | I331: =IFERROR(INDEX(Nom_choisis,ROW()-10,8),"") ->  | J331: =IFERROR(INDEX(Nom_choisis,ROW()-10,9),"") ->  | K331: =IFERROR(INDEX(Nom_choisis,ROW()-10,14),"") ->  | L331: =IFERROR(INDEX(Nom_choisis,ROW()-10,11),"") ->  | M331: =IFERROR(INDEX(Nom_choisis,ROW()-10,12),"") -> 
A333: =IF(B333="","",A332+1) -> 
B395: =IFERROR(INDEX(Nom_choisis,ROW()-10,1),"") ->  | C395: =IFERROR(INDEX(Nom_choisis,ROW()-10,2),"") ->  | D395: =IFERROR(INDEX(Nom_choisis,ROW()-10,3),"") ->  | E395: =IFERROR(INDEX(Nom_choisis,ROW()-10,4),"") ->  | F395: =IFERROR(INDEX(Nom_choisis,ROW()-10,5),"") ->  | G395: =IFERROR(INDEX(Nom_choisis,ROW()-10,6),"") ->  | H395: =IFERROR(INDEX(Nom_choisis,ROW()-10,7),"") ->  | I395: =IFERROR(INDEX(Nom_choisis,ROW()-10,8),"") ->  | J395: =IFERROR(INDEX(Nom_choisis,ROW()-10,9),"") ->  | K395: =IFERROR(INDEX(Nom_choisis,ROW()-10,14),"") ->  | L395: =IFERROR(INDEX(Nom_choisis,ROW()-10,11),"") ->  | M395: =IFERROR(INDEX(Nom_choisis,ROW()-10,12),"") -> 
A397: =IF(B397="","",A396+1) -> 
B459: =IFERROR(INDEX(Nom_choisis,ROW()-10,1),"") ->  | C459: =IFERROR(INDEX(Nom_choisis,ROW()-10,2),"") ->  | D459: =IFERROR(INDEX(Nom_choisis,ROW()-10,3),"") ->  | E459: =IFERROR(INDEX(Nom_choisis,ROW()-10,4),"") ->  | F459: =IFERROR(INDEX(Nom_choisis,ROW()-10,5),"") ->  | G459: =IFERROR(INDEX(Nom_choisis,ROW()-10,6),"") ->  | H459: =IFERROR(INDEX(Nom_choisis,ROW()-10,7),"") ->  | I459: =IFERROR(INDEX(Nom_choisis,ROW()-10,8),"") ->  | J459: =IFERROR(INDEX(Nom_choisis,ROW()-10,9),"") ->  | K459: =IFERROR(INDEX(Nom_choisis,ROW()-10,14),"") ->  | L459: =IFERROR(INDEX(Nom_choisis,ROW()-10,11),"") ->  | M459: =IFERROR(INDEX(Nom_choisis,ROW()-10,12),"") -> 
A461: =IF(B461="","",A460+1) -> 
B523: =IFERROR(INDEX(Nom_choisis,ROW()-10,1),"") ->  | C523: =IFERROR(INDEX(Nom_choisis,ROW()-10,2),"") ->  | D523: =IFERROR(INDEX(Nom_choisis,ROW()-10,3),"") ->  | E523: =IFERROR(INDEX(Nom_choisis,ROW()-10,4),"") ->  | F523: =IFERROR(INDEX(Nom_choisis,ROW()-10,5),"") ->  | G523: =IFERROR(INDEX(Nom_choisis,ROW()-10,6),"") ->  | H523: =IFERROR(INDEX(Nom_choisis,ROW()-10,7),"") ->  | I523: =IFERROR(INDEX(Nom_choisis,ROW()-10,8),"") ->  | J523: =IFERROR(INDEX(Nom_choisis,ROW()-10,9),"") ->  | K523: =IFERROR(INDEX(Nom_choisis,ROW()-10,14),"") ->  | L523: =IFERROR(INDEX(Nom_choisis,ROW()-10,11),"") ->  | M523: =IFERROR(INDEX(Nom_choisis,ROW()-10,12),"") -> 
A525: =IF(B525="","",A524+1) -> 
B587: =IFERROR(INDEX(Nom_choisis,ROW()-10,1),"") ->  | C587: =IFERROR(INDEX(Nom_choisis,ROW()-10,2),"") ->  | D587: =IFERROR(INDEX(Nom_choisis,ROW()-10,3),"") ->  | E587: =IFERROR(INDEX(Nom_choisis,ROW()-10,4),"") ->  | F587: =IFERROR(INDEX(Nom_choisis,ROW()-10,5),"") ->  | G587: =IFERROR(INDEX(Nom_choisis,ROW()-10,6),"") ->  | H587: =IFERROR(INDEX(Nom_choisis,ROW()-10,7),"") ->  | I587: =IFERROR(INDEX(Nom_choisis,ROW()-10,8),"") ->  | J587: =IFERROR(INDEX(Nom_choisis,ROW()-10,9),"") ->  | K587: =IFERROR(INDEX(Nom_choisis,ROW()-10,14),"") ->  | L587: =IFERROR(INDEX(Nom_choisis,ROW()-10,11),"") ->  | M587: =IFERROR(INDEX(Nom_choisis,ROW()-10,12),"") -> 
A589: =IF(B589="","",A588+1) -> 
B651: =IFERROR(INDEX(Nom_choisis,ROW()-10,1),"") ->  | C651: =IFERROR(INDEX(Nom_choisis,ROW()-10,2),"") ->  | D651: =IFERROR(INDEX(Nom_choisis,ROW()-10,3),"") ->  | E651: =IFERROR(INDEX(Nom_choisis,ROW()-10,4),"") ->  | F651: =IFERROR(INDEX(Nom_choisis,ROW()-10,5),"") ->  | G651: =IFERROR(INDEX(Nom_choisis,ROW()-10,6),"") ->  | H651: =IFERROR(INDEX(Nom_choisis,ROW()-10,7),"") ->  | I651: =IFERROR(INDEX(Nom_choisis,ROW()-10,8),"") ->  | J651: =IFERROR(INDEX(Nom_choisis,ROW()-10,9),"") ->  | K651: =IFERROR(INDEX(Nom_choisis,ROW()-10,14),"") ->  | L651: =IFERROR(INDEX(Nom_choisis,ROW()-10,11),"") ->  | M651: =IFERROR(INDEX(Nom_choisis,ROW()-10,12),"") -> 
A653: =IF(B653="","",A652+1) -> 
B715: =IFERROR(INDEX(Nom_choisis,ROW()-10,1),"") ->  | C715: =IFERROR(INDEX(Nom_choisis,ROW()-10,2),"") ->  | D715: =IFERROR(INDEX(Nom_choisis,ROW()-10,3),"") ->  | E715: =IFERROR(INDEX(Nom_choisis,ROW()-10,4),"") ->  | F715: =IFERROR(INDEX(Nom_choisis,ROW()-10,5),"") ->  | G715: =IFERROR(INDEX(Nom_choisis,ROW()-10,6),"") ->  | H715: =IFERROR(INDEX(Nom_choisis,ROW()-10,7),"") ->  | I715: =IFERROR(INDEX(Nom_choisis,ROW()-10,8),"") ->  | J715: =IFERROR(INDEX(Nom_choisis,ROW()-10,9),"") ->  | K715: =IFERROR(INDEX(Nom_choisis,ROW()-10,14),"") ->  | L715: =IFERROR(INDEX(Nom_choisis,ROW()-10,11),"") ->  | M715: =IFERROR(INDEX(Nom_choisis,ROW()-10,12),"") -> 
A717: =IF(B717="","",A716+1) -> 
B779: =IFERROR(INDEX(Nom_choisis,ROW()-10,1),"") ->  | C779: =IFERROR(INDEX(Nom_choisis,ROW()-10,2),"") ->  | D779: =IFERROR(INDEX(Nom_choisis,ROW()-10,3),"") ->  | E779: =IFERROR(INDEX(Nom_choisis,ROW()-10,4),"") ->  | F779: =IFERROR(INDEX(Nom_choisis,ROW()-10,5),"") ->  | G779: =IFERROR(INDEX(Nom_choisis,ROW()-10,6),"") ->  | H779: =IFERROR(INDEX(Nom_choisis,ROW()-10,7),"") ->  | I779: =IFERROR(INDEX(Nom_choisis,ROW()-10,8),"") ->  | J779: =IFERROR(INDEX(Nom_choisis,ROW()-10,9),"") ->  | K779: =IFERROR(INDEX(Nom_choisis,ROW()-10,14),"") ->  | L779: =IFERROR(INDEX(Nom_choisis,ROW()-10,11),"") ->  | M779: =IFERROR(INDEX(Nom_choisis,ROW()-10,12),"") -> 
A781: =IF(B781="","",A780+1) -> 
B843: =IFERROR(INDEX(Nom_choisis,ROW()-10,1),"") ->  | C843: =IFERROR(INDEX(Nom_choisis,ROW()-10,2),"") ->  | D843: =IFERROR(INDEX(Nom_choisis,ROW()-10,3),"") ->  | E843: =IFERROR(INDEX(Nom_choisis,ROW()-10,4),"") ->  | F843: =IFERROR(INDEX(Nom_choisis,ROW()-10,5),"") ->  | G843: =IFERROR(INDEX(Nom_choisis,ROW()-10,6),"") ->  | H843: =IFERROR(INDEX(Nom_choisis,ROW()-10,7),"") ->  | I843: =IFERROR(INDEX(Nom_choisis,ROW()-10,8),"") ->  | J843: =IFERROR(INDEX(Nom_choisis,ROW()-10,9),"") ->  | K843: =IFERROR(INDEX(Nom_choisis,ROW()-10,14),"") ->  | L843: =IFERROR(INDEX(Nom_choisis,ROW()-10,11),"") ->  | M843: =IFERROR(INDEX(Nom_choisis,ROW()-10,12),"") -> 
A845: =IF(B845="","",A844+1) -> 
B907: =IFERROR(INDEX(Nom_choisis,ROW()-10,1),"") ->  | C907: =IFERROR(INDEX(Nom_choisis,ROW()-10,2),"") ->  | D907: =IFERROR(INDEX(Nom_choisis,ROW()-10,3),"") ->  | E907: =IFERROR(INDEX(Nom_choisis,ROW()-10,4),"") ->  | F907: =IFERROR(INDEX(Nom_choisis,ROW()-10,5),"") ->  | G907: =IFERROR(INDEX(Nom_choisis,ROW()-10,6),"") ->  | H907: =IFERROR(INDEX(Nom_choisis,ROW()-10,7),"") ->  | I907: =IFERROR(INDEX(Nom_choisis,ROW()-10,8),"") ->  | J907: =IFERROR(INDEX(Nom_choisis,ROW()-10,9),"") ->  | K907: =IFERROR(INDEX(Nom_choisis,ROW()-10,14),"") ->  | L907: =IFERROR(INDEX(Nom_choisis,ROW()-10,11),"") ->  | M907: =IFERROR(INDEX(Nom_choisis,ROW()-10,12),"") -> 
A909: =IF(B909="","",A908+1) -> 
B971: =IFERROR(INDEX(Nom_choisis,ROW()-10,1),"") ->  | C971: =IFERROR(INDEX(Nom_choisis,ROW()-10,2),"") ->  | D971: =IFERROR(INDEX(Nom_choisis,ROW()-10,3),"") ->  | E971: =IFERROR(INDEX(Nom_choisis,ROW()-10,4),"") ->  | F971: =IFERROR(INDEX(Nom_choisis,ROW()-10,5),"") ->  | G971: =IFERROR(INDEX(Nom_choisis,ROW()-10,6),"") ->  | H971: =IFERROR(INDEX(Nom_choisis,ROW()-10,7),"") ->  | I971: =IFERROR(INDEX(Nom_choisis,ROW()-10,8),"") ->  | J971: =IFERROR(INDEX(Nom_choisis,ROW()-10,9),"") ->  | K971: =IFERROR(INDEX(Nom_choisis,ROW()-10,14),"") ->  | L971: =IFERROR(INDEX(Nom_choisis,ROW()-10,11),"") ->  | M971: =IFERROR(INDEX(Nom_choisis,ROW()-10,12),"") -> 
A973: =IF(B973="","",A972+1) -> 

Sheet X (hidden)
B1: date Fac vente | C1: Date Reg vente | D1: date Fac achat | E1: Date Reg achat | F1: Années
F2: 2016-01-01 | H2: IF | I2: RAISON SOCIAL | J2: ICE
F3: 2017-01-01 | H3: 1007788 | I3: FOURNISSEUR 0001 | J3: 00001111004000055
B4: =EOMONTH(VENTE!A4,-1)+1 -> 2015-05-01 | C4: =EOMONTH(VENTE!I4,-1)+1 -> 2016-01-01 | F4: 2018-01-01 | H4: 1007851 | I4: FOURNISSEUR 0002 | J4: 00011111004000056
B5: =EOMONTH(VENTE!A5,-1)+1 -> 2015-05-01 | C5: =EOMONTH(VENTE!I5,-1)+1 -> 2016-01-01 | D5: =EOMONTH(ACHAT!M5,-1)+1 -> 2014-11-01 | E5: =EOMONTH(ACHAT!L5,-1)+1 -> 2014-11-01 | F5: 2019-01-01 | H5: 1007914 | I5: FOURNISSEUR 0003 | J5: 00021111004000057
B6: =EOMONTH(VENTE!A6,-1)+1 -> 2015-07-01 | C6: =EOMONTH(VENTE!I6,-1)+1 -> 2016-01-01 | D6: =EOMONTH(ACHAT!M6,-1)+1 -> 2015-01-01 | E6: =EOMONTH(ACHAT!L6,-1)+1 -> 2015-01-01 | F6: 2020-01-01 | H6: 1007977 | I6: FOURNISSEUR 0004 | J6: 00031111004000058
B7: =EOMONTH(VENTE!A7,-1)+1 -> 2015-08-01 | C7: =EOMONTH(VENTE!I7,-1)+1 -> 2016-01-01 | D7: =EOMONTH(ACHAT!M7,-1)+1 -> 2014-10-01 | E7: =EOMONTH(ACHAT!L7,-1)+1 -> 2015-01-01 | H7: 1008040 | I7: FOURNISSEUR 0005 | J7: 00041111004000059
B8: =EOMONTH(VENTE!A8,-1)+1 -> 2015-09-01 | C8: =EOMONTH(VENTE!I8,-1)+1 -> 2016-01-01 | D8: =EOMONTH(ACHAT!M8,-1)+1 -> 2014-10-01 | E8: =EOMONTH(ACHAT!L8,-1)+1 -> 2015-01-01 | H8: 1008103 | I8: FOURNISSEUR 0006 | J8: 00051111004000060
B9: =EOMONTH(VENTE!A9,-1)+1 -> 2015-09-01 | C9: =EOMONTH(VENTE!I9,-1)+1 -> 2016-01-01 | D9: =EOMONTH(ACHAT!M9,-1)+1 -> 2015-01-01 | E9: =EOMONTH(ACHAT!L9,-1)+1 -> 2015-01-01 | H9: 1008166 | I9: FOURNISSEUR 0007 | J9: 00061111004000061
B10: =EOMONTH(VENTE!A10,-1)+1 -> 2015-09-01 | C10: =EOMONTH(VENTE!I10,-1)+1 -> 2016-01-01 | D10: =EOMONTH(ACHAT!M10,-1)+1 -> 2015-01-01 | E10: =EOMONTH(ACHAT!L10,-1)+1 -> 2015-01-01 | H10: 1008229 | I10: FOURNISSEUR 0008 | J10: 00071111004000062
B11: =EOMONTH(VENTE!A11,-1)+1 -> 2015-11-01 | C11: =EOMONTH(VENTE!I11,-1)+1 -> 2016-01-01 | D11: =EOMONTH(ACHAT!M11,-1)+1 -> 2015-02-01 | E11: =EOMONTH(ACHAT!L11,-1)+1 -> 2015-02-01 | H11: 1008292 | I11: FOURNISSEUR 0009 | J11: 00081111004000063
B12: =EOMONTH(VENTE!A12,-1)+1 -> 2015-11-01 | C12: =EOMONTH(VENTE!I12,-1)+1 -> 2016-01-01 | D12: =EOMONTH(ACHAT!M12,-1)+1 -> 2014-11-01 | E12: =EOMONTH(ACHAT!L12,-1)+1 -> 2015-02-01 | H12: 1008355 | I12: FOURNISSEUR 0010 | J12: 00091111004000064
B13: =EOMONTH(VENTE!A13,-1)+1 -> 2016-01-01 | C13: =EOMONTH(VENTE!I13,-1)+1 -> 2016-01-01 | D13: =EOMONTH(ACHAT!M13,-1)+1 -> 2015-02-01 | E13: =EOMONTH(ACHAT!L13,-1)+1 -> 2015-03-01 | H13: 1008418 | I13: FOURNISSEUR 0011 | J13: 00101111004000065
B14: =EOMONTH(VENTE!A14,-1)+1 -> 2016-01-01 | C14: =EOMONTH(VENTE!I14,-1)+1 -> 2016-01-01 | D14: =EOMONTH(ACHAT!M14,-1)+1 -> 2015-02-01 | E14: =EOMONTH(ACHAT!L14,-1)+1 -> 2015-03-01 | H14: 1008481 | I14: FOURNISSEUR 0012 | J14: 00111111004000066
B15: =EOMONTH(VENTE!A15,-1)+1 -> 2016-01-01 | C15: =EOMONTH(VENTE!I15,-1)+1 -> 2016-01-01 | D15: =EOMONTH(ACHAT!M15,-1)+1 -> 2014-10-01 | E15: =EOMONTH(ACHAT!L15,-1)+1 -> 2015-03-01 | H15: 1008544 | I15: FOURNISSEUR 0013 | J15: 00121111004000067
B16: =EOMONTH(VENTE!A16,-1)+1 -> 2016-01-01 | C16: =EOMONTH(VENTE!I16,-1)+1 -> 2016-01-01 | D16: =EOMONTH(ACHAT!M16,-1)+1 -> 2014-10-01 | E16: =EOMONTH(ACHAT!L16,-1)+1 -> 2015-03-01 | H16: 1008607 | I16: FOURNISSEUR 0014 | J16: 00131111004000068
B17: =EOMONTH(VENTE!A17,-1)+1 -> 2016-01-01 | C17: =EOMONTH(VENTE!I17,-1)+1 -> 2016-01-01 | D17: =EOMONTH(ACHAT!M17,-1)+1 -> 2014-11-01 | E17: =EOMONTH(ACHAT!L17,-1)+1 -> 2015-03-01 | H17: 1008670 | I17: FOURNISSEUR 0015 | J17: 00141111004000069
B18: =EOMONTH(VENTE!A18,-1)+1 -> 2016-01-01 | C18: =EOMONTH(VENTE!I18,-1)+1 -> 2016-01-01 | D18: =EOMONTH(ACHAT!M18,-1)+1 -> 2014-11-01 | E18: =EOMONTH(ACHAT!L18,-1)+1 -> 2015-03-01 | H18: 1008733 | I18: FOURNISSEUR 0016 | J18: 00151111004000070
B19: =EOMONTH(VENTE!A19,-1)+1 -> 2016-01-01 | C19: =EOMONTH(VENTE!I19,-1)+1 -> 2016-01-01 | D19: =EOMONTH(ACHAT!M19,-1)+1 -> 2014-11-01 | E19: =EOMONTH(ACHAT!L19,-1)+1 -> 2015-03-01 | H19: 1008796 | I19: FOURNISSEUR 0017 | J19: 00161111004000071
B20: =EOMONTH(VENTE!A20,-1)+1 -> 2016-01-01 | C20: =EOMONTH(VENTE!I20,-1)+1 -> 2016-01-01 | D20: =EOMONTH(ACHAT!M20,-1)+1 -> 2014-11-01 | E20: =EOMONTH(ACHAT!L20,-1)+1 -> 2015-03-01 | H20: 1008859 | I20: FOURNISSEUR 0016 | J20: 00171111004000072
B21: =EOMONTH(VENTE!A21,-1)+1 -> 2016-01-01 | C21: =EOMONTH(VENTE!I21,-1)+1 -> 2016-01-01 | D21: =EOMONTH(ACHAT!M21,-1)+1 -> 2014-12-01 | E21: =EOMONTH(ACHAT!L21,-1)+1 -> 2015-03-01 | H21: 1008922 | I21: FOURNISSEUR 0019 | J21: 00181111004000073
B22: =EOMONTH(VENTE!A22,-1)+1 -> 2016-01-01 | C22: =EOMONTH(VENTE!I22,-1)+1 -> 2016-01-01 | D22: =EOMONTH(ACHAT!M22,-1)+1 -> 2014-12-01 | E22: =EOMONTH(ACHAT!L22,-1)+1 -> 2015-03-01 | H22: 1008985 | I22: FOURNISSEUR 0020 | J22: 00191111004000074
B23: =EOMONTH(VENTE!A23,-1)+1 -> 2016-01-01 | C23: =EOMONTH(VENTE!I23,-1)+1 -> 2016-01-01 | D23: =EOMONTH(ACHAT!M23,-1)+1 -> 2014-12-01 | E23: =EOMONTH(ACHAT!L23,-1)+1 -> 2015-03-01 | H23: 1009048 | I23: FOURNISSEUR 0021 | J23: 00201111004000075
B24: =EOMONTH(VENTE!A24,-1)+1 -> 2016-01-01 | C24: =EOMONTH(VENTE!I24,-1)+1 -> 2016-01-01 | D24: =EOMONTH(ACHAT!M24,-1)+1 -> 2014-12-01 | E24: =EOMONTH(ACHAT!L24,-1)+1 -> 2015-03-01 | H24: 1009111 | I24: FOURNISSEUR 0022 | J24: 00211111004000076
B25: =EOMONTH(VENTE!A25,-1)+1 -> 2016-01-01 | C25: =EOMONTH(VENTE!I25,-1)+1 -> 2016-01-01 | D25: =EOMONTH(ACHAT!M25,-1)+1 -> 2015-02-01 | E25: =EOMONTH(ACHAT!L25,-1)+1 -> 2015-03-01 | H25: 1009174 | I25: FOURNISSEUR 0023 | J25: 00221111004000077
B26: =EOMONTH(VENTE!A26,-1)+1 -> 2016-01-01 | C26: =EOMONTH(VENTE!I26,-1)+1 -> 2016-01-01 | D26: =EOMONTH(ACHAT!M26,-1)+1 -> 2015-03-01 | E26: =EOMONTH(ACHAT!L26,-1)+1 -> 2015-03-01 | H26: 1009237 | I26: FOURNISSEUR 0024 | J26: 00231111004000078
B27: =EOMONTH(VENTE!A27,-1)+1 -> 2016-01-01 | C27: =EOMONTH(VENTE!I27,-1)+1 -> 2016-01-01 | D27: =EOMONTH(ACHAT!M27,-1)+1 -> 2015-03-01 | E27: =EOMONTH(ACHAT!L27,-1)+1 -> 2015-03-01 | H27: 1009300 | I27: FOURNISSEUR 0025 | J27: 00241111004000079
B28: =EOMONTH(VENTE!A28,-1)+1 -> 2016-01-01 | C28: =EOMONTH(VENTE!I28,-1)+1 -> 2016-01-01 | D28: =EOMONTH(ACHAT!M28,-1)+1 -> 2015-03-01 | E28: =EOMONTH(ACHAT!L28,-1)+1 -> 2015-03-01 | H28: 1009363 | I28: FOURNISSEUR 0026 | J28: 00251111004000080
B29: =EOMONTH(VENTE!A29,-1)+1 -> 2016-01-01 | C29: =EOMONTH(VENTE!I29,-1)+1 -> 2016-01-01 | D29: =EOMONTH(ACHAT!M29,-1)+1 -> 2015-03-01 | E29: =EOMONTH(ACHAT!L29,-1)+1 -> 2015-03-01 | H29: 1009426 | I29: FOURNISSEUR 0027 | J29: 00261111004000081
B30: =EOMONTH(VENTE!A30,-1)+1 -> 2016-01-01 | C30: =EOMONTH(VENTE!I30,-1)+1 -> 2016-01-01 | D30: =EOMONTH(ACHAT!M30,-1)+1 -> 2015-03-01 | E30: =EOMONTH(ACHAT!L30,-1)+1 -> 2015-04-01 | H30: 1009489 | I30: FOURNISSEUR 0028 | J30: 00271111004000082
B31: =EOMONTH(VENTE!A31,-1)+1 -> 2016-01-01 | C31: =EOMONTH(VENTE!I31,-1)+1 -> 2016-01-01 | D31: =EOMONTH(ACHAT!M31,-1)+1 -> 2015-02-01 | E31: =EOMONTH(ACHAT!L31,-1)+1 -> 2015-03-01 | H31: 1009552 | I31: FOURNISSEUR 0029 | J31: 00281111004000083
B32: =EOMONTH(VENTE!A32,-1)+1 -> 2016-01-01 | C32: =EOMONTH(VENTE!I32,-1)+1 -> 2016-01-01 | D32: =EOMONTH(ACHAT!M32,-1)+1 -> 2015-03-01 | E32: =EOMONTH(ACHAT!L32,-1)+1 -> 2015-03-01 | H32: 1009615 | I32: FOURNISSEUR 0030 | J32: 00291111004000084
B33: =EOMONTH(VENTE!A33,-1)+1 -> 2016-01-01 | C33: =EOMONTH(VENTE!I33,-1)+1 -> 2016-01-01 | D33: =EOMONTH(ACHAT!M33,-1)+1 -> 2015-03-01 | E33: =EOMONTH(ACHAT!L33,-1)+1 -> 2015-03-01 | H33: 1009678 | I33: FOURNISSEUR 0031 | J33: 00301111004000085
B34: =EOMONTH(VENTE!A34,-1)+1 -> 2015-10-01 | C34: =EOMONTH(VENTE!I34,-1)+1 -> 2016-02-01 | D34: =EOMONTH(ACHAT!M34,-1)+1 -> 2015-04-01 | E34: =EOMONTH(ACHAT!L34,-1)+1 -> 2015-04-01 | H34: 1009741 | I34: FOURNISSEUR 0032 | J34: 00311111004000086
B35: =EOMONTH(VENTE!A35,-1)+1 -> 2015-12-01 | C35: =EOMONTH(VENTE!I35,-1)+1 -> 2016-02-01 | D35: =EOMONTH(ACHAT!M35,-1)+1 -> 2015-04-01 | E35: =EOMONTH(ACHAT!L35,-1)+1 -> 2015-04-01 | H35: 1009804 | I35: FOURNISSEUR 0033 | J35: 00321111004000087
B36: =EOMONTH(VENTE!A36,-1)+1 -> 2016-02-01 | C36: =EOMONTH(VENTE!I36,-1)+1 -> 2016-02-01 | D36: =EOMONTH(ACHAT!M36,-1)+1 -> 2015-01-01 | E36: =EOMONTH(ACHAT!L36,-1)+1 -> 2015-04-01
B37: =EOMONTH(VENTE!A37,-1)+1 -> 2016-02-01 | C37: =EOMONTH(VENTE!I37,-1)+1 -> 2016-02-01 | D37: =EOMONTH(ACHAT!M37,-1)+1 -> 2015-04-01 | E37: =EOMONTH(ACHAT!L37,-1)+1 -> 2015-04-01
B38: =EOMONTH(VENTE!A38,-1)+1 -> 2016-02-01 | C38: =EOMONTH(VENTE!I38,-1)+1 -> 2016-02-01 | D38: =EOMONTH(ACHAT!M38,-1)+1 -> 2015-01-01 | E38: =EOMONTH(ACHAT!L38,-1)+1 -> 2015-05-01
B39: =EOMONTH(VENTE!A39,-1)+1 -> 2016-02-01 | C39: =EOMONTH(VENTE!I39,-1)+1 -> 2016-02-01 | D39: =EOMONTH(ACHAT!M39,-1)+1 -> 2015-01-01 | E39: =EOMONTH(ACHAT!L39,-1)+1 -> 2015-05-01
B40: =EOMONTH(VENTE!A40,-1)+1 -> 2016-02-01 | C40: =EOMONTH(VENTE!I40,-1)+1 -> 2016-02-01 | D40: =EOMONTH(ACHAT!M40,-1)+1 -> 2015-02-01 | E40: =EOMONTH(ACHAT!L40,-1)+1 -> 2015-05-01
B41: =EOMONTH(VENTE!A41,-1)+1 -> 2016-02-01 | C41: =EOMONTH(VENTE!I41,-1)+1 -> 2016-02-01 | D41: =EOMONTH(ACHAT!M41,-1)+1 -> 2015-04-01 | E41: =EOMONTH(ACHAT!L41,-1)+1 -> 2015-05-01
B42: =EOMONTH(VENTE!A42,-1)+1 -> 2016-02-01 | C42: =EOMONTH(VENTE!I42,-1)+1 -> 2016-02-01 | D42: =EOMONTH(ACHAT!M42,-1)+1 -> 2015-05-01 | E42: =EOMONTH(ACHAT!L42,-1)+1 -> 2015-05-01
B43: =EOMONTH(VENTE!A43,-1)+1 -> 2016-02-01 | C43: =EOMONTH(VENTE!I43,-1)+1 -> 2016-02-01 | D43: =EOMONTH(ACHAT!M43,-1)+1 -> 2015-05-01 | E43: =EOMONTH(ACHAT!L43,-1)+1 -> 2015-05-01
B44: =EOMONTH(VENTE!A44,-1)+1 -> 2016-02-01 | C44: =EOMONTH(VENTE!I44,-1)+1 -> 2016-02-01 | D44: =EOMONTH(ACHAT!M44,-1)+1 -> 2015-06-01 | E44: =EOMONTH(ACHAT!L44,-1)+1 -> 2015-05-01
B45: =EOMONTH(VENTE!A45,-1)+1 -> 2016-02-01 | C45: =EOMONTH(VENTE!I45,-1)+1 -> 2016-02-01 | D45: =EOMONTH(ACHAT!M45,-1)+1 -> 2015-02-01 | E45: =EOMONTH(ACHAT!L45,-1)+1 -> 2015-06-01
B46: =EOMONTH(VENTE!A46,-1)+1 -> 2016-02-01 | C46: =EOMONTH(VENTE!I46,-1)+1 -> 2016-02-01 | D46: =EOMONTH(ACHAT!M46,-1)+1 -> 2015-02-01 | E46: =EOMONTH(ACHAT!L46,-1)+1 -> 2015-06-01
B47: =EOMONTH(VENTE!A47,-1)+1 -> 2016-02-01 | C47: =EOMONTH(VENTE!I47,-1)+1 -> 2016-02-01 | D47: =EOMONTH(ACHAT!M47,-1)+1 -> 2015-02-01 | E47: =EOMONTH(ACHAT!L47,-1)+1 -> 2015-06-01
B48: =EOMONTH(VENTE!A48,-1)+1 -> 2016-02-01 | C48: =EOMONTH(VENTE!I48,-1)+1 -> 2016-02-01 | D48: =EOMONTH(ACHAT!M48,-1)+1 -> 2015-02-01 | E48: =EOMONTH(ACHAT!L48,-1)+1 -> 2015-06-01
B49: =EOMONTH(VENTE!A49,-1)+1 -> 2016-02-01 | C49: =EOMONTH(VENTE!I49,-1)+1 -> 2016-02-01 | D49: =EOMONTH(ACHAT!M49,-1)+1 -> 2015-05-01 | E49: =EOMONTH(ACHAT!L49,-1)+1 -> 2015-06-01
B50: =EOMONTH(VENTE!A50,-1)+1 -> 2016-02-01 | C50: =EOMONTH(VENTE!I50,-1)+1 -> 2016-02-01 | D50: =EOMONTH(ACHAT!M50,-1)+1 -> 2015-06-01 | E50: =EOMONTH(ACHAT!L50,-1)+1 -> 2015-06-01
B51: =EOMONTH(VENTE!A51,-1)+1 -> 2016-02-01 | C51: =EOMONTH(VENTE!I51,-1)+1 -> 2016-02-01 | D51: =EOMONTH(ACHAT!M51,-1)+1 -> 2015-06-01 | E51: =EOMONTH(ACHAT!L51,-1)+1 -> 2015-06-01
B52: =EOMONTH(VENTE!A52,-1)+1 -> 2016-02-01 | C52: =EOMONTH(VENTE!I52,-1)+1 -> 2016-02-01 | D52: =EOMONTH(ACHAT!M52,-1)+1 -> 2015-03-01 | E52: =EOMONTH(ACHAT!L52,-1)+1 -> 2015-06-01
B53: =EOMONTH(VENTE!A53,-1)+1 -> 2016-02-01 | C53: =EOMONTH(VENTE!I53,-1)+1 -> 2016-02-01 | D53: =EOMONTH(ACHAT!M53,-1)+1 -> 2015-03-01 | E53: =EOMONTH(ACHAT!L53,-1)+1 -> 2015-06-01
B54: =EOMONTH(VENTE!A54,-1)+1 -> 2016-02-01 | C54: =EOMONTH(VENTE!I54,-1)+1 -> 2016-02-01 | D54: =EOMONTH(ACHAT!M54,-1)+1 -> 2015-06-01 | E54: =EOMONTH(ACHAT!L54,-1)+1 -> 2015-06-01
B55: =EOMONTH(VENTE!A55,-1)+1 -> 2016-02-01 | C55: =EOMONTH(VENTE!I55,-1)+1 -> 2016-02-01 | D55: =EOMONTH(ACHAT!M55,-1)+1 -> 2015-03-01 | E55: =EOMONTH(ACHAT!L55,-1)+1 -> 2015-07-01
B56: =EOMONTH(VENTE!A56,-1)+1 -> 2016-02-01 | C56: =EOMONTH(VENTE!I56,-1)+1 -> 2016-02-01 | D56: =EOMONTH(ACHAT!M56,-1)+1 -> 2015-03-01 | E56: =EOMONTH(ACHAT!L56,-1)+1 -> 2015-07-01
B57: =EOMONTH(VENTE!A57,-1)+1 -> 2016-02-01 | C57: =EOMONTH(VENTE!I57,-1)+1 -> 2016-02-01 | D57: =EOMONTH(ACHAT!M57,-1)+1 -> 2015-03-01 | E57: =EOMONTH(ACHAT!L57,-1)+1 -> 2015-07-01
B58: =EOMONTH(VENTE!A58,-1)+1 -> 2016-02-01 | C58: =EOMONTH(VENTE!I58,-1)+1 -> 2016-02-01 | D58: =EOMONTH(ACHAT!M58,-1)+1 -> 2015-03-01 | E58: =EOMONTH(ACHAT!L58,-1)+1 -> 2015-07-01
B59: =EOMONTH(VENTE!A59,-1)+1 -> 2016-02-01 | C59: =EOMONTH(VENTE!I59,-1)+1 -> 2016-02-01 | D59: =EOMONTH(ACHAT!M59,-1)+1 -> 2015-07-01 | E59: =EOMONTH(ACHAT!L59,-1)+1 -> 2015-07-01
B60: =EOMONTH(VENTE!A60,-1)+1 -> 2016-02-01 | C60: =EOMONTH(VENTE!I60,-1)+1 -> 2016-02-01 | D60: =EOMONTH(ACHAT!M60,-1)+1 -> 2015-07-01 | E60: =EOMONTH(ACHAT!L60,-1)+1 -> 2015-06-01
B61: =EOMONTH(VENTE!A61,-1)+1 -> 2016-02-01 | C61: =EOMONTH(VENTE!I61,-1)+1 -> 2016-02-01 | D61: =EOMONTH(ACHAT!M61,-1)+1 -> 2015-03-01 | E61: =EOMONTH(ACHAT!L61,-1)+1 -> 2015-07-01
B62: =EOMONTH(VENTE!A62,-1)+1 -> 2016-02-01 | C62: =EOMONTH(VENTE!I62,-1)+1 -> 2016-02-01 | D62: =EOMONTH(ACHAT!M62,-1)+1 -> 2015-04-01 | E62: =EOMONTH(ACHAT!L62,-1)+1 -> 2015-07-01
B63: =EOMONTH(VENTE!A63,-1)+1 -> 2016-02-01 | C63: =EOMONTH(VENTE!I63,-1)+1 -> 2016-02-01 | D63: =EOMONTH(ACHAT!M63,-1)+1 -> 2015-07-01 | E63: =EOMONTH(ACHAT!L63,-1)+1 -> 2015-07-01
B64: =EOMONTH(VENTE!A64,-1)+1 -> 2016-02-01 | C64: =EOMONTH(VENTE!I64,-1)+1 -> 2016-02-01 | D64: =EOMONTH(ACHAT!M64,-1)+1 -> 2015-04-01 | E64: =EOMONTH(ACHAT!L64,-1)+1 -> 2015-07-01
B65: =EOMONTH(VENTE!A65,-1)+1 -> 2016-02-01 | C65: =EOMONTH(VENTE!I65,-1)+1 -> 2016-02-01 | D65: =EOMONTH(ACHAT!M65,-1)+1 -> 2015-04-01 | E65: =EOMONTH(ACHAT!L65,-1)+1 -> 2015-07-01
B66: =EOMONTH(VENTE!A66,-1)+1 -> 2016-02-01 | C66: =EOMONTH(VENTE!I66,-1)+1 -> 2016-02-01 | D66: =EOMONTH(ACHAT!M66,-1)+1 -> 2015-04-01 | E66: =EOMONTH(ACHAT!L66,-1)+1 -> 2015-07-01
B67: =EOMONTH(VENTE!A67,-1)+1 -> 2016-02-01 | C67: =EOMONTH(VENTE!I67,-1)+1 -> 2016-02-01 | D67: =EOMONTH(ACHAT!M67,-1)+1 -> 2015-08-01 | E67: =EOMONTH(ACHAT!L67,-1)+1 -> 2015-08-01
B68: =EOMONTH(VENTE!A68,-1)+1 -> 2016-02-01 | C68: =EOMONTH(VENTE!I68,-1)+1 -> 2016-02-01 | D68: =EOMONTH(ACHAT!M68,-1)+1 -> 2015-08-01 | E68: =EOMONTH(ACHAT!L68,-1)+1 -> 2015-08-01
B69: =EOMONTH(VENTE!A69,-1)+1 -> 2016-02-01 | C69: =EOMONTH(VENTE!I69,-1)+1 -> 2016-02-01 | D69: =EOMONTH(ACHAT!M69,-1)+1 -> 2015-08-01 | E69: =EOMONTH(ACHAT!L69,-1)+1 -> 2015-08-01
B70: =EOMONTH(VENTE!A70,-1)+1 -> 2016-02-01 | C70: =EOMONTH(VENTE!I70,-1)+1 -> 2016-02-01 | D70: =EOMONTH(ACHAT!M70,-1)+1 -> 2015-05-01 | E70: =EOMONTH(ACHAT!L70,-1)+1 -> 2015-08-01
B71: =EOMONTH(VENTE!A71,-1)+1 -> 2016-02-01 | C71: =EOMONTH(VENTE!I71,-1)+1 -> 2016-02-01 | D71: =EOMONTH(ACHAT!M71,-1)+1 -> 2015-05-01 | E71: =EOMONTH(ACHAT!L71,-1)+1 -> 2015-08-01
B72: =EOMONTH(VENTE!A72,-1)+1 -> 2016-02-01 | C72: =EOMONTH(VENTE!I72,-1)+1 -> 2016-02-01 | D72: =EOMONTH(ACHAT!M72,-1)+1 -> 2015-05-01 | E72: =EOMONTH(ACHAT!L72,-1)+1 -> 2015-08-01
B73: =EOMONTH(VENTE!A73,-1)+1 -> 2016-02-01 | C73: =EOMONTH(VENTE!I73,-1)+1 -> 2016-02-01 | D73: =EOMONTH(ACHAT!M73,-1)+1 -> 2015-09-01 | E73: =EOMONTH(ACHAT!L73,-1)+1 -> 2015-08-01
B74: =EOMONTH(VENTE!A74,-1)+1 -> 2015-11-01 | C74: =EOMONTH(VENTE!I74,-1)+1 -> 2016-03-01 | D74: =EOMONTH(ACHAT!M74,-1)+1 -> 2015-09-01 | E74: =EOMONTH(ACHAT!L74,-1)+1 -> 2015-08-01
B75: =EOMONTH(VENTE!A75,-1)+1 -> 2015-11-01 | C75: =EOMONTH(VENTE!I75,-1)+1 -> 2016-03-01 | D75: =EOMONTH(ACHAT!M75,-1)+1 -> 2015-09-01 | E75: =EOMONTH(ACHAT!L75,-1)+1 -> 2015-08-01
B76: =EOMONTH(VENTE!A76,-1)+1 -> 2015-11-01 | C76: =EOMONTH(VENTE!I76,-1)+1 -> 2016-03-01 | D76: =EOMONTH(ACHAT!M76,-1)+1 -> 2015-05-01 | E76: =EOMONTH(ACHAT!L76,-1)+1 -> 2015-09-01
B77: =EOMONTH(VENTE!A77,-1)+1 -> 2015-12-01 | C77: =EOMONTH(VENTE!I77,-1)+1 -> 2016-03-01 | D77: =EOMONTH(ACHAT!M77,-1)+1 -> 2015-05-01 | E77: =EOMONTH(ACHAT!L77,-1)+1 -> 2015-09-01
B78: =EOMONTH(VENTE!A78,-1)+1 -> 2015-12-01 | C78: =EOMONTH(VENTE!I78,-1)+1 -> 2016-03-01 | D78: =EOMONTH(ACHAT!M78,-1)+1 -> 2015-05-01 | E78: =EOMONTH(ACHAT!L78,-1)+1 -> 2015-09-01
B79: =EOMONTH(VENTE!A79,-1)+1 -> 2015-12-01 | C79: =EOMONTH(VENTE!I79,-1)+1 -> 2016-03-01 | D79: =EOMONTH(ACHAT!M79,-1)+1 -> 2015-06-01 | E79: =EOMONTH(ACHAT!L79,-1)+1 -> 2015-07-01
B80: =EOMONTH(VENTE!A80,-1)+1 -> 2016-01-01 | C80: =EOMONTH(VENTE!I80,-1)+1 -> 2016-03-01 | D80: =EOMONTH(ACHAT!M80,-1)+1 -> 2015-07-01 | E80: =EOMONTH(ACHAT!L80,-1)+1 -> 2015-08-01
B81: =EOMONTH(VENTE!A81,-1)+1 -> 2016-01-01 | C81: =EOMONTH(VENTE!I81,-1)+1 -> 2016-03-01 | D81: =EOMONTH(ACHAT!M81,-1)+1 -> 2015-08-01 | E81: =EOMONTH(ACHAT!L81,-1)+1 -> 2015-08-01
B82: =EOMONTH(VENTE!A82,-1)+1 -> 2016-02-01 | C82: =EOMONTH(VENTE!I82,-1)+1 -> 2016-03-01 | D82: =EOMONTH(ACHAT!M82,-1)+1 -> 2015-08-01 | E82: =EOMONTH(ACHAT!L82,-1)+1 -> 2015-09-01
B83: =EOMONTH(VENTE!A83,-1)+1 -> 2016-03-01 | C83: =EOMONTH(VENTE!I83,-1)+1 -> 2016-03-01 | D83: =EOMONTH(ACHAT!M83,-1)+1 -> 2015-06-01 | E83: =EOMONTH(ACHAT!L83,-1)+1 -> 2015-10-01
B84: =EOMONTH(VENTE!A84,-1)+1 -> 2016-03-01 | C84: =EOMONTH(VENTE!I84,-1)+1 -> 2016-03-01 | D84: =EOMONTH(ACHAT!M84,-1)+1 -> 2015-07-01 | E84: =EOMONTH(ACHAT!L84,-1)+1 -> 2015-10-01
B85: =EOMONTH(VENTE!A85,-1)+1 -> 2016-03-01 | C85: =EOMONTH(VENTE!I85,-1)+1 -> 2016-03-01 | D85: =EOMONTH(ACHAT!M85,-1)+1 -> 2015-06-01 | E85: =EOMONTH(ACHAT!L85,-1)+1 -> 2015-06-01
B86: =EOMONTH(VENTE!A86,-1)+1 -> 2016-03-01 | C86: =EOMONTH(VENTE!I86,-1)+1 -> 2016-03-01 | D86: =EOMONTH(ACHAT!M86,-1)+1 -> 2015-06-01 | E86: =EOMONTH(ACHAT!L86,-1)+1 -> 2015-09-01
B87: =EOMONTH(VENTE!A87,-1)+1 -> 2016-03-01 | C87: =EOMONTH(VENTE!I87,-1)+1 -> 2016-03-01 | D87: =EOMONTH(ACHAT!M87,-1)+1 -> 2015-09-01 | E87: =EOMONTH(ACHAT!L87,-1)+1 -> 2015-09-01
B88: =EOMONTH(VENTE!A88,-1)+1 -> 2016-03-01 | C88: =EOMONTH(VENTE!I88,-1)+1 -> 2016-03-01 | D88: =EOMONTH(ACHAT!M88,-1)+1 -> 2015-09-01 | E88: =EOMONTH(ACHAT!L88,-1)+1 -> 2015-09-01
B89: =EOMONTH(VENTE!A89,-1)+1 -> 2016-03-01 | C89: =EOMONTH(VENTE!I89,-1)+1 -> 2016-03-01 | D89: =EOMONTH(ACHAT!M89,-1)+1 -> 2015-09-01 | E89: =EOMONTH(ACHAT!L89,-1)+1 -> 2015-10-01
B90: =EOMONTH(VENTE!A90,-1)+1 -> 2016-03-01 | C90: =EOMONTH(VENTE!I90,-1)+1 -> 2016-03-01 | D90: =EOMONTH(ACHAT!M90,-1)+1 -> 2015-10-01 | E90: =EOMONTH(ACHAT!L90,-1)+1 -> 2015-10-01
B91: =EOMONTH(VENTE!A91,-1)+1 -> 2016-03-01 | C91: =EOMONTH(VENTE!I91,-1)+1 -> 2016-03-01 | D91: =EOMONTH(ACHAT!M91,-1)+1 -> 2015-11-01 | E91: =EOMONTH(ACHAT!L91,-1)+1 -> 2015-11-01
B92: =EOMONTH(VENTE!A92,-1)+1 -> 2016-03-01 | C92: =EOMONTH(VENTE!I92,-1)+1 -> 2016-03-01 | D92: =EOMONTH(ACHAT!M92,-1)+1 -> 2015-02-01 | E92: =EOMONTH(ACHAT!L92,-1)+1 -> 2015-06-01
B93: =EOMONTH(VENTE!A93,-1)+1 -> 2016-03-01 | C93: =EOMONTH(VENTE!I93,-1)+1 -> 2016-03-01 | D93: =EOMONTH(ACHAT!M93,-1)+1 -> 2015-03-01 | E93: =EOMONTH(ACHAT!L93,-1)+1 -> 2015-06-01
B94: =EOMONTH(VENTE!A94,-1)+1 -> 2016-03-01 | C94: =EOMONTH(VENTE!I94,-1)+1 -> 2016-03-01 | D94: =EOMONTH(ACHAT!M94,-1)+1 -> 2015-04-01 | E94: =EOMONTH(ACHAT!L94,-1)+1 -> 2015-06-01
B95: =EOMONTH(VENTE!A95,-1)+1 -> 2016-03-01 | C95: =EOMONTH(VENTE!I95,-1)+1 -> 2016-03-01 | D95: =EOMONTH(ACHAT!M95,-1)+1 -> 2015-06-01 | E95: =EOMONTH(ACHAT!L95,-1)+1 -> 2015-11-01
B96: =EOMONTH(VENTE!A96,-1)+1 -> 2016-03-01 | C96: =EOMONTH(VENTE!I96,-1)+1 -> 2016-03-01 | D96: =EOMONTH(ACHAT!M96,-1)+1 -> 2015-06-01 | E96: =EOMONTH(ACHAT!L96,-1)+1 -> 2015-11-01
B97: =EOMONTH(VENTE!A97,-1)+1 -> 2016-03-01 | C97: =EOMONTH(VENTE!I97,-1)+1 -> 2016-03-01 | D97: =EOMONTH(ACHAT!M97,-1)+1 -> 2015-07-01 | E97: =EOMONTH(ACHAT!L97,-1)+1 -> 2015-11-01
B98: =EOMONTH(VENTE!A98,-1)+1 -> 2016-03-01 | C98: =EOMONTH(VENTE!I98,-1)+1 -> 2016-03-01 | D98: =EOMONTH(ACHAT!M98,-1)+1 -> 2015-07-01 | E98: =EOMONTH(ACHAT!L98,-1)+1 -> 2015-11-01
B99: =EOMONTH(VENTE!A99,-1)+1 -> 2016-03-01 | C99: =EOMONTH(VENTE!I99,-1)+1 -> 2016-03-01 | D99: =EOMONTH(ACHAT!M99,-1)+1 -> 2015-11-01 | E99: =EOMONTH(ACHAT!L99,-1)+1 -> 2015-11-01
B100: =EOMONTH(VENTE!A100,-1)+1 -> 2016-03-01 | C100: =EOMONTH(VENTE!I100,-1)+1 -> 2016-03-01 | D100: =EOMONTH(ACHAT!M100,-1)+1 -> 2015-11-01 | E100: =EOMONTH(ACHAT!L100,-1)+1 -> 2015-11-01
B101: =EOMONTH(VENTE!A101,-1)+1 -> 2016-03-01 | C101: =EOMONTH(VENTE!I101,-1)+1 -> 2016-03-01 | D101: =EOMONTH(ACHAT!M101,-1)+1 -> 2015-08-01 | E101: =EOMONTH(ACHAT!L101,-1)+1 -> 2015-11-01
B102: =EOMONTH(VENTE!A102,-1)+1 -> 2016-03-01 | C102: =EOMONTH(VENTE!I102,-1)+1 -> 2016-03-01 | D102: =EOMONTH(ACHAT!M102,-1)+1 -> 2015-08-01 | E102: =EOMONTH(ACHAT!L102,-1)+1 -> 2015-12-01
B103: =EOMONTH(VENTE!A103,-1)+1 -> 2016-03-01 | C103: =EOMONTH(VENTE!I103,-1)+1 -> 2016-03-01 | D103: =EOMONTH(ACHAT!M103,-1)+1 -> 2015-09-01 | E103: =EOMONTH(ACHAT!L103,-1)+1 -> 2015-12-01
B104: =EOMONTH(VENTE!A104,-1)+1 -> 2016-03-01 | C104: =EOMONTH(VENTE!I104,-1)+1 -> 2016-03-01 | D104: =EOMONTH(ACHAT!M104,-1)+1 -> 2015-08-01 | E104: =EOMONTH(ACHAT!L104,-1)+1 -> 2015-12-01
B105: =EOMONTH(VENTE!A105,-1)+1 -> 2016-03-01 | C105: =EOMONTH(VENTE!I105,-1)+1 -> 2016-03-01 | D105: =EOMONTH(ACHAT!M105,-1)+1 -> 2015-08-01 | E105: =EOMONTH(ACHAT!L105,-1)+1 -> 2015-12-01
B106: =EOMONTH(VENTE!A106,-1)+1 -> 2016-03-01 | C106: =EOMONTH(VENTE!I106,-1)+1 -> 2016-03-01 | D106: =EOMONTH(ACHAT!M106,-1)+1 -> 2016-01-01 | E106: =EOMONTH(ACHAT!L106,-1)+1 -> 2016-01-01
B107: =EOMONTH(VENTE!A107,-1)+1 -> 2016-03-01 | C107: =EOMONTH(VENTE!I107,-1)+1 -> 2016-03-01 | D107: =EOMONTH(ACHAT!M107,-1)+1 -> 2015-10-01 | E107: =EOMONTH(ACHAT!L107,-1)+1 -> 2016-01-01
B108: =EOMONTH(VENTE!A108,-1)+1 -> 2016-03-01 | C108: =EOMONTH(VENTE!I108,-1)+1 -> 2016-03-01 | D108: =EOMONTH(ACHAT!M108,-1)+1 -> 2015-12-01 | E108: =EOMONTH(ACHAT!L108,-1)+1 -> 2016-01-01
B109: =EOMONTH(VENTE!A109,-1)+1 -> 2016-03-01 | C109: =EOMONTH(VENTE!I109,-1)+1 -> 2016-03-01 | D109: =EOMONTH(ACHAT!M109,-1)+1 -> 2015-12-01 | E109: =EOMONTH(ACHAT!L109,-1)+1 -> 2016-01-01
B110: =EOMONTH(VENTE!A110,-1)+1 -> 2016-03-01 | C110: =EOMONTH(VENTE!I110,-1)+1 -> 2016-03-01 | D110: =EOMONTH(ACHAT!M110,-1)+1 -> 2015-12-01 | E110: =EOMONTH(ACHAT!L110,-1)+1 -> 2016-01-01
B111: =EOMONTH(VENTE!A111,-1)+1 -> 2016-03-01 | C111: =EOMONTH(VENTE!I111,-1)+1 -> 2016-03-01 | D111: =EOMONTH(ACHAT!M111,-1)+1 -> 2015-10-01 | E111: =EOMONTH(ACHAT!L111,-1)+1 -> 2016-02-01
B112: =EOMONTH(VENTE!A112,-1)+1 -> 2016-03-01 | C112: =EOMONTH(VENTE!I112,-1)+1 -> 2016-03-01 | D112: =EOMONTH(ACHAT!M112,-1)+1 -> 2015-10-01 | E112: =EOMONTH(ACHAT!L112,-1)+1 -> 2016-02-01
B113: =EOMONTH(VENTE!A113,-1)+1 -> 2016-03-01 | C113: =EOMONTH(VENTE!I113,-1)+1 -> 2016-03-01 | D113: =EOMONTH(ACHAT!M113,-1)+1 -> 2015-10-01 | E113: =EOMONTH(ACHAT!L113,-1)+1 -> 2016-02-01
B114: =EOMONTH(VENTE!A114,-1)+1 -> 2016-03-01 | C114: =EOMONTH(VENTE!I114,-1)+1 -> 2016-03-01 | D114: =EOMONTH(ACHAT!M114,-1)+1 -> 2015-10-01 | E114: =EOMONTH(ACHAT!L114,-1)+1 -> 2016-02-01
B115: =EOMONTH(VENTE!A115,-1)+1 -> 2016-03-01 | C115: =EOMONTH(VENTE!I115,-1)+1 -> 2016-03-01 | D115: =EOMONTH(ACHAT!M115,-1)+1 -> 2015-11-01 | E115: =EOMONTH(ACHAT!L115,-1)+1 -> 2016-02-01
B116: =EOMONTH(VENTE!A116,-1)+1 -> 2016-03-01 | C116: =EOMONTH(VENTE!I116,-1)+1 -> 2016-03-01 | D116: =EOMONTH(ACHAT!M116,-1)+1 -> 2015-10-01 | E116: =EOMONTH(ACHAT!L116,-1)+1 -> 2016-02-01
B117: =EOMONTH(VENTE!A117,-1)+1 -> 2016-03-01 | C117: =EOMONTH(VENTE!I117,-1)+1 -> 2016-03-01 | D117: =EOMONTH(ACHAT!M117,-1)+1 -> 2015-01-01 | E117: =EOMONTH(ACHAT!L117,-1)+1 -> 2016-02-01
B118: =EOMONTH(VENTE!A118,-1)+1 -> 2016-03-01 | C118: =EOMONTH(VENTE!I118,-1)+1 -> 2016-03-01 | D118: =EOMONTH(ACHAT!M118,-1)+1 -> 2015-08-01 | E118: =EOMONTH(ACHAT!L118,-1)+1 -> 2016-02-01
B119: =EOMONTH(VENTE!A119,-1)+1 -> 2016-03-01 | C119: =EOMONTH(VENTE!I119,-1)+1 -> 2016-03-01 | D119: =EOMONTH(ACHAT!M119,-1)+1 -> 2015-11-01 | E119: =EOMONTH(ACHAT!L119,-1)+1 -> 2016-02-01
B120: =EOMONTH(VENTE!A120,-1)+1 -> 2016-03-01 | C120: =EOMONTH(VENTE!I120,-1)+1 -> 2016-03-01 | D120: =EOMONTH(ACHAT!M120,-1)+1 -> 2015-12-01 | E120: =EOMONTH(ACHAT!L120,-1)+1 -> 2016-02-01
B121: =EOMONTH(VENTE!A121,-1)+1 -> 2016-03-01 | C121: =EOMONTH(VENTE!I121,-1)+1 -> 2016-03-01 | D121: =EOMONTH(ACHAT!M121,-1)+1 -> 2015-12-01 | E121: =EOMONTH(ACHAT!L121,-1)+1 -> 2016-02-01
B122: =EOMONTH(VENTE!A122,-1)+1 -> 2015-11-01 | C122: =EOMONTH(VENTE!I122,-1)+1 -> 2016-04-01 | D122: =EOMONTH(ACHAT!M122,-1)+1 -> 2016-02-01 | E122: =EOMONTH(ACHAT!L122,-1)+1 -> 2016-02-01
B123: =EOMONTH(VENTE!A123,-1)+1 -> 2015-11-01 | C123: =EOMONTH(VENTE!I123,-1)+1 -> 2016-04-01 | D123: =EOMONTH(ACHAT!M123,-1)+1 -> 2015-11-01 | E123: =EOMONTH(ACHAT!L123,-1)+1 -> 2016-02-01
B124: =EOMONTH(VENTE!A124,-1)+1 -> 2015-11-01 | C124: =EOMONTH(VENTE!I124,-1)+1 -> 2016-04-01 | D124: =EOMONTH(ACHAT!M124,-1)+1 -> 2015-11-01 | E124: =EOMONTH(ACHAT!L124,-1)+1 -> 2016-02-01
B125: =EOMONTH(VENTE!A125,-1)+1 -> 2015-12-01 | C125: =EOMONTH(VENTE!I125,-1)+1 -> 2016-04-01 | D125: =EOMONTH(ACHAT!M125,-1)+1 -> 2015-11-01 | E125: =EOMONTH(ACHAT!L125,-1)+1 -> 2016-02-01
B126: =EOMONTH(VENTE!A126,-1)+1 -> 2015-12-01 | C126: =EOMONTH(VENTE!I126,-1)+1 -> 2016-04-01 | D126: =EOMONTH(ACHAT!M126,-1)+1 -> 2016-01-01 | E126: =EOMONTH(ACHAT!L126,-1)+1 -> 2016-01-01
B127: =EOMONTH(VENTE!A127,-1)+1 -> 2016-01-01 | C127: =EOMONTH(VENTE!I127,-1)+1 -> 2016-04-01 | D127: =EOMONTH(ACHAT!M127,-1)+1 -> 2016-02-01 | E127: =EOMONTH(ACHAT!L127,-1)+1 -> 2016-02-01
B128: =EOMONTH(VENTE!A128,-1)+1 -> 2016-01-01 | C128: =EOMONTH(VENTE!I128,-1)+1 -> 2016-04-01 | D128: =EOMONTH(ACHAT!M128,-1)+1 -> 2016-02-01 | E128: =EOMONTH(ACHAT!L128,-1)+1 -> 2016-02-01
B129: =EOMONTH(VENTE!A129,-1)+1 -> 2016-01-01 | C129: =EOMONTH(VENTE!I129,-1)+1 -> 2016-04-01 | D129: =EOMONTH(ACHAT!M129,-1)+1 -> 2016-03-01 | E129: =EOMONTH(ACHAT!L129,-1)+1 -> 2016-02-01
B130: =EOMONTH(VENTE!A130,-1)+1 -> 2016-01-01 | C130: =EOMONTH(VENTE!I130,-1)+1 -> 2016-04-01 | D130: =EOMONTH(ACHAT!M130,-1)+1 -> 2015-12-01 | E130: =EOMONTH(ACHAT!L130,-1)+1 -> 2016-03-01
B131: =EOMONTH(VENTE!A131,-1)+1 -> 2016-02-01 | C131: =EOMONTH(VENTE!I131,-1)+1 -> 2016-04-01 | D131: =EOMONTH(ACHAT!M131,-1)+1 -> 2015-12-01 | E131: =EOMONTH(ACHAT!L131,-1)+1 -> 2016-03-01
B132: =EOMONTH(VENTE!A132,-1)+1 -> 2016-03-01 | C132: =EOMONTH(VENTE!I132,-1)+1 -> 2016-03-01 | D132: =EOMONTH(ACHAT!M132,-1)+1 -> 2016-03-01 | E132: =EOMONTH(ACHAT!L132,-1)+1 -> 2016-03-01
B133: =EOMONTH(VENTE!A133,-1)+1 -> 2016-03-01 | C133: =EOMONTH(VENTE!I133,-1)+1 -> 2016-04-01 | D133: =EOMONTH(ACHAT!M133,-1)+1 -> 2016-03-01 | E133: =EOMONTH(ACHAT!L133,-1)+1 -> 2016-03-01
B134: =EOMONTH(VENTE!A134,-1)+1 -> 2016-03-01 | C134: =EOMONTH(VENTE!I134,-1)+1 -> 2016-04-01 | D134: =EOMONTH(ACHAT!M134,-1)+1 -> 2015-12-01 | E134: =EOMONTH(ACHAT!L134,-1)+1 -> 2016-03-01
B135: =EOMONTH(VENTE!A135,-1)+1 -> 2016-03-01 | C135: =EOMONTH(VENTE!I135,-1)+1 -> 2016-04-01 | D135: =EOMONTH(ACHAT!M135,-1)+1 -> 2016-03-01 | E135: =EOMONTH(ACHAT!L135,-1)+1 -> 2016-03-01
B136: =EOMONTH(VENTE!A136,-1)+1 -> 2016-03-01 | C136: =EOMONTH(VENTE!I136,-1)+1 -> 2016-04-01 | D136: =EOMONTH(ACHAT!M136,-1)+1 -> 2016-03-01 | E136: =EOMONTH(ACHAT!L136,-1)+1 -> 2016-03-01
B137: =EOMONTH(VENTE!A137,-1)+1 -> 2016-03-01 | C137: =EOMONTH(VENTE!I137,-1)+1 -> 2016-04-01 | D137: =EOMONTH(ACHAT!M137,-1)+1 -> 2015-01-01 | E137: =EOMONTH(ACHAT!L137,-1)+1 -> 2015-01-01
B138: =EOMONTH(VENTE!A138,-1)+1 -> 2016-04-01 | C138: =EOMONTH(VENTE!I138,-1)+1 -> 2016-04-01 | D138: =EOMONTH(ACHAT!M138,-1)+1 -> 2015-01-01 | E138: =EOMONTH(ACHAT!L138,-1)+1 -> 2015-01-01
B139: =EOMONTH(VENTE!A139,-1)+1 -> 2016-04-01 | C139: =EOMONTH(VENTE!I139,-1)+1 -> 2016-04-01 | D139: =EOMONTH(ACHAT!M139,-1)+1 -> 2015-02-01 | E139: =EOMONTH(ACHAT!L139,-1)+1 -> 2015-01-01
B140: =EOMONTH(VENTE!A140,-1)+1 -> 2016-04-01 | C140: =EOMONTH(VENTE!I140,-1)+1 -> 2016-04-01 | D140: =EOMONTH(ACHAT!M140,-1)+1 -> 2016-03-01 | E140: =EOMONTH(ACHAT!L140,-1)+1 -> 2015-03-01
B141: =EOMONTH(VENTE!A141,-1)+1 -> 2016-04-01 | C141: =EOMONTH(VENTE!I141,-1)+1 -> 2016-04-01 | D141: =EOMONTH(ACHAT!M141,-1)+1 -> 2015-02-01 | E141: =EOMONTH(ACHAT!L141,-1)+1 -> 2015-04-01
B142: =EOMONTH(VENTE!A142,-1)+1 -> 2016-04-01 | C142: =EOMONTH(VENTE!I142,-1)+1 -> 2016-04-01 | D142: =EOMONTH(ACHAT!M142,-1)+1 -> 2015-02-01 | E142: =EOMONTH(ACHAT!L142,-1)+1 -> 2015-04-01
B143: =EOMONTH(VENTE!A143,-1)+1 -> 2016-04-01 | C143: =EOMONTH(VENTE!I143,-1)+1 -> 2016-04-01 | D143: =EOMONTH(ACHAT!M143,-1)+1 -> 2015-03-01 | E143: =EOMONTH(ACHAT!L143,-1)+1 -> 2015-04-01
B144: =EOMONTH(VENTE!A144,-1)+1 -> 2016-04-01 | C144: =EOMONTH(VENTE!I144,-1)+1 -> 2016-04-01 | D144: =EOMONTH(ACHAT!M144,-1)+1 -> 2015-03-01 | E144: =EOMONTH(ACHAT!L144,-1)+1 -> 2015-04-01
B145: =EOMONTH(VENTE!A145,-1)+1 -> 2016-04-01 | C145: =EOMONTH(VENTE!I145,-1)+1 -> 2016-04-01 | D145: =EOMONTH(ACHAT!M145,-1)+1 -> 2015-04-01 | E145: =EOMONTH(ACHAT!L145,-1)+1 -> 2015-04-01
B146: =EOMONTH(VENTE!A146,-1)+1 -> 2016-04-01 | C146: =EOMONTH(VENTE!I146,-1)+1 -> 2016-04-01 | D146: =EOMONTH(ACHAT!M146,-1)+1 -> 2015-03-01 | E146: =EOMONTH(ACHAT!L146,-1)+1 -> 2015-06-01
B147: =EOMONTH(VENTE!A147,-1)+1 -> 2016-04-01 | C147: =EOMONTH(VENTE!I147,-1)+1 -> 2016-04-01 | D147: =EOMONTH(ACHAT!M147,-1)+1 -> 2015-03-01 | E147: =EOMONTH(ACHAT!L147,-1)+1 -> 2015-06-01
B148: =EOMONTH(VENTE!A148,-1)+1 -> 2016-04-01 | C148: =EOMONTH(VENTE!I148,-1)+1 -> 2016-04-01 | D148: =EOMONTH(ACHAT!M148,-1)+1 -> 2015-05-01 | E148: =EOMONTH(ACHAT!L148,-1)+1 -> 2015-06-01
B149: =EOMONTH(VENTE!A149,-1)+1 -> 2016-04-01 | C149: =EOMONTH(VENTE!I149,-1)+1 -> 2016-04-01 | D149: =EOMONTH(ACHAT!M149,-1)+1 -> 2015-04-01 | E149: =EOMONTH(ACHAT!L149,-1)+1 -> 2015-06-01
B150: =EOMONTH(VENTE!A150,-1)+1 -> 2016-04-01 | C150: =EOMONTH(VENTE!I150,-1)+1 -> 2016-04-01 | D150: =EOMONTH(ACHAT!M150,-1)+1 -> 2015-04-01 | E150: =EOMONTH(ACHAT!L150,-1)+1 -> 2015-07-01
B151: =EOMONTH(VENTE!A151,-1)+1 -> 2016-04-01 | C151: =EOMONTH(VENTE!I151,-1)+1 -> 2016-04-01 | D151: =EOMONTH(ACHAT!M151,-1)+1 -> 2015-04-01 | E151: =EOMONTH(ACHAT!L151,-1)+1 -> 2015-07-01
B152: =EOMONTH(VENTE!A152,-1)+1 -> 2016-04-01 | C152: =EOMONTH(VENTE!I152,-1)+1 -> 2016-04-01 | D152: =EOMONTH(ACHAT!M152,-1)+1 -> 2015-06-01 | E152: =EOMONTH(ACHAT!L152,-1)+1 -> 2015-07-01
B153: =EOMONTH(VENTE!A153,-1)+1 -> 2016-04-01 | C153: =EOMONTH(VENTE!I153,-1)+1 -> 2016-04-01 | D153: =EOMONTH(ACHAT!M153,-1)+1 -> 2015-05-01 | E153: =EOMONTH(ACHAT!L153,-1)+1 -> 2015-08-01
B154: =EOMONTH(VENTE!A154,-1)+1 -> 2016-04-01 | C154: =EOMONTH(VENTE!I154,-1)+1 -> 2016-04-01 | D154: =EOMONTH(ACHAT!M154,-1)+1 -> 2015-05-01 | E154: =EOMONTH(ACHAT!L154,-1)+1 -> 2015-08-01
B155: =EOMONTH(VENTE!A155,-1)+1 -> 2016-04-01 | C155: =EOMONTH(VENTE!I155,-1)+1 -> 2016-04-01 | D155: =EOMONTH(ACHAT!M155,-1)+1 -> 2015-07-01 | E155: =EOMONTH(ACHAT!L155,-1)+1 -> 2015-08-01
B156: =EOMONTH(VENTE!A156,-1)+1 -> 2016-04-01 | C156: =EOMONTH(VENTE!I156,-1)+1 -> 2016-04-01 | D156: =EOMONTH(ACHAT!M156,-1)+1 -> 2015-05-01 | E156: =EOMONTH(ACHAT!L156,-1)+1 -> 2015-08-01
B157: =EOMONTH(VENTE!A157,-1)+1 -> 2016-04-01 | C157: =EOMONTH(VENTE!I157,-1)+1 -> 2016-04-01 | D157: =EOMONTH(ACHAT!M157,-1)+1 -> 2015-06-01 | E157: =EOMONTH(ACHAT!L157,-1)+1 -> 2015-08-01
B158: =EOMONTH(VENTE!A158,-1)+1 -> 2016-03-01 | C158: =EOMONTH(VENTE!I158,-1)+1 -> 2016-05-01 | D158: =EOMONTH(ACHAT!M158,-1)+1 -> 2015-07-01 | E158: =EOMONTH(ACHAT!L158,-1)+1 -> 2015-08-01
B159: =EOMONTH(VENTE!A159,-1)+1 -> 2016-03-01 | C159: =EOMONTH(VENTE!I159,-1)+1 -> 2016-05-01 | D159: =EOMONTH(ACHAT!M159,-1)+1 -> 2015-06-01 | E159: =EOMONTH(ACHAT!L159,-1)+1 -> 2015-09-01
B160: =EOMONTH(VENTE!A160,-1)+1 -> 2016-03-01 | C160: =EOMONTH(VENTE!I160,-1)+1 -> 2016-05-01 | D160: =EOMONTH(ACHAT!M160,-1)+1 -> 2015-06-01 | E160: =EOMONTH(ACHAT!L160,-1)+1 -> 2015-09-01
B161: =EOMONTH(VENTE!A161,-1)+1 -> 2016-03-01 | C161: =EOMONTH(VENTE!I161,-1)+1 -> 2016-03-01 | D161: =EOMONTH(ACHAT!M161,-1)+1 -> 2015-07-01 | E161: =EOMONTH(ACHAT!L161,-1)+1 -> 2015-09-01
B162: =EOMONTH(VENTE!A162,-1)+1 -> 2016-04-01 | C162: =EOMONTH(VENTE!I162,-1)+1 -> 2016-05-01 | D162: =EOMONTH(ACHAT!M162,-1)+1 -> 2015-07-01 | E162: =EOMONTH(ACHAT!L162,-1)+1 -> 2015-09-01
B163: =EOMONTH(VENTE!A163,-1)+1 -> 2016-05-01 | C163: =EOMONTH(VENTE!I163,-1)+1 -> 2016-05-01 | D163: =EOMONTH(ACHAT!M163,-1)+1 -> 2015-08-01 | E163: =EOMONTH(ACHAT!L163,-1)+1 -> 2015-09-01
B164: =EOMONTH(VENTE!A164,-1)+1 -> 2016-05-01 | C164: =EOMONTH(VENTE!I164,-1)+1 -> 2016-05-01 | D164: =EOMONTH(ACHAT!M164,-1)+1 -> 2015-09-01 | E164: =EOMONTH(ACHAT!L164,-1)+1 -> 2015-10-01
B165: =EOMONTH(VENTE!A165,-1)+1 -> 2016-05-01 | C165: =EOMONTH(VENTE!I165,-1)+1 -> 2016-05-01 | D165: =EOMONTH(ACHAT!M165,-1)+1 -> 2015-10-01 | E165: =EOMONTH(ACHAT!L165,-1)+1 -> 2015-11-01
B166: =EOMONTH(VENTE!A166,-1)+1 -> 2016-05-01 | C166: =EOMONTH(VENTE!I166,-1)+1 -> 2016-05-01 | D166: =EOMONTH(ACHAT!M166,-1)+1 -> 2015-08-01 | E166: =EOMONTH(ACHAT!L166,-1)+1 -> 2015-11-01
B167: =EOMONTH(VENTE!A167,-1)+1 -> 2016-05-01 | C167: =EOMONTH(VENTE!I167,-1)+1 -> 2016-05-01 | D167: =EOMONTH(ACHAT!M167,-1)+1 -> 2015-09-01 | E167: =EOMONTH(ACHAT!L167,-1)+1 -> 2015-11-01
B168: =EOMONTH(VENTE!A168,-1)+1 -> 2016-05-01 | C168: =EOMONTH(VENTE!I168,-1)+1 -> 2016-05-01 | D168: =EOMONTH(ACHAT!M168,-1)+1 -> 2015-10-01 | E168: =EOMONTH(ACHAT!L168,-1)+1 -> 2015-11-01
B169: =EOMONTH(VENTE!A169,-1)+1 -> 2016-05-01 | C169: =EOMONTH(VENTE!I169,-1)+1 -> 2016-05-01 | D169: =EOMONTH(ACHAT!M169,-1)+1 -> 2015-08-01 | E169: =EOMONTH(ACHAT!L169,-1)+1 -> 2015-12-01
B170: =EOMONTH(VENTE!A170,-1)+1 -> 2016-05-01 | C170: =EOMONTH(VENTE!I170,-1)+1 -> 2016-05-01 | D170: =EOMONTH(ACHAT!M170,-1)+1 -> 2015-08-01 | E170: =EOMONTH(ACHAT!L170,-1)+1 -> 2015-12-01
B171: =EOMONTH(VENTE!A171,-1)+1 -> 2016-05-01 | C171: =EOMONTH(VENTE!I171,-1)+1 -> 2016-05-01 | D171: =EOMONTH(ACHAT!M171,-1)+1 -> 2015-09-01 | E171: =EOMONTH(ACHAT!L171,-1)+1 -> 2015-12-01
B172: =EOMONTH(VENTE!A172,-1)+1 -> 2016-05-01 | C172: =EOMONTH(VENTE!I172,-1)+1 -> 2016-05-01 | D172: =EOMONTH(ACHAT!M172,-1)+1 -> 2015-09-01 | E172: =EOMONTH(ACHAT!L172,-1)+1 -> 2015-12-01
B173: =EOMONTH(VENTE!A173,-1)+1 -> 2016-05-01 | C173: =EOMONTH(VENTE!I173,-1)+1 -> 2016-05-01 | D173: =EOMONTH(ACHAT!M173,-1)+1 -> 2015-10-01 | E173: =EOMONTH(ACHAT!L173,-1)+1 -> 2015-12-01
B174: =EOMONTH(VENTE!A174,-1)+1 -> 2016-05-01 | C174: =EOMONTH(VENTE!I174,-1)+1 -> 2016-05-01 | D174: =EOMONTH(ACHAT!M174,-1)+1 -> 2015-10-01 | E174: =EOMONTH(ACHAT!L174,-1)+1 -> 2015-12-01
B175: =EOMONTH(VENTE!A175,-1)+1 -> 2016-05-01 | C175: =EOMONTH(VENTE!I175,-1)+1 -> 2016-05-01 | D175: =EOMONTH(ACHAT!M175,-1)+1 -> 2015-11-01 | E175: =EOMONTH(ACHAT!L175,-1)+1 -> 2015-12-01
B176: =EOMONTH(VENTE!A176,-1)+1 -> 2016-05-01 | C176: =EOMONTH(VENTE!I176,-1)+1 -> 2016-05-01 | D176: =EOMONTH(ACHAT!M176,-1)+1 -> 2015-12-01 | E176: =EOMONTH(ACHAT!L176,-1)+1 -> 2015-12-01
B177: =EOMONTH(VENTE!A177,-1)+1 -> 2016-05-01 | C177: =EOMONTH(VENTE!I177,-1)+1 -> 2016-05-01 | D177: =EOMONTH(ACHAT!M177,-1)+1 -> 2016-01-01 | E177: =EOMONTH(ACHAT!L177,-1)+1 -> 2016-01-01
B178: =EOMONTH(VENTE!A178,-1)+1 -> 2016-05-01 | C178: =EOMONTH(VENTE!I178,-1)+1 -> 2016-05-01 | D178: =EOMONTH(ACHAT!M178,-1)+1 -> 2015-12-01 | E178: =EOMONTH(ACHAT!L178,-1)+1 -> 2016-01-01
B179: =EOMONTH(VENTE!A179,-1)+1 -> 2016-05-01 | C179: =EOMONTH(VENTE!I179,-1)+1 -> 2016-05-01 | D179: =EOMONTH(ACHAT!M179,-1)+1 -> 2015-12-01 | E179: =EOMONTH(ACHAT!L179,-1)+1 -> 2016-01-01
B180: =EOMONTH(VENTE!A180,-1)+1 -> 2016-05-01 | C180: =EOMONTH(VENTE!I180,-1)+1 -> 2016-05-01 | D180: =EOMONTH(ACHAT!M180,-1)+1 -> 2015-11-01 | E180: =EOMONTH(ACHAT!L180,-1)+1 -> 2016-02-01
B181: =EOMONTH(VENTE!A181,-1)+1 -> 2016-05-01 | C181: =EOMONTH(VENTE!I181,-1)+1 -> 2016-05-01 | D181: =EOMONTH(ACHAT!M181,-1)+1 -> 2015-12-01 | E181: =EOMONTH(ACHAT!L181,-1)+1 -> 2016-02-01
B182: =EOMONTH(VENTE!A182,-1)+1 -> 2016-05-01 | C182: =EOMONTH(VENTE!I182,-1)+1 -> 2016-05-01 | D182: =EOMONTH(ACHAT!M182,-1)+1 -> 2015-12-01 | E182: =EOMONTH(ACHAT!L182,-1)+1 -> 2016-02-01
B183: =EOMONTH(VENTE!A183,-1)+1 -> 2016-05-01 | C183: =EOMONTH(VENTE!I183,-1)+1 -> 2016-05-01 | D183: =EOMONTH(ACHAT!M183,-1)+1 -> 2015-12-01 | E183: =EOMONTH(ACHAT!L183,-1)+1 -> 2016-02-01
B184: =EOMONTH(VENTE!A184,-1)+1 -> 2016-05-01 | C184: =EOMONTH(VENTE!I184,-1)+1 -> 2016-05-01 | D184: =EOMONTH(ACHAT!M184,-1)+1 -> 2015-11-01 | E184: =EOMONTH(ACHAT!L184,-1)+1 -> 2016-02-01
B185: =EOMONTH(VENTE!A185,-1)+1 -> 2016-05-01 | C185: =EOMONTH(VENTE!I185,-1)+1 -> 2016-05-01 | D185: =EOMONTH(ACHAT!M185,-1)+1 -> 2015-11-01 | E185: =EOMONTH(ACHAT!L185,-1)+1 -> 2016-02-01
B186: =EOMONTH(VENTE!A186,-1)+1 -> 2016-05-01 | C186: =EOMONTH(VENTE!I186,-1)+1 -> 2016-05-01 | D186: =EOMONTH(ACHAT!M186,-1)+1 -> 2015-12-01 | E186: =EOMONTH(ACHAT!L186,-1)+1 -> 2016-02-01
B187: =EOMONTH(VENTE!A187,-1)+1 -> 2016-05-01 | C187: =EOMONTH(VENTE!I187,-1)+1 -> 2016-05-01 | D187: =EOMONTH(ACHAT!M187,-1)+1 -> 2015-12-01 | E187: =EOMONTH(ACHAT!L187,-1)+1 -> 2016-02-01
B188: =EOMONTH(VENTE!A188,-1)+1 -> 2016-05-01 | C188: =EOMONTH(VENTE!I188,-1)+1 -> 2016-05-01 | D188: =EOMONTH(ACHAT!M188,-1)+1 -> 2016-02-01 | E188: =EOMONTH(ACHAT!L188,-1)+1 -> 2016-02-01
B189: =EOMONTH(VENTE!A189,-1)+1 -> 2016-05-01 | C189: =EOMONTH(VENTE!I189,-1)+1 -> 2016-05-01 | D189: =EOMONTH(ACHAT!M189,-1)+1 -> 2015-12-01 | E189: =EOMONTH(ACHAT!L189,-1)+1 -> 2016-03-01
B190: =EOMONTH(VENTE!A190,-1)+1 -> 2016-05-01 | C190: =EOMONTH(VENTE!I190,-1)+1 -> 2016-05-01 | D190: =EOMONTH(ACHAT!M190,-1)+1 -> 2015-12-01 | E190: =EOMONTH(ACHAT!L190,-1)+1 -> 2016-03-01
B191: =EOMONTH(VENTE!A191,-1)+1 -> 2016-05-01 | C191: =EOMONTH(VENTE!I191,-1)+1 -> 2016-05-01 | D191: =EOMONTH(ACHAT!M191,-1)+1 -> 2015-12-01 | E191: =EOMONTH(ACHAT!L191,-1)+1 -> 2016-03-01
B192: =EOMONTH(VENTE!A192,-1)+1 -> 2016-05-01 | C192: =EOMONTH(VENTE!I192,-1)+1 -> 2016-05-01 | D192: =EOMONTH(ACHAT!M192,-1)+1 -> 2016-01-01 | E192: =EOMONTH(ACHAT!L192,-1)+1 -> 2016-03-01
B193: =EOMONTH(VENTE!A193,-1)+1 -> 2016-03-01 | C193: =EOMONTH(VENTE!I193,-1)+1 -> 2016-06-01 | D193: =EOMONTH(ACHAT!M193,-1)+1 -> 2016-03-01 | E193: =EOMONTH(ACHAT!L193,-1)+1 -> 2016-04-01
B194: =EOMONTH(VENTE!A194,-1)+1 -> 2016-03-01 | C194: =EOMONTH(VENTE!I194,-1)+1 -> 2016-06-01 | D194: =EOMONTH(ACHAT!M194,-1)+1 -> 2016-04-01 | E194: =EOMONTH(ACHAT!L194,-1)+1 -> 2016-04-01
B195: =EOMONTH(VENTE!A195,-1)+1 -> 2016-04-01 | C195: =EOMONTH(VENTE!I195,-1)+1 -> 2016-07-01 | D195: =EOMONTH(ACHAT!M195,-1)+1 -> 2016-01-01 | E195: =EOMONTH(ACHAT!L195,-1)+1 -> 2016-04-01
B196: =EOMONTH(VENTE!A196,-1)+1 -> 2016-04-01 | C196: =EOMONTH(VENTE!I196,-1)+1 -> 2016-04-01 | D196: =EOMONTH(ACHAT!M196,-1)+1 -> 2016-01-01 | E196: =EOMONTH(ACHAT!L196,-1)+1 -> 2016-04-01
B197: =EOMONTH(VENTE!A197,-1)+1 -> 2016-05-01 | C197: =EOMONTH(VENTE!I197,-1)+1 -> 2016-07-01 | D197: =EOMONTH(ACHAT!M197,-1)+1 -> 2016-02-01 | E197: =EOMONTH(ACHAT!L197,-1)+1 -> 2016-05-01
B198: =EOMONTH(VENTE!A198,-1)+1 -> 2016-06-01 | C198: =EOMONTH(VENTE!I198,-1)+1 -> 2016-06-01 | D198: =EOMONTH(ACHAT!M198,-1)+1 -> 2016-02-01 | E198: =EOMONTH(ACHAT!L198,-1)+1 -> 2016-05-01
B199: =EOMONTH(VENTE!A199,-1)+1 -> 2016-06-01 | C199: =EOMONTH(VENTE!I199,-1)+1 -> 2016-06-01 | D199: =EOMONTH(ACHAT!M199,-1)+1 -> 2016-05-01 | E199: =EOMONTH(ACHAT!L199,-1)+1 -> 2016-06-01
B200: =EOMONTH(VENTE!A200,-1)+1 -> 2016-06-01 | C200: =EOMONTH(VENTE!I200,-1)+1 -> 2016-06-01 | D200: =EOMONTH(ACHAT!M200,-1)+1 -> 2016-03-01 | E200: =EOMONTH(ACHAT!L200,-1)+1 -> 2016-06-01
... 800 more rows
